Inv Transaction,Supplier Name,Headserv Name,Stratdir Name,Account Description,Paid Date,Sum of Inv Amount
460451,NAZARETH CARE HOUSE MANCHESTER,Adult Social Care,Adults,Nursing Home Long Stay Fees,04-Jul,"1,963.20"
460454,TRIBUTARY LTD t/a  ASQUITH HALL CARE HOME,Adult Social Care,Adults,Nursing Home Long Stay Fees,12-Sep,"1,566.85"
460454,Wellington Healthcare (Arden) Ltd t/a Bloomcare,Adult Social Care,Adults,Nursing Home Long Stay Fees,25-Jul,"8,211.97"
460455,Next Chapter Healthcare Ltd,Adult Social Care,Adults,Nursing Home Long Stay Fees,18-Jul,"10,887.82"
460456,AUDEN HOUSE RESIDENTIAL HOME,Adult Social Care,Adults,Nursing Home Long Stay Fees,20-Jul,"16,490.23"
460457,Abbey Healthcare Ltd t/a Farnworth Care Home,Adult Social Care,Adults,Nursing Home Long Stay Fees,27-Jul,"1,756.46"
460457,Advinia Care Homes Ltd,Adult Social Care,Adults,Nursing Home Long Stay Fees,27-Jul,"9,064.40"
460457,Advinia Care Homes Ltd,Contingency,Contingency,Nursing Home Long Stay Fees,27-Jul,181.71
460457,ANCHOR HANOVER GROUP TAS HATTON GRANGE CARE HOME,Adult Social Care,Adults,Nursing Home Long Stay Fees,27-Jul,"78,816.27"
460457,ASHGROVE HOUSE CARE LTD,Adult Social Care,Adults,Nursing Home Long Stay Fees,27-Jul,"1,872.75"
460457,AUDEN HOUSE RESIDENTIAL HOME,Adult Social Care,Adults,Nursing Home Long Stay Fees,27-Jul,"15,571.42"
460457,Avery Homes Moston Ltd- Acacia Lodge,Adult Social Care,Adults,Nursing Home Long Stay Fees,27-Jul,"1,679.93"
460457,Barchester Healthcare t/a Glenroyd Care Home,Adult Social Care,Adults,Nursing Home Long Stay Fees,27-Jul,"3,887.09"
460457,Barchester Healthcare t/a Glenroyd Care Home,Contingency,Contingency,Nursing Home Long Stay Fees,27-Jul,"1,143.49"
460457,Beeches t/a Meridian Healthcare LTD,Adult Social Care,Adults,Nursing Home Long Stay Fees,27-Jul,"47,463.06"
460457,BELMONT PARKHILL LTD,Adult Social Care,Adults,Nursing Home Long Stay Fees,27-Jul,"48,873.78"
460457,BELMONT PARKHILL LTD,Contingency,Contingency,Nursing Home Long Stay Fees,27-Jul,"10,993.19"
460457,BLACKCLIFFE LTD TAS THE LAKES NURSING HOME,Adult Social Care,Adults,Nursing Home Long Stay Fees,27-Jul,"104,234.94"
460457,BLACKCLIFFE LTD TAS THE LAKES NURSING HOME,Contingency,Contingency,Nursing Home Long Stay Fees,27-Jul,"30,745.86"
460457,BOWERFIELD COURT,Adult Social Care,Adults,Nursing Home Long Stay Fees,27-Jul,"19,833.07"
460457,BROOKVALE,Adult Social Care,Adults,Nursing Home Long Stay Fees,27-Jul,"8,060.93"
460457,BURRSWOOD CARE HOME,Adult Social Care,Adults,Nursing Home Long Stay Fees,27-Jul,"5,034.95"
460457,BURRSWOOD CARE HOME,Contingency,Contingency,Nursing Home Long Stay Fees,27-Jul,3.13
460457,CARE TECH - ALPHA HOUSE CARE HOME,Adult Social Care,Adults,Nursing Home Long Stay Fees,27-Jul,"8,820.57"
460457,CARE UK LTD TAS RIVERSIDE CARE CENTRE,Adult Social Care,Adults,Nursing Home Long Stay Fees,27-Jul,"187,861.84"
460457,CARETECH COMMUNITY SERVICES LIMITED,Adult Social Care,Adults,Nursing Home Long Stay Fees,27-Jul,"3,827.70"
460457,CHADDERTON TOTAL CAREUNIT LTD,Adult Social Care,Adults,Nursing Home Long Stay Fees,27-Jul,"4,739.85"
460457,CHADDERTON TOTAL CAREUNIT LTD,Contingency,Contingency,Nursing Home Long Stay Fees,27-Jul,"1,143.49"
460457,Clarence House Care Home,Adult Social Care,Adults,Nursing Home Long Stay Fees,27-Jul,"11,912.37"
460457,CLARKSON HOUSE,Adult Social Care,Adults,Nursing Home Long Stay Fees,27-Jul,"16,816.52"
460457,D R Price Associates Limited t/a Chataway Nursing Home,Adult Social Care,Adults,Nursing Home Long Stay Fees,27-Jul,"3,543.30"
460457,Daisy Nook House t/a Meridian Healthcare LTD,Adult Social Care,Adults,Nursing Home Long Stay Fees,27-Jul,"86,528.46"
460457,DEVONSHIRE CARE LIMITED TAS CHARNLEY HOUSE,Adult Social Care,Adults,Nursing Home Long Stay Fees,27-Jul,"39,706.56"
460457,DOMAIN CARE NORTH WEST LTD,Adult Social Care,Adults,Nursing Home Long Stay Fees,27-Jul,"10,141.79"
460457,EACH STEP T/A PARK HOMES UK LTD,Adult Social Care,Adults,Nursing Home Long Stay Fees,27-Jul,"8,092.14"
460457,EACH STEP T/A PARK HOMES UK LTD,Contingency,Contingency,Nursing Home Long Stay Fees,27-Jul,"1,071.44"
460457,EAST CHESHIRE HOUSING CONSORTIUM TAS THE COURTYARD,Adult Social Care,Adults,Nursing Home Long Stay Fees,27-Jul,"12,682.77"
460457,EHC MOSTON GRANGE LTD,Adult Social Care,Adults,Nursing Home Long Stay Fees,27-Jul,"39,021.88"
460457,EHC MOSTON GRANGE LTD,Contingency,Contingency,Nursing Home Long Stay Fees,27-Jul,"1,315.80"
460457,Redacted Supplier,Adult Social Care,Adults,Nursing Home Long Stay Fees,27-Jul,"18,931.14"
460457,Redacted Supplier,Contingency,Contingency,Nursing Home Long Stay Fees,27-Jul,"1,143.49"
460457,Elysium Healthcare,Adult Social Care,Adults,Nursing Home Long Stay Fees,27-Jul,"17,472.56"
460457,Equilibrium Healthcare Ltd tas Oakland House Nursing Home,Adult Social Care,Adults,Nursing Home Long Stay Fees,27-Jul,"23,144.59"
460457,Equilibrium Healthcare Ltd tas Oakland House Nursing Home,Contingency,Contingency,Nursing Home Long Stay Fees,27-Jul,"3,032.61"
460457,FAIRFIELD VIEW CARE LTD,Adult Social Care,Adults,Nursing Home Long Stay Fees,27-Jul,"161,651.74"
460457,FERN BANK THERAPEUTIC COMMUNITY LTD,Adult Social Care,Adults,Nursing Home Long Stay Fees,27-Jul,"25,151.46"
460457,FIELDER LODGE,Adult Social Care,Adults,Nursing Home Long Stay Fees,27-Jul,"4,308.87"
460457,FINBROOK LTD t/a BERRYCROFT MANOR,Adult Social Care,Adults,Nursing Home Long Stay Fees,27-Jul,"3,040.48"
460457,Fir Trees t/a Meridian Healthcare LTD,Adult Social Care,Adults,Nursing Home Long Stay Fees,27-Jul,"132,670.79"
460457,Greatwood House t/a Meridian Healthcare LTD,Adult Social Care,Adults,Nursing Home Long Stay Fees,27-Jul,"65,148.91"
460457,HC ONE Limited - Beechcroft,Adult Social Care,Adults,Nursing Home Long Stay Fees,27-Jul,"11,575.77"
460457,HC One Ltd,Adult Social Care,Adults,Nursing Home Long Stay Fees,29-Jul,"3,664.50"
460457,HC ONE OF A KIND - KINGS PARK,Adult Social Care,Adults,Nursing Home Long Stay Fees,27-Jul,"55,379.97"
460457,HC ONE OF A KIND - KINGS PARK,Contingency,Contingency,Nursing Home Long Stay Fees,27-Jul,"28,734.56"
460457,"HC-ONE LTD, Sunnyside Care Home",Adult Social Care,Adults,Nursing Home Long Stay Fees,27-Jul,"49,027.37"
460457,HEATHCOTES M LTD,Adult Social Care,Adults,Nursing Home Long Stay Fees,27-Jul,"27,208.30"
460457,HEATHCOTES THE ROOKERY,Adult Social Care,Adults,Nursing Home Long Stay Fees,27-Jul,"18,995.43"
460457,HEATON LODGE,Adult Social Care,Adults,Nursing Home Long Stay Fees,27-Jul,"3,092.38"
460457,Holme Lea t/a Meridian Healthcare LTD,Adult Social Care,Adults,Nursing Home Long Stay Fees,27-Jul,"96,547.59"
460457,HURST HALL CARE HOME LTD,Adult Social Care,Adults,Nursing Home Long Stay Fees,27-Jul,"92,558.06"
460457,L & M HEALTHCARE,Adult Social Care,Adults,Nursing Home Long Stay Fees,27-Jul,"7,522.92"
460457,L & M HEALTHCARE,Contingency,Contingency,Nursing Home Long Stay Fees,27-Jul,335.22
460457,LANGLEY HOUSE TRUST,Adult Social Care,Adults,Nursing Home Long Stay Fees,27-Jul,"3,417.86"
460457,LAUREL BANK RESIDENTIAL CARE HOME LTD,Adult Social Care,Adults,Nursing Home Long Stay Fees,27-Jul,"10,570.49"
460457,MARPLE DALE HALL LTD,Adult Social Care,Adults,Nursing Home Long Stay Fees,27-Jul,"9,139.63"
460457,MARPLE DALE HALL LTD,Contingency,Contingency,Nursing Home Long Stay Fees,27-Jul,839.61
460457,MBI SOCIAL CARE LTD TAS DOWNSHAW LODGE CARE HOME,Adult Social Care,Adults,Nursing Home Long Stay Fees,27-Jul,"60,961.79"
460457,MBI SOCIAL CARE LTD TAS DOWNSHAW LODGE CARE HOME,Contingency,Contingency,Nursing Home Long Stay Fees,27-Jul,"20,557.81"
460457,MERIDIAN HEALTH CARE LTD TAS GUIDE LANE,Adult Social Care,Adults,Nursing Home Long Stay Fees,27-Jul,"45,507.92"
460457,MERIDIAN HEALTH CARE LTD TAS GUIDE LANE,Contingency,Contingency,Nursing Home Long Stay Fees,27-Jul,"17,653.65"
460457,Millbrook Care Home t/a Meridian Healthcare LTD,Adult Social Care,Adults,Nursing Home Long Stay Fees,27-Jul,"56,031.93"
460457,MILLFIELD CARE HOME - QUALIA CARE,Adult Social Care,Adults,Nursing Home Long Stay Fees,27-Jul,"2,264.86"
460457,MOSS COTTAGE NURSING HOME,Adult Social Care,Adults,Nursing Home Long Stay Fees,27-Jul,"102,922.43"
460457,MOSS COTTAGE NURSING HOME,Contingency,Contingency,Nursing Home Long Stay Fees,27-Jul,"23,499.56"
460457,Northern Healthcare Limited tas Holland House/Montgomery House,Adult Social Care,Adults,Nursing Home Long Stay Fees,27-Jul,"10,483.49"
460457,NYMS SERVICES LTD TAS PENNINE CARE CENTRE,Adult Social Care,Adults,Nursing Home Long Stay Fees,27-Jul,"24,870.59"
460457,OAKDENE CARE HOME T/A OAKDENE CARE HOME LTD,Adult Social Care,Adults,Nursing Home Long Stay Fees,27-Jul,"3,957.55"
460457,OAKDENE CARE HOME T/A OAKDENE CARE HOME LTD,Contingency,Contingency,Nursing Home Long Stay Fees,27-Jul,"1,143.49"
460457,OAKWOOD CARE CENTRE,Adult Social Care,Adults,Nursing Home Long Stay Fees,27-Jul,"28,815.20"
460457,PARTNERSHIP CARING LTD TAS FIRBANK HOUSE NURSING & RESIDENTIAL CARE HOME,Adult Social Care,Adults,Nursing Home Long Stay Fees,27-Jul,"105,277.88"
460457,Pendlebury Care Homes Ltd tas Regency Hall Care Home,Adult Social Care,Adults,Nursing Home Long Stay Fees,27-Jul,"25,423.35"
460457,POLEBANK HALL RESIDENTIAL CARE HOME LTD,Adult Social Care,Adults,Nursing Home Long Stay Fees,27-Jul,"10,021.11"
460457,ROEFIELD SPECIALIST CARE LIMITED t/a THISTLE MANOR,Adult Social Care,Adults,Nursing Home Long Stay Fees,27-Jul,"25,977.94"
460457,ROYAL MASONIC BENEVOLENT INSTITUTION,Adult Social Care,Adults,Nursing Home Long Stay Fees,27-Jul,"3,101.11"
460457,SALUTEM LD BIDCO IV LIMITED T/A AMBITO CARE AND EDUCATION,Adult Social Care,Adults,Nursing Home Long Stay Fees,27-Jul,"10,416.89"
460457,Sandon House t/a Meridian Healthcare LTD,Adult Social Care,Adults,Nursing Home Long Stay Fees,27-Jul,"59,771.55"
460457,SIGN,Adult Social Care,Adults,Nursing Home Long Stay Fees,27-Jul,"65,581.54"
460457,SOUTHERN CROSS HEALTHCARE,Adult Social Care,Adults,Nursing Home Long Stay Fees,27-Jul,"4,676.39"
460457,SPINAL UNIT ACTION GROUP,Adult Social Care,Adults,Nursing Home Long Stay Fees,27-Jul,"3,870.79"
460457,St Christopher�s Trust,Adult Social Care,Adults,Nursing Home Long Stay Fees,27-Jul,"28,116.00"
460457,Redacted Supplier,Adult Social Care,Adults,Nursing Home Long Stay Fees,27-Jul,"34,347.55"
460457,Redacted Supplier,Contingency,Contingency,Nursing Home Long Stay Fees,27-Jul,"4,132.24"
460457,ST LAWRENCES LODGE,Adult Social Care,Adults,Nursing Home Long Stay Fees,27-Jul,"12,652.58"
460457,STALEY HOUSE EPH,Adult Social Care,Adults,Nursing Home Long Stay Fees,27-Jul,"40,842.45"
460457,Stamford Court Nursing t/a Meridian Healthcare LTD,Adult Social Care,Adults,Nursing Home Long Stay Fees,27-Jul,"106,556.72"
460457,Stamford Court Nursing t/a Meridian Healthcare LTD,Contingency,Contingency,Nursing Home Long Stay Fees,27-Jul,"36,413.20"
460457,Sun Healthcare T/A Tapton Grove Care Home,Adult Social Care,Adults,Nursing Home Long Stay Fees,27-Jul,"4,809.69"
460457,The Coppice Care Home,Adult Social Care,Adults,Nursing Home Long Stay Fees,27-Jul,"2,681.41"
460457,THE JOSEPH COX CHARITY,Adult Social Care,Adults,Nursing Home Long Stay Fees,27-Jul,"6,850.82"
460457,THE LIGHT HOUSE (Bloomcare Group),Adult Social Care,Adults,Nursing Home Long Stay Fees,27-Jul,"42,964.64"
460457,The Sycamores t/a Meridian Health Care LTD,Adult Social Care,Adults,Nursing Home Long Stay Fees,27-Jul,"98,259.59"
460457,THE VICARAGE RESIDENTIAL CARE HOME,Adult Social Care,Adults,Nursing Home Long Stay Fees,27-Jul,"27,390.27"
460457,THORNCLIFFE GRANGE NURSING HOME,Adult Social Care,Adults,Nursing Home Long Stay Fees,27-Jul,"116,112.55"
460457,THORNCLIFFE GRANGE NURSING HOME,Contingency,Contingency,Nursing Home Long Stay Fees,27-Jul,"19,263.94"
460457,TRACS Limited,Adult Social Care,Adults,Nursing Home Long Stay Fees,27-Jul,"7,337.43"
460457,TREETOPS,Adult Social Care,Adults,Nursing Home Long Stay Fees,27-Jul,"77,534.49"
460457,TREETOPS,Contingency,Contingency,Nursing Home Long Stay Fees,27-Jul,"1,124.70"
460457,Wellington Healthcare (Arden) Ltd t/a Bloomcare,Adult Social Care,Adults,Nursing Home Long Stay Fees,27-Jul,"2,797.48"
460457,WOODLAND CARE HOME,Adult Social Care,Adults,Nursing Home Long Stay Fees,27-Jul,"6,370.42"
460457,Yew Trees t/a Meridian Healthcare LTD,Adult Social Care,Adults,Nursing Home Long Stay Fees,27-Jul,"90,600.07"
460457,ZZ DUP - The Coach House,Adult Social Care,Adults,Nursing Home Long Stay Fees,27-Jul,"38,569.00"
460458,Next Chapter Healthcare Ltd,Adult Social Care,Adults,Nursing Home Long Stay Fees,17-Aug,"11,250.74"
460459,Abbey Healthcare Ltd t/a Farnworth Care Home,Adult Social Care,Adults,Nursing Home Long Stay Fees,24-Aug,"1,699.80"
460459,Aden Court Ltd t/a Aden Court Nursing Home,Adult Social Care,Adults,Nursing Home Long Stay Fees,24-Aug,"1,578.57"
460459,Advinia Care Homes Ltd,Adult Social Care,Adults,Nursing Home Long Stay Fees,24-Aug,"6,051.29"
460459,ANCHOR HANOVER GROUP TAS HATTON GRANGE CARE HOME,Adult Social Care,Adults,Nursing Home Long Stay Fees,24-Aug,"71,457.12"
460459,ASHGROVE HOUSE CARE LTD,Adult Social Care,Adults,Nursing Home Long Stay Fees,24-Aug,"1,812.34"
460459,AUDEN HOUSE RESIDENTIAL HOME,Adult Social Care,Adults,Nursing Home Long Stay Fees,24-Aug,"9,744.78"
460459,Avery Homes Moston Ltd- Acacia Lodge,Adult Social Care,Adults,Nursing Home Long Stay Fees,24-Aug,"1,625.74"
460459,Barchester Healthcare t/a Glenroyd Care Home,Adult Social Care,Adults,Nursing Home Long Stay Fees,24-Aug,"3,887.09"
460459,Beeches t/a Meridian Healthcare LTD,Adult Social Care,Adults,Nursing Home Long Stay Fees,24-Aug,"50,630.79"
460459,BELMONT PARKHILL LTD,Adult Social Care,Adults,Nursing Home Long Stay Fees,24-Aug,"45,846.94"
460459,BLACKCLIFFE LTD TAS THE LAKES NURSING HOME,Adult Social Care,Adults,Nursing Home Long Stay Fees,24-Aug,"100,907.18"
460459,BOWERFIELD COURT,Adult Social Care,Adults,Nursing Home Long Stay Fees,24-Aug,"21,318.78"
460459,BROOKFIELD RESIDENTIAL CARE HOME,Adult Social Care,Adults,Nursing Home Long Stay Fees,24-Aug,"5,604.71"
460459,BROOKVALE,Adult Social Care,Adults,Nursing Home Long Stay Fees,24-Aug,"7,800.90"
460459,BURRSWOOD CARE HOME,Adult Social Care,Adults,Nursing Home Long Stay Fees,24-Aug,"2,350.03"
460459,CARE UK LTD TAS RIVERSIDE CARE CENTRE,Adult Social Care,Adults,Nursing Home Long Stay Fees,24-Aug,"154,573.83"
460459,Cartwright Care Balmoral Management Ltd,Adult Social Care,Adults,Nursing Home Long Stay Fees,24-Aug,"11,851.64"
460459,CHADDERTON TOTAL CAREUNIT LTD,Adult Social Care,Adults,Nursing Home Long Stay Fees,24-Aug,"4,739.85"
460459,CHERWOOD HOUSE CARE CENTRE,Adult Social Care,Adults,Nursing Home Long Stay Fees,24-Aug,"3,055.52"
460459,CLARKSON HOUSE,Adult Social Care,Adults,Nursing Home Long Stay Fees,24-Aug,"16,274.06"
460459,CYGNET LEARNING DISABILITIES LTD,Adult Social Care,Adults,Nursing Home Long Stay Fees,24-Aug,"22,598.32"
460459,D R Price Associates Limited t/a Chataway Nursing Home,Adult Social Care,Adults,Nursing Home Long Stay Fees,24-Aug,"3,543.30"
460459,Daisy Nook House t/a Meridian Healthcare LTD,Adult Social Care,Adults,Nursing Home Long Stay Fees,24-Aug,"53,194.20"
460459,DEVONSHIRE CARE LIMITED TAS CHARNLEY HOUSE,Adult Social Care,Adults,Nursing Home Long Stay Fees,24-Aug,"35,859.24"
460459,DOMAIN CARE NORTH WEST LTD,Adult Social Care,Adults,Nursing Home Long Stay Fees,24-Aug,"8,836.20"
460459,EACH STEP T/A PARK HOMES UK LTD,Adult Social Care,Adults,Nursing Home Long Stay Fees,24-Aug,"8,092.14"
460459,EAST CHESHIRE HOUSING CONSORTIUM TAS THE COURTYARD,Adult Social Care,Adults,Nursing Home Long Stay Fees,24-Aug,"3,222.67"
460459,EHC MOSTON GRANGE LTD,Adult Social Care,Adults,Nursing Home Long Stay Fees,24-Aug,"41,609.02"
460459,Elysium Healthcare,Adult Social Care,Adults,Nursing Home Long Stay Fees,24-Aug,"15,632.02"
460459,Equilibrium Healthcare Ltd tas Oakland House Nursing Home,Adult Social Care,Adults,Nursing Home Long Stay Fees,24-Aug,"23,144.59"
460459,FAIRFIELD VIEW CARE LTD,Adult Social Care,Adults,Nursing Home Long Stay Fees,24-Aug,"127,683.96"
460459,FERN BANK THERAPEUTIC COMMUNITY LTD,Adult Social Care,Adults,Nursing Home Long Stay Fees,24-Aug,"24,949.12"
460459,FIELDER LODGE,Adult Social Care,Adults,Nursing Home Long Stay Fees,24-Aug,"4,308.87"
460459,FINBROOK LTD t/a BERRYCROFT MANOR,Adult Social Care,Adults,Nursing Home Long Stay Fees,24-Aug,"3,040.48"
460459,Fir Trees t/a Meridian Healthcare LTD,Adult Social Care,Adults,Nursing Home Long Stay Fees,24-Aug,"72,166.80"
460459,Greatwood House t/a Meridian Healthcare LTD,Adult Social Care,Adults,Nursing Home Long Stay Fees,24-Aug,"72,305.19"
460459,HC ONE Limited - Beechcroft,Adult Social Care,Adults,Nursing Home Long Stay Fees,24-Aug,"1,904.70"
460459,HC ONE OF A KIND - KINGS PARK,Adult Social Care,Adults,Nursing Home Long Stay Fees,24-Aug,"63,745.70"
460459,HC-ONE LIMITED - BROOKDALE VIEW,Adult Social Care,Adults,Nursing Home Long Stay Fees,24-Aug,"3,466.80"
460459,"HC-ONE LTD, Sunnyside Care Home",Adult Social Care,Adults,Nursing Home Long Stay Fees,24-Aug,"74,383.27"
460459,HEATHCOTES M LTD,Adult Social Care,Adults,Nursing Home Long Stay Fees,24-Aug,"27,208.30"
460459,HEATHCOTES THE ROOKERY,Adult Social Care,Adults,Nursing Home Long Stay Fees,24-Aug,"18,995.43"
460459,HEATON LODGE,Adult Social Care,Adults,Nursing Home Long Stay Fees,24-Aug,"2,992.63"
460459,HIGHFIELD HOUSE CARE HOME,Adult Social Care,Adults,Nursing Home Long Stay Fees,24-Aug,"12,278.57"
460459,Holme Lea t/a Meridian Healthcare LTD,Adult Social Care,Adults,Nursing Home Long Stay Fees,24-Aug,"90,341.55"
460459,HURST HALL CARE HOME LTD,Adult Social Care,Adults,Nursing Home Long Stay Fees,24-Aug,"82,362.44"
460459,Ideal Carehomes Number One Limited,Adult Social Care,Adults,Nursing Home Long Stay Fees,24-Aug,"9,023.36"
460459,INSTITUTE OF OUR LADY  OF MERCY,Adult Social Care,Adults,Nursing Home Long Stay Fees,24-Aug,"7,321.10"
460459,L & M HEALTHCARE,Adult Social Care,Adults,Nursing Home Long Stay Fees,24-Aug,"7,083.32"
460459,LAUREL BANK RESIDENTIAL CARE HOME LTD,Adult Social Care,Adults,Nursing Home Long Stay Fees,24-Aug,"9,104.51"
460459,LEONARD CHESHIRE DISABILITY,Adult Social Care,Adults,Nursing Home Long Stay Fees,24-Aug,"37,311.25"
460459,MARPLE DALE HALL LTD,Adult Social Care,Adults,Nursing Home Long Stay Fees,24-Aug,"6,363.63"
460459,MBI SOCIAL CARE LTD TAS DOWNSHAW LODGE CARE HOME,Adult Social Care,Adults,Nursing Home Long Stay Fees,24-Aug,"88,606.52"
460459,MERIDIAN HEALTH CARE LTD TAS GUIDE LANE,Adult Social Care,Adults,Nursing Home Long Stay Fees,24-Aug,"58,150.23"
460459,Millbrook Care Home t/a Meridian Healthcare LTD,Adult Social Care,Adults,Nursing Home Long Stay Fees,24-Aug,"26,753.82"
460459,MILLFIELD CARE HOME - QUALIA CARE,Adult Social Care,Adults,Nursing Home Long Stay Fees,24-Aug,"2,191.80"
460459,MOSS COTTAGE NURSING HOME,Adult Social Care,Adults,Nursing Home Long Stay Fees,24-Aug,"72,535.48"
460459,Next Chapter Healthcare Ltd,Adult Social Care,Adults,Nursing Home Long Stay Fees,24-Aug,"11,250.74"
460459,Northern Healthcare Limited tas Holland House/Montgomery House,Adult Social Care,Adults,Nursing Home Long Stay Fees,24-Aug,"10,279.89"
460459,NYMS SERVICES LTD TAS PENNINE CARE CENTRE,Adult Social Care,Adults,Nursing Home Long Stay Fees,24-Aug,"3,225.57"
460459,OAKWOOD CARE CENTRE,Adult Social Care,Adults,Nursing Home Long Stay Fees,24-Aug,"27,294.99"
460459,PARKVIEW CARE HOME,Adult Social Care,Adults,Nursing Home Long Stay Fees,24-Aug,"16,468.78"
460459,PARTNERSHIP CARING LTD TAS FIRBANK HOUSE NURSING & RESIDENTIAL CARE HOME,Adult Social Care,Adults,Nursing Home Long Stay Fees,24-Aug,"54,913.71"
460459,Pendlebury Care Homes Ltd tas Regency Hall Care Home,Adult Social Care,Adults,Nursing Home Long Stay Fees,24-Aug,"8,046.03"
460459,POLEBANK HALL RESIDENTIAL CARE HOME LTD,Adult Social Care,Adults,Nursing Home Long Stay Fees,24-Aug,"9,697.84"
460459,Postgrad Ltd - Treelands Care Home,Adult Social Care,Adults,Nursing Home Long Stay Fees,24-Aug,"6,059.97"
460459,Postgrad Ltd - Treelands Care Home,Contingency,Contingency,Nursing Home Long Stay Fees,24-Aug,350.88
460459,ROEFIELD SPECIALIST CARE LIMITED t/a THISTLE MANOR,Adult Social Care,Adults,Nursing Home Long Stay Fees,24-Aug,"25,139.96"
460459,Rose Keys (Lifeways),Adult Social Care,Adults,Nursing Home Long Stay Fees,24-Aug,"47,038.42"
460459,ROYAL MASONIC BENEVOLENT INSTITUTION,Adult Social Care,Adults,Nursing Home Long Stay Fees,24-Aug,"5,951.11"
460459,SALUTEM LD BIDCO IV LIMITED T/A AMBITO CARE AND EDUCATION,Adult Social Care,Adults,Nursing Home Long Stay Fees,24-Aug,"10,416.89"
460459,Sandon House t/a Meridian Healthcare LTD,Adult Social Care,Adults,Nursing Home Long Stay Fees,24-Aug,"68,810.55"
460459,SPINAL UNIT ACTION GROUP,Adult Social Care,Adults,Nursing Home Long Stay Fees,24-Aug,"3,745.93"
460459,Redacted Supplier,Adult Social Care,Adults,Nursing Home Long Stay Fees,24-Aug,"34,347.55"
460459,ST LAWRENCES LODGE,Adult Social Care,Adults,Nursing Home Long Stay Fees,24-Aug,"3,639.28"
460459,STALEY HOUSE EPH,Adult Social Care,Adults,Nursing Home Long Stay Fees,24-Aug,"34,502.73"
460459,Stamford Court Nursing t/a Meridian Healthcare LTD,Adult Social Care,Adults,Nursing Home Long Stay Fees,24-Aug,"95,209.33"
460459,Sun Healthcare T/A Tapton Grove Care Home,Adult Social Care,Adults,Nursing Home Long Stay Fees,24-Aug,"4,809.69"
460459,SUNNY BANK PRS LTD,Adult Social Care,Adults,Nursing Home Long Stay Fees,24-Aug,"5,756.13"
460459,Thames House t/a Exemplar Health Care Partnerships LTD,Adult Social Care,Adults,Nursing Home Long Stay Fees,24-Aug,"41,485.03"
460459,The Coppice Care Home,Adult Social Care,Adults,Nursing Home Long Stay Fees,24-Aug,"8,527.12"
460459,THE JOSEPH COX CHARITY,Adult Social Care,Adults,Nursing Home Long Stay Fees,24-Aug,"12,789.87"
460459,THE LIGHT HOUSE (Bloomcare Group),Adult Social Care,Adults,Nursing Home Long Stay Fees,24-Aug,"52,362.19"
460459,The Sycamores t/a Meridian Health Care LTD,Adult Social Care,Adults,Nursing Home Long Stay Fees,24-Aug,"85,199.42"
460459,THE VICARAGE RESIDENTIAL CARE HOME,Adult Social Care,Adults,Nursing Home Long Stay Fees,24-Aug,"35,701.38"
460459,THORNCLIFFE GRANGE NURSING HOME,Adult Social Care,Adults,Nursing Home Long Stay Fees,24-Aug,"105,488.28"
460459,TREETOPS,Adult Social Care,Adults,Nursing Home Long Stay Fees,24-Aug,"38,024.96"
460459,VOYAGE CARE LIMITED,Adult Social Care,Adults,Nursing Home Long Stay Fees,24-Aug,"57,792.01"
460459,Wellington Healthcare (Arden) Ltd t/a Bloomcare,Adult Social Care,Adults,Nursing Home Long Stay Fees,24-Aug,"2,797.48"
460459,Woodrow House ( Cygnet Healthcare),Adult Social Care,Adults,Nursing Home Long Stay Fees,24-Aug,"30,400.31"
460459,Yew Trees t/a Meridian Healthcare LTD,Adult Social Care,Adults,Nursing Home Long Stay Fees,24-Aug,"83,943.36"
460459,ZZ DUP - The Coach House,Adult Social Care,Adults,Nursing Home Long Stay Fees,24-Aug,"37,324.84"
460460,HURST HALL CARE HOME LTD,Adult Social Care,Adults,Nursing Home Long Stay Fees,31-Aug,"18,795.32"
460461,MBI SOCIAL CARE LTD TAS DOWNSHAW LODGE CARE HOME,Adult Social Care,Adults,Nursing Home Long Stay Fees,14-Sep,"40,001.03"
460462,Abbey Healthcare Ltd t/a Farnworth Care Home,Adult Social Care,Adults,Nursing Home Long Stay Fees,28-Sep,"1,756.46"
460462,Achieve Together Limited,Adult Social Care,Adults,Nursing Home Long Stay Fees,28-Sep,"11,364.89"
460462,Advinia Care Homes Ltd,Adult Social Care,Adults,Nursing Home Long Stay Fees,28-Sep,"2,371.06"
460462,ANCHOR HANOVER GROUP TAS HATTON GRANGE CARE HOME,Adult Social Care,Adults,Nursing Home Long Stay Fees,28-Sep,"73,064.46"
460462,ASHGROVE HOUSE CARE LTD,Adult Social Care,Adults,Nursing Home Long Stay Fees,28-Sep,"1,872.75"
460462,AUDEN HOUSE RESIDENTIAL HOME,Adult Social Care,Adults,Nursing Home Long Stay Fees,28-Sep,"38,532.42"
460462,Barchester Healthcare t/a Glenroyd Care Home,Adult Social Care,Adults,Nursing Home Long Stay Fees,28-Sep,"3,761.70"
460462,Beeches t/a Meridian Healthcare LTD,Adult Social Care,Adults,Nursing Home Long Stay Fees,28-Sep,"70,159.30"
460462,BELMONT PARKHILL LTD,Adult Social Care,Adults,Nursing Home Long Stay Fees,28-Sep,"76,007.43"
460462,BLACKCLIFFE LTD TAS THE LAKES NURSING HOME,Adult Social Care,Adults,Nursing Home Long Stay Fees,28-Sep,"83,238.94"
460462,BOROUGH CARE LTD,Adult Social Care,Adults,Nursing Home Long Stay Fees,28-Sep,"13,367.71"
460462,BOWERFIELD COURT,Adult Social Care,Adults,Nursing Home Long Stay Fees,28-Sep,"20,319.21"
460462,BROOKFIELD RESIDENTIAL CARE HOME,Adult Social Care,Adults,Nursing Home Long Stay Fees,28-Sep,"2,711.96"
460462,BROOKVALE,Adult Social Care,Adults,Nursing Home Long Stay Fees,28-Sep,"8,060.93"
460462,BROUGHTON HOUSE HOME FOR  EX-SERVICE PERSONNEL,Adult Social Care,Adults,Nursing Home Long Stay Fees,28-Sep,"15,795.00"
460462,CARE UK LTD TAS RIVERSIDE CARE CENTRE,Adult Social Care,Adults,Nursing Home Long Stay Fees,28-Sep,"175,048.28"
460462,CareConcepts Ltd,Adult Social Care,Adults,Nursing Home Long Stay Fees,28-Sep,"5,606.36"
460462,Cartwright Care Balmoral Management Ltd,Adult Social Care,Adults,Nursing Home Long Stay Fees,28-Sep,"39,093.68"
460462,CHADDERTON TOTAL CAREUNIT LTD,Adult Social Care,Adults,Nursing Home Long Stay Fees,28-Sep,"5,135.53"
460462,CHERWOOD HOUSE CARE CENTRE,Adult Social Care,Adults,Nursing Home Long Stay Fees,28-Sep,"1,549.78"
460462,CLARKSON HOUSE,Adult Social Care,Adults,Nursing Home Long Stay Fees,28-Sep,"16,816.51"
460462,CYGNET LEARNING DISABILITIES LTD,Adult Social Care,Adults,Nursing Home Long Stay Fees,28-Sep,"15,686.13"
460462,D R Price Associates Limited t/a Chataway Nursing Home,Adult Social Care,Adults,Nursing Home Long Stay Fees,28-Sep,"3,429.00"
460462,Daisy Nook House t/a Meridian Healthcare LTD,Adult Social Care,Adults,Nursing Home Long Stay Fees,28-Sep,"54,967.41"
460462,DEVONSHIRE CARE LIMITED TAS CHARNLEY HOUSE,Adult Social Care,Adults,Nursing Home Long Stay Fees,28-Sep,"52,210.18"
460462,DIWALI LTD T/A DIWALI NIVAS,Adult Social Care,Adults,Nursing Home Long Stay Fees,28-Sep,"3,936.00"
460462,DOVES NEST LTD,Adult Social Care,Adults,Nursing Home Long Stay Fees,28-Sep,"43,074.27"
460462,EACH STEP T/A PARK HOMES UK LTD,Adult Social Care,Adults,Nursing Home Long Stay Fees,28-Sep,"7,831.12"
460462,EAST CHESHIRE HOUSING CONSORTIUM TAS THE COURTYARD,Adult Social Care,Adults,Nursing Home Long Stay Fees,28-Sep,"3,118.71"
460462,EHC MOSTON GRANGE LTD,Adult Social Care,Adults,Nursing Home Long Stay Fees,28-Sep,"53,407.06"
460462,Redacted Supplier,Adult Social Care,Adults,Nursing Home Long Stay Fees,28-Sep,"6,370.93"
460462,Elysium Healthcare,Adult Social Care,Adults,Nursing Home Long Stay Fees,28-Sep,"15,127.76"
460462,Equilibrium Healthcare Ltd tas Oakland House Nursing Home,Adult Social Care,Adults,Nursing Home Long Stay Fees,28-Sep,"53,976.34"
460462,FAIRFIELD VIEW CARE LTD,Adult Social Care,Adults,Nursing Home Long Stay Fees,28-Sep,"114,351.60"
460462,FERN BANK THERAPEUTIC COMMUNITY LTD,Adult Social Care,Adults,Nursing Home Long Stay Fees,28-Sep,"24,542.45"
460462,FIELDER LODGE,Adult Social Care,Adults,Nursing Home Long Stay Fees,28-Sep,"4,169.87"
460462,FINBROOK LTD t/a BERRYCROFT MANOR,Adult Social Care,Adults,Nursing Home Long Stay Fees,28-Sep,"2,942.40"
460462,Fir Trees t/a Meridian Healthcare LTD,Adult Social Care,Adults,Nursing Home Long Stay Fees,28-Sep,"124,842.70"
460462,FRANCIS HOUSE FAMILIES LTD,Adult Social Care,Adults,Nursing Home Long Stay Fees,28-Sep,"23,952.20"
460462,Greatwood House t/a Meridian Healthcare LTD,Adult Social Care,Adults,Nursing Home Long Stay Fees,28-Sep,"107,831.55"
460462,HC One Ltd,Adult Social Care,Adults,Nursing Home Long Stay Fees,28-Sep,"1,221.50"
460462,HC ONE OF A KIND - KINGS PARK,Adult Social Care,Adults,Nursing Home Long Stay Fees,28-Sep,"61,517.98"
460462,HC-ONE LIMITED - BROOKDALE VIEW,Adult Social Care,Adults,Nursing Home Long Stay Fees,28-Sep,"1,761.82"
460462,HC-One Ltd,Adult Social Care,Adults,Nursing Home Long Stay Fees,28-Sep,"1,786.70"
460462,"HC-ONE LTD, Sunnyside Care Home",Adult Social Care,Adults,Nursing Home Long Stay Fees,28-Sep,"81,564.58"
460462,HEATHCOTES M LTD,Adult Social Care,Adults,Nursing Home Long Stay Fees,28-Sep,"26,330.62"
460462,HEATHCOTES THE ROOKERY,Adult Social Care,Adults,Nursing Home Long Stay Fees,28-Sep,"18,382.68"
460462,HEATON LODGE,Adult Social Care,Adults,Nursing Home Long Stay Fees,28-Sep,"3,092.38"
460462,HIGHFIELD HOUSE CARE HOME,Adult Social Care,Adults,Nursing Home Long Stay Fees,28-Sep,"2,455.71"
460462,Holme Lea t/a Meridian Healthcare LTD,Adult Social Care,Adults,Nursing Home Long Stay Fees,28-Sep,"105,795.46"
460462,HURST HALL CARE HOME LTD,Adult Social Care,Adults,Nursing Home Long Stay Fees,28-Sep,"89,189.10"
460462,Ideal Carehomes Number One Limited,Adult Social Care,Adults,Nursing Home Long Stay Fees,28-Sep,"2,942.40"
460462,INSTITUTE OF OUR LADY  OF MERCY,Adult Social Care,Adults,Nursing Home Long Stay Fees,28-Sep,"2,387.31"
460462,JVT CARE HOMES LTD T/A WATFORD HOUSE CARE HOME,Adult Social Care,Adults,Nursing Home Long Stay Fees,28-Sep,"8,665.74"
460462,L & M HEALTHCARE,Adult Social Care,Adults,Nursing Home Long Stay Fees,28-Sep,"6,979.83"
460462,LAUREL BANK RESIDENTIAL CARE HOME LTD,Adult Social Care,Adults,Nursing Home Long Stay Fees,28-Sep,"9,210.49"
460462,LEONARD CHESHIRE DISABILITY,Adult Social Care,Adults,Nursing Home Long Stay Fees,28-Sep,"12,166.72"
460462,LONGWOOD LODGE CARE LTD t/a Longwood Lodge Care Home,Adult Social Care,Adults,Nursing Home Long Stay Fees,28-Sep,"8,148.57"
460462,MARPLE DALE HALL LTD,Adult Social Care,Adults,Nursing Home Long Stay Fees,28-Sep,"6,059.22"
460462,MBI SOCIAL CARE LTD TAS DOWNSHAW LODGE CARE HOME,Adult Social Care,Adults,Nursing Home Long Stay Fees,28-Sep,"67,907.87"
460462,MERIDIAN HEALTH CARE LTD TAS GUIDE LANE,Adult Social Care,Adults,Nursing Home Long Stay Fees,28-Sep,"73,548.68"
460462,Millbrook Care Home t/a Meridian Healthcare LTD,Adult Social Care,Adults,Nursing Home Long Stay Fees,28-Sep,"29,611.47"
460462,MILLFIELD CARE HOME - QUALIA CARE,Adult Social Care,Adults,Nursing Home Long Stay Fees,28-Sep,"2,264.86"
460462,Minster Care Management -T/A REDHILL,Adult Social Care,Adults,Nursing Home Long Stay Fees,28-Sep,"12,890.92"
460462,Next Chapter Healthcare Ltd,Adult Social Care,Adults,Nursing Home Long Stay Fees,28-Sep,"10,887.82"
460462,Northern Healthcare Limited tas Holland House/Montgomery House,Adult Social Care,Adults,Nursing Home Long Stay Fees,28-Sep,"10,348.92"
460462,NYMS SERVICES LTD TAS PENNINE CARE CENTRE,Adult Social Care,Adults,Nursing Home Long Stay Fees,28-Sep,"18,558.68"
460462,OAKDENE CARE HOME T/A OAKDENE CARE HOME LTD,Adult Social Care,Adults,Nursing Home Long Stay Fees,28-Sep,"7,787.43"
460462,OAKWOOD CARE CENTRE,Adult Social Care,Adults,Nursing Home Long Stay Fees,28-Sep,"19,960.08"
460462,PARKVIEW CARE HOME,Adult Social Care,Adults,Nursing Home Long Stay Fees,28-Sep,"5,724.76"
460462,PARTNERSHIP CARING LTD TAS FIRBANK HOUSE NURSING & RESIDENTIAL CARE HOME,Adult Social Care,Adults,Nursing Home Long Stay Fees,28-Sep,"84,555.15"
460462,POLEBANK HALL RESIDENTIAL CARE HOME LTD,Adult Social Care,Adults,Nursing Home Long Stay Fees,28-Sep,"10,021.11"
460462,Postgrad Ltd - Treelands Care Home,Adult Social Care,Adults,Nursing Home Long Stay Fees,28-Sep,"2,932.24"
460462,PROGRESS CARE & EDUCATION LTD,Adult Social Care,Adults,Nursing Home Long Stay Fees,28-Sep,"51,041.47"
460462,Riverside Care Complex t/a Sure Healthcare Ltd,Adult Social Care,Adults,Nursing Home Long Stay Fees,28-Sep,"10,992.86"
460462,ROEFIELD SPECIALIST CARE LIMITED t/a THISTLE MANOR,Adult Social Care,Adults,Nursing Home Long Stay Fees,28-Sep,"23,548.69"
460462,Rose Keys (Lifeways),Adult Social Care,Adults,Nursing Home Long Stay Fees,28-Sep,"15,849.90"
460462,ROYAL MASONIC BENEVOLENT INSTITUTION,Adult Social Care,Adults,Nursing Home Long Stay Fees,28-Sep,"3,001.07"
460462,SALUTEM LD BIDCO IV LIMITED T/A AMBITO CARE AND EDUCATION,Adult Social Care,Adults,Nursing Home Long Stay Fees,28-Sep,"10,080.86"
460462,Sandon House t/a Meridian Healthcare LTD,Adult Social Care,Adults,Nursing Home Long Stay Fees,28-Sep,"66,847.46"
460462,Redacted Supplier,Adult Social Care,Adults,Nursing Home Long Stay Fees,28-Sep,"33,239.58"
460462,ST LAWRENCES LODGE,Adult Social Care,Adults,Nursing Home Long Stay Fees,28-Sep,"20,257.07"
460462,STALEY HOUSE EPH,Adult Social Care,Adults,Nursing Home Long Stay Fees,28-Sep,"74,812.67"
460462,Stamford Court Nursing t/a Meridian Healthcare LTD,Adult Social Care,Adults,Nursing Home Long Stay Fees,28-Sep,"118,110.23"
460462,Sun Healthcare T/A Tapton Grove Care Home,Adult Social Care,Adults,Nursing Home Long Stay Fees,28-Sep,"4,654.54"
460462,SUNNY BANK PRS LTD,Adult Social Care,Adults,Nursing Home Long Stay Fees,28-Sep,"2,925.25"
460462,The Coppice Care Home,Adult Social Care,Adults,Nursing Home Long Stay Fees,28-Sep,"5,252.05"
460462,THE JOSEPH COX CHARITY,Adult Social Care,Adults,Nursing Home Long Stay Fees,28-Sep,"6,629.82"
460462,THE LIGHT HOUSE (Bloomcare Group),Adult Social Care,Adults,Nursing Home Long Stay Fees,28-Sep,"29,841.24"
460462,The Sycamores t/a Meridian Health Care LTD,Adult Social Care,Adults,Nursing Home Long Stay Fees,28-Sep,"88,036.53"
460462,THE VICARAGE RESIDENTIAL CARE HOME,Adult Social Care,Adults,Nursing Home Long Stay Fees,28-Sep,"35,510.27"
460462,THORNCLIFFE GRANGE NURSING HOME,Adult Social Care,Adults,Nursing Home Long Stay Fees,28-Sep,"95,789.45"
460462,TREETOPS,Adult Social Care,Adults,Nursing Home Long Stay Fees,28-Sep,"77,469.26"
460462,VOYAGE CARE LIMITED,Adult Social Care,Adults,Nursing Home Long Stay Fees,28-Sep,"14,569.41"
460462,WELLFIELD CARE HOME,Adult Social Care,Adults,Nursing Home Long Stay Fees,28-Sep,"5,375.32"
460462,Wellington Healthcare (Arden) Ltd t/a Bloomcare,Adult Social Care,Adults,Nursing Home Long Stay Fees,28-Sep,"3,719.95"
460462,Woodrow House ( Cygnet Healthcare),Adult Social Care,Adults,Nursing Home Long Stay Fees,28-Sep,"18,202.61"
460462,Yew Trees t/a Meridian Healthcare LTD,Adult Social Care,Adults,Nursing Home Long Stay Fees,28-Sep,"102,510.32"
460462,ZZ DUP - The Coach House,Adult Social Care,Adults,Nursing Home Long Stay Fees,28-Sep,"38,569.00"
470918,TAILOR MADE SYSTEMS LTD,Operations and Neighbourhoods,Operations and Neighbourhoods,Engineers Recharge - Reactive Works (Internal),18-Aug,"5,129.00"
470958,Cadent Gas Limited,Operations and Neighbourhoods,Operations and Neighbourhoods,Sub-contractor Services,06-Jul,545.1
470960,SIMMONSIGNS LIMITED,Operations and Neighbourhoods,Operations and Neighbourhoods,General Materials,26-Sep,"1,626.80"
470962,BLACKHALL ENGINEERING LTD,Operations and Neighbourhoods,Operations and Neighbourhoods,General Materials,01-Jul,"1,650.00"
470965,ABBEY INDUSTRIAL SOLUTIONS LTD,Operations and Neighbourhoods,Operations and Neighbourhoods,Sub-contractor Services,12-Jul,"1,735.00"
470965,AGGREGATE INDUSTRIES UK LIMITED,Operations and Neighbourhoods,Operations and Neighbourhoods,General Materials,12-Jul,"7,688.64"
470965,ALTITUDE SERVICES,Operations and Neighbourhoods,Operations and Neighbourhoods,Sub-contractor Services,12-Jul,"27,077.89"
470965,AMBERON LTD,Operations and Neighbourhoods,Operations and Neighbourhoods,General Materials,12-Jul,857.15
470965,AMBERON LTD,Operations and Neighbourhoods,Operations and Neighbourhoods,Traffic Signs,12-Jul,372
470965,BRAMHALL SURFACING LTD,Operations and Neighbourhoods,Operations and Neighbourhoods,Sub-contractor Services,12-Jul,"17,044.57"
470965,BRIDGE ELECTRICALSUPPLIES LTD,Operations and Neighbourhoods,Operations and Neighbourhoods,General Materials,12-Jul,992.1
470965,CHILTON SAFETY SOLUTIONS,Operations and Neighbourhoods,Operations and Neighbourhoods,Training Course Costs,12-Jul,"1,266.45"
470965,LIMELIGHT SIGNS LIMITED,Civil Engineers,Director of Place,Debits Goods Received,12-Jul,579.46
470965,LIMELIGHT SIGNS LIMITED,Engineers Client,Director of Place,General Materials,12-Jul,28.2
470965,LIMELIGHT SIGNS LIMITED,Engineers Client,Director of Place,Highway Construction,12-Jul,661.2
470965,LIMELIGHT SIGNS LIMITED,Operations and Neighbourhoods,Operations and Neighbourhoods,General Materials,12-Jul,470.5
470965,MANCHESTER PLANT TRAINING LTD,Operations and Neighbourhoods,Operations and Neighbourhoods,Training Course Costs,12-Jul,620
470965,MARWOOD ELECTRICAL CO,Operations and Neighbourhoods,Operations and Neighbourhoods,General Materials,12-Jul,"2,021.80"
470965,PLANNED MAINTENANCE PENNINE LTD T/A PMP UTILITIES,Operations and Neighbourhoods,Operations and Neighbourhoods,General Materials,12-Jul,950
470965,Professional Quality Management Services Limited,Operations and Neighbourhoods,Operations and Neighbourhoods,Training Course Costs,12-Jul,"1,174.00"
470965,Saint-Gobain Building Distribution Limited t/a Benchmark Building Supplies,Civil Engineers,Director of Place,Debits Goods Received,12-Jul,626.65
470965,Saint-Gobain Building Distribution Limited t/a Benchmark Building Supplies,Operations and Neighbourhoods,Operations and Neighbourhoods,General Materials,12-Jul,103.01
470965,TARMAC CENTRAL LIMITED,Operations and Neighbourhoods,Operations and Neighbourhoods,General Materials,12-Jul,"9,605.91"
470965,UBU ENVIRONMENTAL LTD,Operations and Neighbourhoods,Operations and Neighbourhoods,Sub-contractor Services,12-Jul,"1,282.50"
470965,Valmont Stainton LTD,Civil Engineers,Director of Place,Debits Goods Received,12-Jul,"36,482.00"
470966,ABBEY INDUSTRIAL SOLUTIONS LTD,Operations and Neighbourhoods,Operations and Neighbourhoods,Sub-contractor Services,18-Jul,525.52
470966,AGGREGATE INDUSTRIES UK LIMITED,Operations and Neighbourhoods,Operations and Neighbourhoods,General Materials,18-Jul,"10,747.01"
470966,ALTITUDE SERVICES,Operations and Neighbourhoods,Operations and Neighbourhoods,General Materials,18-Jul,395.81
470966,ALTITUDE SERVICES,Operations and Neighbourhoods,Operations and Neighbourhoods,Sub-contractor Services,18-Jul,"13,030.12"
470966,BRAMHALL SURFACING LTD,Operations and Neighbourhoods,Operations and Neighbourhoods,Sub-contractor Services,18-Jul,"11,472.02"
470966,BRIDGE ELECTRICALSUPPLIES LTD,Civil Engineers,Director of Place,Debits Goods Received,18-Jul,850.7
470966,BRIDGE ELECTRICALSUPPLIES LTD,Operations and Neighbourhoods,Operations and Neighbourhoods,General Materials,18-Jul,100
470966,EAGLE CIVIL ENGINEERING LTD,Operations and Neighbourhoods,Operations and Neighbourhoods,General Materials,18-Jul,"24,253.73"
470966,EAGLE CIVIL ENGINEERING LTD,Operations and Neighbourhoods,Operations and Neighbourhoods,Sub-contractor Services,18-Jul,"15,191.50"
470966,MALLATITE LTD,Civil Engineers,Director of Place,Debits Goods Received,18-Jul,"32,731.20"
470966,MANCHESTER PLANT TRAINING LTD,Operations and Neighbourhoods,Operations and Neighbourhoods,Training Course Costs,18-Jul,"1,300.00"
470966,NORTHWEST UTILITY SOLUTIONS LTD,Operations and Neighbourhoods,Operations and Neighbourhoods,General Materials,18-Jul,300
470966,NORTHWEST UTILITY SOLUTIONS LTD,Operations and Neighbourhoods,Operations and Neighbourhoods,Sub-contractor Services,18-Jul,"5,850.00"
470966,P F CUSACK LTD,Civil Engineers,Director of Place,Debits Goods Received,18-Jul,549.1
470966,REACTEC LIMITED,Operations and Neighbourhoods,Operations and Neighbourhoods,General Materials,18-Jul,"2,268.00"
470966,ROWAN ASHWORTH LIMITED,Operations and Neighbourhoods,Operations and Neighbourhoods,Sub-contractor Services,18-Jul,"10,120.00"
470966,Saint-Gobain Building Distribution Limited t/a Benchmark Building Supplies,Operations and Neighbourhoods,Operations and Neighbourhoods,General Materials,18-Jul,40.79
470966,Saint-Gobain Building Distribution Limited t/a Benchmark Building Supplies,(blank),(blank),General Materials,18-Jul,"1,671.84"
470966,TARMAC CENTRAL LIMITED,Operations and Neighbourhoods,Operations and Neighbourhoods,General Materials,18-Jul,"1,988.60"
470966,TOTALLY LOCAL COMPANY LIMITED,Civil Engineers,Director of Place,Debits Goods Received,18-Jul,278.46
470966,TOTALLY LOCAL COMPANY LIMITED,Operations and Neighbourhoods,Operations and Neighbourhoods,Tipping Facility Fees,18-Jul,620
470966,UBU ENVIRONMENTAL LTD,Operations and Neighbourhoods,Operations and Neighbourhoods,Sub-contractor Services,18-Jul,900
470966,Valmont Stainton LTD,Civil Engineers,Director of Place,Debits Goods Received,18-Jul,"5,041.46"
470966,WILDE CONSULTING ENGINEERS,Operations and Neighbourhoods,Operations and Neighbourhoods,Sub-contractor Services,18-Jul,"4,313.25"
470967,AGGREGATE INDUSTRIES UK LIMITED,Operations and Neighbourhoods,Operations and Neighbourhoods,General Materials,25-Jul,"3,059.51"
470967,ALTITUDE SERVICES,Operations and Neighbourhoods,Operations and Neighbourhoods,Sub-contractor Services,25-Jul,"29,728.05"
470967,ARCO LIMITED,Civil Engineers,Director of Place,Debits Goods Received,25-Jul,75.6
470967,ARCO LIMITED,Operations and Neighbourhoods,Operations and Neighbourhoods,General Materials,25-Jul,764.89
470967,ASSA ABLOY LIMITED,Operations and Neighbourhoods,Operations and Neighbourhoods,General Materials,01-Aug,"1,345.00"
470967,BRAMHALL SURFACING LTD,Operations and Neighbourhoods,Operations and Neighbourhoods,Sub-contractor Services,25-Jul,"84,818.97"
470967,BROXAP LIMITED,Operations and Neighbourhoods,Operations and Neighbourhoods,General Materials,25-Jul,"3,558.00"
470967,CASTINGS SERVICES LTD,Civil Engineers,Director of Place,Debits Goods Received,25-Jul,"2,968.00"
470967,EAGLE CIVIL ENGINEERING LTD,Operations and Neighbourhoods,Operations and Neighbourhoods,General Materials,25-Jul,"6,246.67"
470967,EAGLE CIVIL ENGINEERING LTD,Operations and Neighbourhoods,Operations and Neighbourhoods,Sub-contractor Services,25-Jul,"3,312.50"
470967,ELECTRICITY NORTH WEST LTD,Operations and Neighbourhoods,Operations and Neighbourhoods,Sub-contractor Services,25-Jul,"1,444.32"
470967,FAIRWAY LANDSCAPES LTD,Operations and Neighbourhoods,Operations and Neighbourhoods,Sub-contractor Services,25-Jul,"7,240.00"
470967,INSTARMAC GROUP PLC,Civil Engineers,Director of Place,Debits Goods Received,25-Jul,"2,311.36"
470967,pro garden projects,Operations and Neighbourhoods,Operations and Neighbourhoods,Sub-contractor Services,25-Jul,550
470967,TARMAC CENTRAL LIMITED,Operations and Neighbourhoods,Operations and Neighbourhoods,General Materials,25-Jul,"8,113.17"
470967,TRAFFIC DIRECT LTD,Operations and Neighbourhoods,Operations and Neighbourhoods,General Materials,25-Jul,"1,100.00"
470967,TRAFFIC DIRECT LTD,Operations and Neighbourhoods,Operations and Neighbourhoods,Sub-contractor Services,25-Jul,"7,770.00"
470967,WOLSELEY UK LTD,Operations and Neighbourhoods,Operations and Neighbourhoods,General Materials,25-Jul,613.62
470968,AGGREGATE INDUSTRIES UK LIMITED,Operations and Neighbourhoods,Operations and Neighbourhoods,General Materials,03-Aug,"4,379.48"
470968,ALTITUDE SERVICES,Operations and Neighbourhoods,Operations and Neighbourhoods,Sub-contractor Services,03-Aug,"22,129.56"
470968,BRAMHALL SURFACING LTD,Operations and Neighbourhoods,Operations and Neighbourhoods,Sub-contractor Services,03-Aug,"14,397.01"
470968,BRIDGE ELECTRICALSUPPLIES LTD,Civil Engineers,Director of Place,Debits Goods Received,03-Aug,"1,380.00"
470968,BRIDGE ELECTRICALSUPPLIES LTD,Operations and Neighbourhoods,Operations and Neighbourhoods,General Materials,03-Aug,500
470968,COLAS LTD,Civil Engineers,Director of Place,Debits Goods Received,03-Aug,811.2
470968,EAGLE CIVIL ENGINEERING LTD,Operations and Neighbourhoods,Operations and Neighbourhoods,General Materials,03-Aug,"5,536.11"
470968,EAGLE CIVIL ENGINEERING LTD,Operations and Neighbourhoods,Operations and Neighbourhoods,Sub-contractor Services,03-Aug,124.8
470968,ELECTRICITY NORTH WEST LTD,Operations and Neighbourhoods,Operations and Neighbourhoods,Sub-contractor Services,03-Aug,"1,132.54"
470968,FAIRWAY LANDSCAPES LTD,Operations and Neighbourhoods,Operations and Neighbourhoods,Sub-contractor Services,03-Aug,"10,356.90"
470968,INDUSTRIAL NOISE AND VIBRATION CENTRE LIMITED,Operations and Neighbourhoods,Operations and Neighbourhoods,General Materials,03-Aug,"1,145.00"
470968,NORTHWEST UTILITY SOLUTIONS LTD,Operations and Neighbourhoods,Operations and Neighbourhoods,Sub-contractor Services,03-Aug,"9,075.00"
470968,TARMAC CENTRAL LIMITED,Operations and Neighbourhoods,Operations and Neighbourhoods,General Materials,03-Aug,"2,617.20"
470968,TRAFFIC DIRECT LTD,Operations and Neighbourhoods,Operations and Neighbourhoods,Sub-contractor Services,03-Aug,"10,800.00"
470968,UBU ENVIRONMENTAL LTD,Operations and Neighbourhoods,Operations and Neighbourhoods,Sub-contractor Services,03-Aug,"5,850.00"
470969,AGGREGATE INDUSTRIES UK LIMITED,Operations and Neighbourhoods,Operations and Neighbourhoods,General Materials,09-Aug,"1,705.72"
470969,ALTITUDE SERVICES,Operations and Neighbourhoods,Operations and Neighbourhoods,Sub-contractor Services,09-Aug,"7,186.49"
470969,BRAMHALL SURFACING LTD,Operations and Neighbourhoods,Operations and Neighbourhoods,Sub-contractor Services,09-Aug,"26,801.89"
470969,EAGLE CIVIL ENGINEERING LTD,Operations and Neighbourhoods,Operations and Neighbourhoods,Sub-contractor Services,09-Aug,"16,109.52"
470969,ELECTRICITY NORTH WEST LTD,Operations and Neighbourhoods,Operations and Neighbourhoods,Sub-contractor Services,09-Aug,"1,302.47"
470969,FAIRWAY LANDSCAPES LTD,Operations and Neighbourhoods,Operations and Neighbourhoods,Sub-contractor Services,09-Aug,"17,136.00"
470969,GREATER MANCHESTER COMBINED AUTHORITY,(blank),(blank),General Materials,09-Aug,"2,153.73"
470969,Holroyds Skip Hire Limited,Operations and Neighbourhoods,Operations and Neighbourhoods,General Materials,09-Aug,"2,750.00"
470969,HSS HIRE SERVICE GROUP  PLC,Operations and Neighbourhoods,Operations and Neighbourhoods,General Materials,09-Aug,855.82
470969,"Jeremy Benn Associates Limited, t/a JBA Consulting",Operations and Neighbourhoods,Operations and Neighbourhoods,General Materials,09-Aug,"7,129.21"
470969,Redacted Supplier,Operations and Neighbourhoods,Operations and Neighbourhoods,Training Course Costs,09-Aug,500
470969,NORTHWEST UTILITY SOLUTIONS LTD,Operations and Neighbourhoods,Operations and Neighbourhoods,Sub-contractor Services,09-Aug,"13,650.00"
470969,pro garden projects,Operations and Neighbourhoods,Operations and Neighbourhoods,Sub-contractor Services,09-Aug,"1,360.00"
470969,Professional Quality Management Services Limited,Operations and Neighbourhoods,Operations and Neighbourhoods,Training Course Costs,09-Aug,"1,448.50"
470969,Saint-Gobain Building Distribution Limited t/a Benchmark Building Supplies,Civil Engineers,Director of Place,Debits Goods Received,09-Aug,"3,495.36"
470969,TARMAC CENTRAL LIMITED,Operations and Neighbourhoods,Operations and Neighbourhoods,General Materials,09-Aug,"5,998.17"
470969,TOTALLY LOCAL COMPANY LIMITED,Operations and Neighbourhoods,Operations and Neighbourhoods,Tipping Facility Fees,09-Aug,720
470969,TRAFFIC DIRECT LTD,Operations and Neighbourhoods,Operations and Neighbourhoods,Sub-contractor Services,09-Aug,"4,025.00"
470969,WOTMIX LIMITED,Operations and Neighbourhoods,Operations and Neighbourhoods,General Materials,09-Aug,"1,100.00"
470970,ACORN LIGHTING SERVICES LTD,Operations and Neighbourhoods,Operations and Neighbourhoods,Sub-contractor Services,15-Aug,"25,520.00"
470970,AGGREGATE INDUSTRIES UK LIMITED,Operations and Neighbourhoods,Operations and Neighbourhoods,General Materials,15-Aug,"5,840.57"
470970,ARCO LIMITED,Civil Engineers,Director of Place,Debits Goods Received,15-Aug,544.7
470970,ARCO LIMITED,Operations and Neighbourhoods,Operations and Neighbourhoods,General Materials,15-Aug,451.74
470970,EAGLE CIVIL ENGINEERING LTD,Operations and Neighbourhoods,Operations and Neighbourhoods,Sub-contractor Services,15-Aug,"2,870.71"
470970,MANCHESTER PLANT TRAINING LTD,Operations and Neighbourhoods,Operations and Neighbourhoods,Training Course Costs,15-Aug,"3,510.00"
470970,MARCHINGTON STONE,Civil Engineers,Director of Place,Debits Goods Received,15-Aug,511.48
470970,pro garden projects,Operations and Neighbourhoods,Operations and Neighbourhoods,Sub-contractor Services,15-Aug,700
470970,Saint-Gobain Building Distribution Limited t/a Benchmark Building Supplies,Civil Engineers,Director of Place,Debits Goods Received,15-Aug,573.4
470970,Saint-Gobain Building Distribution Limited t/a Benchmark Building Supplies,Operations and Neighbourhoods,Operations and Neighbourhoods,General Materials,15-Aug,60.75
470970,TARMAC CENTRAL LIMITED,Operations and Neighbourhoods,Operations and Neighbourhoods,General Materials,15-Aug,"3,195.38"
470970,TRAFFIC DIRECT LTD,Operations and Neighbourhoods,Operations and Neighbourhoods,Sub-contractor Services,15-Aug,"16,580.00"
470970,UBU ENVIRONMENTAL LTD,Operations and Neighbourhoods,Operations and Neighbourhoods,Sub-contractor Services,15-Aug,900
470970,UniCourse Ltd,Operations and Neighbourhoods,Operations and Neighbourhoods,General Materials,15-Aug,"2,116.67"
470971,AGGREGATE INDUSTRIES UK LIMITED,Operations and Neighbourhoods,Operations and Neighbourhoods,General Materials,22-Aug,"9,145.91"
470971,ALTITUDE SERVICES,Operations and Neighbourhoods,Operations and Neighbourhoods,Sub-contractor Services,22-Aug,"1,485.00"
470971,ARCO LIMITED,Civil Engineers,Director of Place,Debits Goods Received,22-Aug,56.3
470971,ARCO LIMITED,Operations and Neighbourhoods,Operations and Neighbourhoods,General Materials,22-Aug,893.46
470971,BRAMHALL SURFACING LTD,Operations and Neighbourhoods,Operations and Neighbourhoods,Sub-contractor Services,22-Aug,"62,811.39"
470971,CASTINGS SERVICES LTD,Civil Engineers,Director of Place,Debits Goods Received,22-Aug,"1,360.00"
470971,COLAS LTD,Operations and Neighbourhoods,Operations and Neighbourhoods,General Materials,22-Aug,"2,964.00"
470971,EAGLE CIVIL ENGINEERING LTD,Operations and Neighbourhoods,Operations and Neighbourhoods,General Materials,22-Aug,"11,420.62"
470971,EAGLE CIVIL ENGINEERING LTD,Operations and Neighbourhoods,Operations and Neighbourhoods,Sub-contractor Services,22-Aug,"2,995.51"
470971,ENVIRONMENT AGENCY,Operations and Neighbourhoods,Operations and Neighbourhoods,General Materials,22-Aug,"3,960.55"
470971,FAIRWAY LANDSCAPES LTD,Operations and Neighbourhoods,Operations and Neighbourhoods,Sub-contractor Services,22-Aug,"1,127.75"
470971,KEN TAYLOR SUPPLIES LTD,Civil Engineers,Director of Place,Debits Goods Received,22-Aug,76.9
470971,KEN TAYLOR SUPPLIES LTD,Operations and Neighbourhoods,Operations and Neighbourhoods,General Materials,22-Aug,714.1
470971,LIMELIGHT SIGNS LIMITED,Engineers Client,Director of Place,General Materials,22-Aug,"1,383.15"
470971,Redacted Supplier,Operations and Neighbourhoods,Operations and Neighbourhoods,Training Course Costs,22-Aug,"1,250.00"
470971,NORTHWEST UTILITY SOLUTIONS LTD,Operations and Neighbourhoods,Operations and Neighbourhoods,Sub-contractor Services,22-Aug,"13,125.00"
470971,PG FABRICATIONS,Multiple Heads of Service,Multiple Strategic Directorates,Tax Retained Sub Contractors,22-Aug,-235.2
470971,PG FABRICATIONS,(blank),(blank),Plant & Equipment,22-Aug,"5,880.00"
470971,ROWAN ASHWORTH LIMITED,Operations and Neighbourhoods,Operations and Neighbourhoods,Sub-contractor Services,22-Aug,"9,200.00"
470971,TARMAC CENTRAL LIMITED,Operations and Neighbourhoods,Operations and Neighbourhoods,General Materials,22-Aug,"10,415.26"
470971,TRILOGY LTD,Operations and Neighbourhoods,Operations and Neighbourhoods,General Materials,22-Aug,590
470971,UBU ENVIRONMENTAL LTD,Operations and Neighbourhoods,Operations and Neighbourhoods,Sub-contractor Services,22-Aug,"2,250.00"
470971,WOLSELEY UK LTD,Civil Engineers,Director of Place,Debits Goods Received,22-Aug,"4,695.68"
470971,WOLSELEY UK LTD,Operations and Neighbourhoods,Operations and Neighbourhoods,General Materials,22-Aug,59.44
470972,AGGREGATE INDUSTRIES UK LIMITED,Operations and Neighbourhoods,Operations and Neighbourhoods,General Materials,30-Aug,"8,245.89"
470972,Connor Specialist Paving Ltd,Engineers Client,Director of Place,Sub-contractor Services,30-Aug,"10,660.00"
470972,FURNITUBES INTERNATIONAL LIMITED,Operations and Neighbourhoods,Operations and Neighbourhoods,General Materials,30-Aug,"2,180.40"
470972,INSTARMAC GROUP PLC,Civil Engineers,Director of Place,Debits Goods Received,30-Aug,"2,311.36"
470972,MALLATITE LTD,Civil Engineers,Director of Place,Debits Goods Received,30-Aug,"41,816.20"
470972,P F CUSACK LTD,Civil Engineers,Director of Place,Debits Goods Received,30-Aug,599.81
470972,TARMAC CENTRAL LIMITED,Operations and Neighbourhoods,Operations and Neighbourhoods,General Materials,30-Aug,"1,471.56"
470972,TRAFFIC DIRECT LTD,Operations and Neighbourhoods,Operations and Neighbourhoods,Sub-contractor Services,30-Aug,"8,825.00"
470972,UBU ENVIRONMENTAL LTD,Operations and Neighbourhoods,Operations and Neighbourhoods,Sub-contractor Services,30-Aug,"1,822.50"
470972,WOTMIX LIMITED,Operations and Neighbourhoods,Operations and Neighbourhoods,General Materials,30-Aug,"1,262.50"
470973,AGGREGATE INDUSTRIES UK LIMITED,Operations and Neighbourhoods,Operations and Neighbourhoods,General Materials,05-Sep,"5,558.12"
470973,ARCO LIMITED,Civil Engineers,Director of Place,Debits Goods Received,05-Sep,19.53
470973,ARCO LIMITED,Operations and Neighbourhoods,Operations and Neighbourhoods,General Materials,05-Sep,485.89
470973,EAGLE CIVIL ENGINEERING LTD,Operations and Neighbourhoods,Operations and Neighbourhoods,General Materials,05-Sep,"10,378.04"
470973,MULTEVO LIMITED,Operations and Neighbourhoods,Operations and Neighbourhoods,Sub-contractor Services,05-Sep,"3,182.00"
470973,NORTHWEST UTILITY SOLUTIONS LTD,Operations and Neighbourhoods,Operations and Neighbourhoods,Sub-contractor Services,05-Sep,"4,725.00"
470973,Saint-Gobain Building Distribution Limited t/a Benchmark Building Supplies,Operations and Neighbourhoods,Operations and Neighbourhoods,General Materials,05-Sep,74.28
470973,Saint-Gobain Building Distribution Limited t/a Benchmark Building Supplies,(blank),(blank),General Materials,05-Sep,"5,225.08"
470973,TARMAC CENTRAL LIMITED,Operations and Neighbourhoods,Operations and Neighbourhoods,General Materials,05-Sep,"2,786.17"
470973,TOTALLY LOCAL COMPANY LIMITED,Operations and Neighbourhoods,Operations and Neighbourhoods,Tipping Facility Fees,05-Sep,725
470973,TRAFFIC DIRECT LTD,Operations and Neighbourhoods,Operations and Neighbourhoods,General Materials,05-Sep,682.5
470973,UBU ENVIRONMENTAL LTD,Operations and Neighbourhoods,Operations and Neighbourhoods,Sub-contractor Services,05-Sep,"1,350.00"
470973,WILDE CONSULTING ENGINEERS,Operations and Neighbourhoods,Operations and Neighbourhoods,Sub-contractor Services,05-Sep,661.5
470974,AGGREGATE INDUSTRIES UK LIMITED,Operations and Neighbourhoods,Operations and Neighbourhoods,General Materials,12-Sep,"8,228.67"
470974,AIUK t/a SRM,Operations and Neighbourhoods,Operations and Neighbourhoods,General Materials,12-Sep,729.01
470974,ALTITUDE SERVICES,Operations and Neighbourhoods,Operations and Neighbourhoods,Sub-contractor Services,12-Sep,"9,325.17"
470974,ARCO LIMITED,Operations and Neighbourhoods,Operations and Neighbourhoods,General Materials,12-Sep,"1,507.52"
470974,BRAMHALL SURFACING LTD,Operations and Neighbourhoods,Operations and Neighbourhoods,Sub-contractor Services,12-Sep,"51,659.78"
470974,COLAS LTD,Civil Engineers,Director of Place,Debits Goods Received,12-Sep,763.2
470974,NORTHWEST UTILITY SOLUTIONS LTD,Operations and Neighbourhoods,Operations and Neighbourhoods,Sub-contractor Services,12-Sep,"12,225.00"
470974,pro garden projects,Operations and Neighbourhoods,Operations and Neighbourhoods,Sub-contractor Services,12-Sep,600
470974,TRAFFIC DIRECT LTD,Operations and Neighbourhoods,Operations and Neighbourhoods,Sub-contractor Services,12-Sep,"5,942.50"
470974,UNIVERSAL CONTAINER SERVICES LTD,Operations and Neighbourhoods,Operations and Neighbourhoods,General Materials,12-Sep,"3,540.00"
470974,Valmont Stainton LTD,Civil Engineers,Director of Place,Debits Goods Received,12-Sep,"42,745.73"
470975,ACORN LIGHTING SERVICES LTD,Operations and Neighbourhoods,Operations and Neighbourhoods,Sub-contractor Services,20-Sep,"15,235.00"
470975,AGGREGATE INDUSTRIES UK LIMITED,Operations and Neighbourhoods,Operations and Neighbourhoods,General Materials,20-Sep,"8,232.69"
470975,BRAMHALL SURFACING LTD,Operations and Neighbourhoods,Operations and Neighbourhoods,Sub-contractor Services,20-Sep,"49,316.01"
470975,FAIRWAY LANDSCAPES LTD,Operations and Neighbourhoods,Operations and Neighbourhoods,Sub-contractor Services,20-Sep,"2,358.00"
470975,Redacted Supplier,Operations and Neighbourhoods,Operations and Neighbourhoods,Training Course Costs,20-Sep,"1,500.00"
470975,pro garden projects,Operations and Neighbourhoods,Operations and Neighbourhoods,Sub-contractor Services,20-Sep,"1,900.00"
470975,ROWAN ASHWORTH LIMITED,Operations and Neighbourhoods,Operations and Neighbourhoods,Sub-contractor Services,20-Sep,"10,120.00"
470975,TRAFFIC DIRECT LTD,Operations and Neighbourhoods,Operations and Neighbourhoods,Sub-contractor Services,20-Sep,740
470976,AGGREGATE INDUSTRIES UK LIMITED,Operations and Neighbourhoods,Operations and Neighbourhoods,General Materials,26-Sep,"7,571.41"
470976,AIUK t/a SRM,Operations and Neighbourhoods,Operations and Neighbourhoods,General Materials,26-Sep,607.45
470976,ALTITUDE SERVICES,Operations and Neighbourhoods,Operations and Neighbourhoods,General Materials,26-Sep,484.57
470976,ALTITUDE SERVICES,Operations and Neighbourhoods,Operations and Neighbourhoods,Sub-contractor Services,26-Sep,"9,834.56"
470976,ARCO LIMITED,Civil Engineers,Director of Place,Debits Goods Received,26-Sep,611.7
470976,ARCO LIMITED,Operations and Neighbourhoods,Operations and Neighbourhoods,General Materials,26-Sep,450.86
470976,BROXAP LIMITED,Operations and Neighbourhoods,Operations and Neighbourhoods,General Materials,26-Sep,"21,136.00"
470976,CASTINGS SERVICES LTD,Civil Engineers,Director of Place,Debits Goods Received,26-Sep,"1,886.20"
470976,CASTINGS SERVICES LTD,Operations and Neighbourhoods,Operations and Neighbourhoods,General Materials,26-Sep,500
470976,EAGLE CIVIL ENGINEERING LTD,Operations and Neighbourhoods,Operations and Neighbourhoods,General Materials,26-Sep,"2,839.60"
470976,FAIRWAY LANDSCAPES LTD,Operations and Neighbourhoods,Operations and Neighbourhoods,Sub-contractor Services,26-Sep,"10,860.00"
470976,Holroyds Skip Hire Limited,Operations and Neighbourhoods,Operations and Neighbourhoods,General Materials,26-Sep,"1,712.50"
470976,KEN TAYLOR SUPPLIES LTD,Operations and Neighbourhoods,Operations and Neighbourhoods,General Materials,26-Sep,893.7
470976,MAIN STREET SIGNS LIMITED,Operations and Neighbourhoods,Operations and Neighbourhoods,General Materials,26-Sep,762.1
470976,NORTHWEST UTILITY SOLUTIONS LTD,Operations and Neighbourhoods,Operations and Neighbourhoods,Sub-contractor Services,26-Sep,"6,825.00"
470976,Rexel,Operations and Neighbourhoods,Operations and Neighbourhoods,General Materials,26-Sep,"5,560.00"
470976,Saint-Gobain Building Distribution Limited t/a Benchmark Building Supplies,Civil Engineers,Director of Place,Debits Goods Received,26-Sep,747.2
470976,Saint-Gobain Building Distribution Limited t/a Benchmark Building Supplies,Operations and Neighbourhoods,Operations and Neighbourhoods,General Materials,26-Sep,696.6
470976,WOTMIX LIMITED,Operations and Neighbourhoods,Operations and Neighbourhoods,General Materials,26-Sep,"1,458.50"
3250871,AEBI SCHMIDT UK LTD,Operations and Neighbourhoods,Operations and Neighbourhoods,General Materials,07-Jul,"1,550.28"
3250871,AEBI SCHMIDT UK LTD,Transport,Director of Place,Debits Goods Received,07-Jul,250.12
3250871,BRENNTAG UK LIMITED,Transport,Director of Place,Fuel / Ad Blu,07-Jul,"2,617.00"
3250871,BURNT TREE GROUP LIMITED,Operations and Neighbourhoods,Operations and Neighbourhoods,Additional Hire,07-Jul,"5,395.92"
3250871,BURNT TREE GROUP LIMITED,Operations and Neighbourhoods,Operations and Neighbourhoods,Workshop Recharges including Misuse & Damage Costs,07-Jul,233.32
3250871,DENNIS EAGLE LTD,Operations and Neighbourhoods,Operations and Neighbourhoods,General Materials,07-Jul,501.36
3250871,DENNIS EAGLE LTD,Operations and Neighbourhoods,Operations and Neighbourhoods,Sub-contractor Services,07-Jul,"7,812.05"
3250871,DENNIS EAGLE LTD,Transport,Director of Place,Debits Goods Received,07-Jul,"1,028.53"
3250871,F. R. SHARROCK LIMITED,Operations and Neighbourhoods,Operations and Neighbourhoods,General Materials,07-Jul,588.86
3250871,GARIC LTD,Operations and Neighbourhoods,Operations and Neighbourhoods,Additional Hire,07-Jul,"2,675.20"
3250871,HTF TYRE SERVICES LTD,Operations and Neighbourhoods,Operations and Neighbourhoods,Tyre Costs,07-Jul,"4,105.76"
3250871,LEEDS COMMERCIAL LTD T/A LC VEHICLE HIRE,Operations and Neighbourhoods,Operations and Neighbourhoods,Additional Hire,07-Jul,"1,540.00"
3250871,LEEDS COMMERCIAL LTD T/A LC VEHICLE HIRE,Operations and Neighbourhoods,Operations and Neighbourhoods,Replacement Hire,07-Jul,"1,320.00"
3250871,MOTUS COMMERCIALS OLDHAM,Operations and Neighbourhoods,Operations and Neighbourhoods,General Materials,07-Jul,"1,787.85"
3250871,MOTUS COMMERCIALS OLDHAM,Transport,Director of Place,Debits Goods Received,07-Jul,427.93
3250871,Quantum Production Ltd T/A Quantum Cryogenics,Operations and Neighbourhoods,Operations and Neighbourhoods,General Equipment Repair & Maintenance,07-Jul,624.65
3250871,RIVERSIDE TRUCK RENTAL LIMITED,Operations and Neighbourhoods,Operations and Neighbourhoods,Additional Hire,07-Jul,"8,316.00"
3250871,STOCKPORT TRUCK CENTRE LTD,Operations and Neighbourhoods,Operations and Neighbourhoods,Sub-contractor Services,07-Jul,360.06
3250871,STOCKPORT TRUCK CENTRE LTD,Operations and Neighbourhoods,Operations and Neighbourhoods,Vehicle Inspection/Testing Costs,07-Jul,330
3250871,Teletrac Navman UK LTD (in corporating Navman Wireless UK LTD),Operations and Neighbourhoods,Operations and Neighbourhoods,General Equipment Repair & Maintenance,07-Jul,"5,385.33"
3250871,TRUCTYRE ATS,Operations and Neighbourhoods,Operations and Neighbourhoods,Tyre Costs,07-Jul,"1,178.79"
3250871,WNV-Systems ltd,Operations and Neighbourhoods,Operations and Neighbourhoods,Building Repairs,07-Jul,613.28
3250872,AIR PRODUCTS PLC,Operations and Neighbourhoods,Operations and Neighbourhoods,General Equipment Repair & Maintenance,14-Jul,691.2
3250872,DENNIS EAGLE LTD,Operations and Neighbourhoods,Operations and Neighbourhoods,General Materials,14-Jul,"1,332.04"
3250872,DENNIS EAGLE LTD,Operations and Neighbourhoods,Operations and Neighbourhoods,Sub-contractor Services,14-Jul,221.25
3250872,DENNIS EAGLE LTD,Transport,Director of Place,Debits Goods Received,14-Jul,"1,129.23"
3250872,EVERQUIP GARAGE EQUIPMENT LTD,Operations and Neighbourhoods,Operations and Neighbourhoods,General Equipment Purchase,18-Jul,550
3250872,G B OILS TA CARLTON FUELS,Transport,Director of Place,Diesel Fuel,14-Jul,"29,264.62"
3250872,PETER DOUGLASS PLATFORMS,Operations and Neighbourhoods,Operations and Neighbourhoods,Replacement Hire,14-Jul,"3,256.00"
3250872,TRUCTYRE ATS,Operations and Neighbourhoods,Operations and Neighbourhoods,Tyre Costs,14-Jul,"1,157.67"
3250873,AEBI SCHMIDT UK LTD,Operations and Neighbourhoods,Operations and Neighbourhoods,General Materials,21-Jul,"2,043.27"
3250873,AEBI SCHMIDT UK LTD,Transport,Director of Place,Debits Goods Received,21-Jul,"1,412.53"
3250873,DENNIS EAGLE LTD,Operations and Neighbourhoods,Operations and Neighbourhoods,General Materials,21-Jul,"3,197.02"
3250873,DENNIS EAGLE LTD,Operations and Neighbourhoods,Operations and Neighbourhoods,Sub-contractor Services,21-Jul,"11,274.10"
3250873,DENNIS EAGLE LTD,Transport,Director of Place,Debits Goods Received,21-Jul,"2,931.59"
3250873,HTF TYRE SERVICES LTD,Operations and Neighbourhoods,Operations and Neighbourhoods,Tyre Costs,21-Jul,"2,322.60"
3250873,JOHNSTON SWEEPERS LTD,Operations and Neighbourhoods,Operations and Neighbourhoods,General Materials,21-Jul,"4,564.94"
3250873,LPW EUROPE LTD,Operations and Neighbourhoods,Operations and Neighbourhoods,Building Repairs,21-Jul,"3,799.05"
3250873,LPW EUROPE LTD,Operations and Neighbourhoods,Operations and Neighbourhoods,General Equipment Repair & Maintenance,21-Jul,630
3250873,MANCHESTER BREAKDOWN SERVICES LTD,Operations and Neighbourhoods,Operations and Neighbourhoods,Sub-contractor Services,21-Jul,525
3250873,MOTUS COMMERCIALS OLDHAM,Operations and Neighbourhoods,Operations and Neighbourhoods,General Materials,21-Jul,"1,704.74"
3250873,TRUCTYRE ATS,Operations and Neighbourhoods,Operations and Neighbourhoods,Tyre Costs,21-Jul,"1,762.63"
3250873,WASTE PARTS UK LTD,Operations and Neighbourhoods,Operations and Neighbourhoods,General Materials,21-Jul,434.76
3250873,WASTE PARTS UK LTD,Transport,Director of Place,Debits Goods Received,21-Jul,479.42
3250874,A & J MOTORSPARES,Operations and Neighbourhoods,Operations and Neighbourhoods,Consumable Materials,28-Jul,59.9
3250874,A & J MOTORSPARES,Operations and Neighbourhoods,Operations and Neighbourhoods,General Materials,28-Jul,724.58
3250874,A & J MOTORSPARES,Transport,Director of Place,Debits Goods Received,28-Jul,233.22
3250874,AEBI SCHMIDT UK LTD,Operations and Neighbourhoods,Operations and Neighbourhoods,General Materials,28-Jul,542.38
3250874,AEBI SCHMIDT UK LTD,Transport,Director of Place,Debits Goods Received,28-Jul,542.83
3250874,DENNIS EAGLE LTD,Operations and Neighbourhoods,Operations and Neighbourhoods,General Materials,28-Jul,"2,940.38"
3250874,DENNIS EAGLE LTD,Operations and Neighbourhoods,Operations and Neighbourhoods,Sub-contractor Services,28-Jul,"2,073.84"
3250874,DENNIS EAGLE LTD,Transport,Director of Place,Debits Goods Received,28-Jul,197.23
3250874,G B OILS TA CARLTON FUELS,Transport,Director of Place,Diesel Fuel,28-Jul,"46,456.50"
3250874,INDUSTRIAL & HYDRAULIC SERVICES,Operations and Neighbourhoods,Operations and Neighbourhoods,Sub-contractor Services,28-Jul,608.32
3250874,JDS TRUCKS LIMITED,Operations and Neighbourhoods,Operations and Neighbourhoods,General Materials,28-Jul,"1,075.67"
3250874,MOTUS COMMERCIALS OLDHAM,Operations and Neighbourhoods,Operations and Neighbourhoods,General Materials,28-Jul,"1,607.55"
3250874,MOTUS COMMERCIALS OLDHAM,Operations and Neighbourhoods,Operations and Neighbourhoods,Sub-contractor Services,28-Jul,672.31
3250874,PARTS PLUS OLDHAM,Operations and Neighbourhoods,Operations and Neighbourhoods,Consumable Materials,28-Jul,131.93
3250874,PARTS PLUS OLDHAM,Operations and Neighbourhoods,Operations and Neighbourhoods,General Equipment Purchase,28-Jul,877.87
3250874,TRUCTYRE ATS,Operations and Neighbourhoods,Operations and Neighbourhoods,Tyre Costs,28-Jul,"1,418.19"
3250874,WASTE PARTS UK LTD,Transport,Director of Place,Debits Goods Received,28-Jul,"1,245.56"
3250875,A & J MOTORSPARES,Operations and Neighbourhoods,Operations and Neighbourhoods,Building Repairs,04-Aug,584.84
3250875,A & J MOTORSPARES,Operations and Neighbourhoods,Operations and Neighbourhoods,Consumable Materials,04-Aug,142.88
3250875,A & J MOTORSPARES,Operations and Neighbourhoods,Operations and Neighbourhoods,General Materials,04-Aug,772.37
3250875,A & J MOTORSPARES,Transport,Director of Place,Debits Goods Received,04-Aug,113.46
3250875,DENNIS EAGLE LTD,Operations and Neighbourhoods,Operations and Neighbourhoods,General Materials,04-Aug,-461.92
3250875,DENNIS EAGLE LTD,Transport,Director of Place,Debits Goods Received,04-Aug,"2,050.02"
3250875,F. R. SHARROCK LIMITED,Operations and Neighbourhoods,Operations and Neighbourhoods,General Materials,04-Aug,165.56
3250875,F. R. SHARROCK LIMITED,Transport,Director of Place,Debits Goods Received,04-Aug,368.69
3250875,HTF TYRE SERVICES LTD,Operations and Neighbourhoods,Operations and Neighbourhoods,Tyre Costs,04-Aug,652.65
3250875,INDUSTRIAL & HYDRAULIC SERVICES,Operations and Neighbourhoods,Operations and Neighbourhoods,General Materials,04-Aug,135.37
3250875,INDUSTRIAL & HYDRAULIC SERVICES,Operations and Neighbourhoods,Operations and Neighbourhoods,Sub-contractor Services,04-Aug,"1,367.98"
3250875,JDS TRUCKS LIMITED,Operations and Neighbourhoods,Operations and Neighbourhoods,General Materials,04-Aug,"1,147.21"
3250875,LPW EUROPE LTD,Operations and Neighbourhoods,Operations and Neighbourhoods,Building Repairs,04-Aug,"2,343.87"
3250875,MOTUS COMMERCIALS OLDHAM,Operations and Neighbourhoods,Operations and Neighbourhoods,General Materials,04-Aug,251.54
3250875,MOTUS COMMERCIALS OLDHAM,Operations and Neighbourhoods,Operations and Neighbourhoods,Sub-contractor Services,04-Aug,500
3250875,MULTEVO LIMITED,Operations and Neighbourhoods,Operations and Neighbourhoods,General Materials,04-Aug,683.57
3250875,MULTEVO LIMITED,Operations and Neighbourhoods,Operations and Neighbourhoods,Sub-contractor Services,04-Aug,78.07
3250875,TAMESIDE TRANSMISSIONS,Operations and Neighbourhoods,Operations and Neighbourhoods,Sub-contractor Services,04-Aug,995
3250875,TERBERG MATEC UK LTD,Transport,Director of Place,Debits Goods Received,04-Aug,"1,823.93"
3250875,TRUCTYRE ATS,Operations and Neighbourhoods,Operations and Neighbourhoods,Tyre Costs,04-Aug,"1,074.56"
3250876,A & J MOTORSPARES,Operations and Neighbourhoods,Operations and Neighbourhoods,Consumable Materials,11-Aug,22.61
3250876,A & J MOTORSPARES,Operations and Neighbourhoods,Operations and Neighbourhoods,General Materials,11-Aug,989.26
3250876,AEBI SCHMIDT UK LTD,Transport,Director of Place,Debits Goods Received,11-Aug,"1,752.90"
3250876,BURNT TREE GROUP LIMITED,Operations and Neighbourhoods,Operations and Neighbourhoods,Additional Hire,11-Aug,"4,876.27"
3250876,BURNT TREE GROUP LIMITED,Operations and Neighbourhoods,Operations and Neighbourhoods,Workshop Recharges including Misuse & Damage Costs,11-Aug,551.72
3250876,DENNIS EAGLE LTD,Operations and Neighbourhoods,Operations and Neighbourhoods,General Materials,11-Aug,562.28
3250876,DENNIS EAGLE LTD,Operations and Neighbourhoods,Operations and Neighbourhoods,Sub-contractor Services,11-Aug,"7,812.05"
3250876,DENNIS EAGLE LTD,Transport,Director of Place,Debits Goods Received,11-Aug,521.78
3250876,G B OILS TA CARLTON FUELS,Transport,Director of Place,Diesel Fuel,11-Aug,"30,401.70"
3250876,GARIC LTD,Operations and Neighbourhoods,Operations and Neighbourhoods,Additional Hire,11-Aug,"2,553.60"
3250876,HTF TYRE SERVICES LTD,Operations and Neighbourhoods,Operations and Neighbourhoods,Tyre Costs,11-Aug,"1,402.91"
3250876,HYDRAULIC AND TRANSMISSION SERVICES LIMITED,Transport,Director of Place,Debits Goods Received,11-Aug,"1,104.00"
3250876,INDUSTRIAL & HYDRAULIC SERVICES,Operations and Neighbourhoods,Operations and Neighbourhoods,General Equipment Purchase,11-Aug,560.12
3250876,INDUSTRIAL & HYDRAULIC SERVICES,Operations and Neighbourhoods,Operations and Neighbourhoods,General Materials,11-Aug,267.61
3250876,JDS TRUCKS LIMITED,Operations and Neighbourhoods,Operations and Neighbourhoods,Sub-contractor Services,11-Aug,"2,257.40"
3250876,JOHNSONS APPARELMASTER LTD,Operations and Neighbourhoods,Operations and Neighbourhoods,Protective Clothing,11-Aug,658.12
3250876,LEEDS COMMERCIAL LTD T/A LC VEHICLE HIRE,Operations and Neighbourhoods,Operations and Neighbourhoods,Additional Hire,11-Aug,"1,690.00"
3250876,LEEDS COMMERCIAL LTD T/A LC VEHICLE HIRE,Operations and Neighbourhoods,Operations and Neighbourhoods,Replacement Hire,11-Aug,"1,260.00"
3250876,MULTEVO LIMITED,Operations and Neighbourhoods,Operations and Neighbourhoods,Sub-contractor Services,11-Aug,529.27
3250876,PETER DOUGLASS PLATFORMS,Operations and Neighbourhoods,Operations and Neighbourhoods,Additional Hire,11-Aug,"4,366.00"
3250876,RIVERSIDE TRUCK RENTAL LIMITED,Operations and Neighbourhoods,Operations and Neighbourhoods,Additional Hire,11-Aug,"7,938.00"
3250876,TRUCTYRE ATS,Operations and Neighbourhoods,Operations and Neighbourhoods,Tyre Costs,11-Aug,"1,070.60"
3250877,A & J MOTORSPARES,Operations and Neighbourhoods,Operations and Neighbourhoods,General Materials,18-Aug,871.38
3250877,A & J MOTORSPARES,Transport,Director of Place,Debits Goods Received,18-Aug,592.72
3250877,AEBI SCHMIDT UK LTD,Operations and Neighbourhoods,Operations and Neighbourhoods,General Materials,18-Aug,"1,047.97"
3250877,AEBI SCHMIDT UK LTD,Transport,Director of Place,Debits Goods Received,18-Aug,"1,094.02"
3250877,BURNT TREE GROUP LIMITED,Operations and Neighbourhoods,Operations and Neighbourhoods,Sub-contractor Services,18-Aug,860.72
3250877,G B OILS TA CARLTON FUELS,Transport,Director of Place,Diesel Fuel,18-Aug,"13,805.00"
3250877,JDS TRUCKS LIMITED,Operations and Neighbourhoods,Operations and Neighbourhoods,General Materials,18-Aug,"1,121.68"
3250877,JOHNSONS APPARELMASTER LTD,Operations and Neighbourhoods,Operations and Neighbourhoods,Protective Clothing,18-Aug,"1,410.05"
3250877,JOHNSTON SWEEPERS LTD,Operations and Neighbourhoods,Operations and Neighbourhoods,General Materials,18-Aug,774.53
3250877,MAN TRUCK AND BUS UK LIMITED,Operations and Neighbourhoods,Operations and Neighbourhoods,General Materials,18-Aug,817.5
3250877,PARTS PLUS OLDHAM,Operations and Neighbourhoods,Operations and Neighbourhoods,General Materials,18-Aug,591.84
3250877,RIVERSIDE TRUCK RENTAL LIMITED,Operations and Neighbourhoods,Operations and Neighbourhoods,Additional Hire,18-Aug,"1,791.00"
3250877,RIVERSIDE TRUCK RENTAL LIMITED,Operations and Neighbourhoods,Operations and Neighbourhoods,Workshop Recharges including Misuse & Damage Costs,18-Aug,150
3250877,TRISCAN SYSTEMS LIMITED,Operations and Neighbourhoods,Operations and Neighbourhoods,Computer Software,18-Aug,"1,767.31"
3250877,WASTE PARTS UK LTD,Operations and Neighbourhoods,Operations and Neighbourhoods,General Materials,18-Aug,143.88
3250877,WASTE PARTS UK LTD,Transport,Director of Place,Debits Goods Received,18-Aug,"2,997.53"
3250878,A & J MOTORSPARES,Operations and Neighbourhoods,Operations and Neighbourhoods,Consumable Materials,25-Aug,65.02
3250878,A & J MOTORSPARES,Operations and Neighbourhoods,Operations and Neighbourhoods,General Materials,25-Aug,906.34
3250878,AEBI SCHMIDT UK LTD,Transport,Director of Place,Debits Goods Received,25-Aug,"1,755.83"
3250878,BALMERS GM LTD,Operations and Neighbourhoods,Operations and Neighbourhoods,Replacement Hire,25-Aug,"1,980.00"
3250878,DENNIS EAGLE LTD,Operations and Neighbourhoods,Operations and Neighbourhoods,General Materials,25-Aug,214.16
3250878,DENNIS EAGLE LTD,Operations and Neighbourhoods,Operations and Neighbourhoods,Sub-contractor Services,25-Aug,787.39
3250878,DENNIS EAGLE LTD,Transport,Director of Place,Debits Goods Received,25-Aug,551.73
3250878,F. R. SHARROCK LIMITED,Operations and Neighbourhoods,Operations and Neighbourhoods,General Materials,25-Aug,52.01
3250878,F. R. SHARROCK LIMITED,Transport,Director of Place,Debits Goods Received,25-Aug,561.27
3250878,FREIGHT TRANSPORT ASSOCIATION,Operations and Neighbourhoods,Operations and Neighbourhoods,Training Course Costs,25-Aug,"1,359.00"
3250878,G B OILS TA CARLTON FUELS,Transport,Director of Place,Diesel Fuel,25-Aug,"27,814.22"
3250878,G B OILS TA CARLTON FUELS,Transport,Director of Place,Petrol Fuel,25-Aug,"3,156.27"
3250878,HTF TYRE SERVICES LTD,Operations and Neighbourhoods,Operations and Neighbourhoods,Tyre Costs,25-Aug,"1,257.90"
3250878,INDUSTRIAL & HYDRAULIC SERVICES,Operations and Neighbourhoods,Operations and Neighbourhoods,General Materials,25-Aug,222.57
3250878,INDUSTRIAL & HYDRAULIC SERVICES,Operations and Neighbourhoods,Operations and Neighbourhoods,Sub-contractor Services,25-Aug,"1,237.87"
3250878,MULTEVO LIMITED,Operations and Neighbourhoods,Operations and Neighbourhoods,Sub-contractor Services,25-Aug,720.69
3250878,TRISCAN SYSTEMS LIMITED,Operations and Neighbourhoods,Operations and Neighbourhoods,Computer Hardware Maintenance Costs,25-Aug,"1,450.00"
3250878,TRUCTYRE ATS,Operations and Neighbourhoods,Operations and Neighbourhoods,Tyre Costs,25-Aug,781.77
3250879,A & J MOTORSPARES,Operations and Neighbourhoods,Operations and Neighbourhoods,General Materials,01-Sep,616.25
3250879,A & J MOTORSPARES,Transport,Director of Place,Debits Goods Received,01-Sep,982.62
3250879,BRENNTAG UK LIMITED,Transport,Director of Place,Fuel / Ad Blu,01-Sep,"2,740.84"
3250879,D & J MACHINERY SALES,Operations and Neighbourhoods,Operations and Neighbourhoods,General Materials,01-Sep,671.17
3250879,DENNIS EAGLE LTD,Operations and Neighbourhoods,Operations and Neighbourhoods,General Materials,01-Sep,887.25
3250879,DENNIS EAGLE LTD,Operations and Neighbourhoods,Operations and Neighbourhoods,Sub-contractor Services,01-Sep,"7,812.05"
3250879,DENNIS EAGLE LTD,Transport,Director of Place,Debits Goods Received,01-Sep,"2,461.13"
3250879,F. R. SHARROCK LIMITED,Operations and Neighbourhoods,Operations and Neighbourhoods,General Materials,01-Sep,61.29
3250879,F. R. SHARROCK LIMITED,Transport,Director of Place,Debits Goods Received,01-Sep,787.13
3250879,INDUSTRIAL & HYDRAULIC SERVICES,Operations and Neighbourhoods,Operations and Neighbourhoods,General Materials,01-Sep,313.64
3250879,INDUSTRIAL & HYDRAULIC SERVICES,Operations and Neighbourhoods,Operations and Neighbourhoods,Sub-contractor Services,01-Sep,831.76
3250879,JOHNSTON SWEEPERS LTD,Operations and Neighbourhoods,Operations and Neighbourhoods,General Materials,01-Sep,"1,006.81"
3250879,PARTS PLUS OLDHAM,Operations and Neighbourhoods,Operations and Neighbourhoods,General Equipment Purchase,01-Sep,"1,271.50"
3250879,PARTS PLUS OLDHAM,Operations and Neighbourhoods,Operations and Neighbourhoods,General Materials,01-Sep,218.64
3250879,STOCKPORT TRUCK CENTRE LTD,Operations and Neighbourhoods,Operations and Neighbourhoods,Sub-contractor Services,01-Sep,233.44
3250879,STOCKPORT TRUCK CENTRE LTD,Operations and Neighbourhoods,Operations and Neighbourhoods,Vehicle Inspection/Testing Costs,01-Sep,275
3250879,TRUCTYRE ATS,Operations and Neighbourhoods,Operations and Neighbourhoods,Tyre Costs,01-Sep,"5,074.01"
3250879,WASTE PARTS UK LTD,Transport,Director of Place,Debits Goods Received,01-Sep,"2,587.62"
3250880,A & J MOTORSPARES,Operations and Neighbourhoods,Operations and Neighbourhoods,Consumable Materials,08-Sep,33.48
3250880,A & J MOTORSPARES,Operations and Neighbourhoods,Operations and Neighbourhoods,General Equipment Purchase,08-Sep,14.65
3250880,A & J MOTORSPARES,Operations and Neighbourhoods,Operations and Neighbourhoods,General Materials,08-Sep,"1,302.61"
3250880,A & J MOTORSPARES,Transport,Director of Place,Debits Goods Received,08-Sep,543.28
3250880,A.R.B. SALES LTD,Operations and Neighbourhoods,Operations and Neighbourhoods,General Materials,08-Sep,615.95
3250880,A.R.B. SALES LTD,Operations and Neighbourhoods,Operations and Neighbourhoods,Sub-contractor Services,08-Sep,264.5
3250880,AEBI SCHMIDT UK LTD,Transport,Director of Place,Debits Goods Received,08-Sep,570.49
3250880,BURNT TREE GROUP LIMITED,Operations and Neighbourhoods,Operations and Neighbourhoods,Additional Hire,08-Sep,"5,747.61"
3250880,BURNT TREE GROUP LIMITED,Operations and Neighbourhoods,Operations and Neighbourhoods,Workshop Recharges including Misuse & Damage Costs,08-Sep,200
3250880,DAWNSONGROUP ENVIROMENTAL MUNICIPAL CIVIL LIMITED T/A DAWSONGROUP EMC,Operations and Neighbourhoods,Operations and Neighbourhoods,Replacement Hire,08-Sep,"2,314.29"
3250880,DAWNSONGROUP ENVIROMENTAL MUNICIPAL CIVIL LIMITED T/A DAWSONGROUP EMC,Operations and Neighbourhoods,Operations and Neighbourhoods,Workshop Recharges including Misuse & Damage Costs,08-Sep,75
3250880,DENNIS EAGLE LTD,Operations and Neighbourhoods,Operations and Neighbourhoods,General Materials,08-Sep,260.91
3250880,DENNIS EAGLE LTD,Transport,Director of Place,Debits Goods Received,08-Sep,823.89
3250880,ECON ENGINEERING LTD,Transport,Director of Place,Debits Goods Received,08-Sep,564.1
3250880,FUCHS LUBRICANTS UK PLC,Transport,Director of Place,Debits Goods Received,08-Sep,"2,081.26"
3250880,G B OILS TA CARLTON FUELS,Transport,Director of Place,Diesel Fuel,08-Sep,"31,344.60"
3250880,GARIC LTD,Operations and Neighbourhoods,Operations and Neighbourhoods,Additional Hire,08-Sep,"2,796.80"
3250880,HSS HIRE SERVICE GROUP  PLC,Operations and Neighbourhoods,Operations and Neighbourhoods,Additional Hire,08-Sep,"1,567.50"
3250880,HSS HIRE SERVICE GROUP  PLC,Operations and Neighbourhoods,Operations and Neighbourhoods,Workshop Recharges including Misuse & Damage Costs,08-Sep,563.31
3250880,HTF TYRE SERVICES LTD,Operations and Neighbourhoods,Operations and Neighbourhoods,Tyre Costs,08-Sep,"3,416.65"
3250880,JOHNSONS APPARELMASTER LTD,Operations and Neighbourhoods,Operations and Neighbourhoods,Protective Clothing,08-Sep,827
3250880,LEEDS COMMERCIAL LTD T/A LC VEHICLE HIRE,Operations and Neighbourhoods,Operations and Neighbourhoods,Additional Hire,08-Sep,"2,325.00"
3250880,LEEDS COMMERCIAL LTD T/A LC VEHICLE HIRE,Operations and Neighbourhoods,Operations and Neighbourhoods,Replacement Hire,08-Sep,"1,380.00"
3250880,MOTUS COMMERCIALS OLDHAM,Operations and Neighbourhoods,Operations and Neighbourhoods,General Materials,08-Sep,904.49
3250880,PETER DOUGLASS PLATFORMS,Operations and Neighbourhoods,Operations and Neighbourhoods,Additional Hire,08-Sep,"3,404.00"
3250880,RIVERSIDE TRUCK RENTAL LIMITED,Operations and Neighbourhoods,Operations and Neighbourhoods,Additional Hire,08-Sep,"17,848.00"
3250880,TRUCTYRE ATS,Operations and Neighbourhoods,Operations and Neighbourhoods,Tyre Costs,08-Sep,"2,820.06"
3250881,A & J MOTORSPARES,Operations and Neighbourhoods,Operations and Neighbourhoods,General Equipment Repair & Maintenance,15-Sep,46.07
3250881,A & J MOTORSPARES,Operations and Neighbourhoods,Operations and Neighbourhoods,General Materials,15-Sep,824.48
3250881,A & J MOTORSPARES,Transport,Director of Place,Debits Goods Received,15-Sep,418.31
3250881,AEBI SCHMIDT UK LTD,Operations and Neighbourhoods,Operations and Neighbourhoods,General Materials,15-Sep,698.83
3250881,AEBI SCHMIDT UK LTD,Transport,Director of Place,Debits Goods Received,15-Sep,414.2
3250881,DENNIS EAGLE LTD,Operations and Neighbourhoods,Operations and Neighbourhoods,General Materials,15-Sep,"1,700.73"
3250881,DENNIS EAGLE LTD,Operations and Neighbourhoods,Operations and Neighbourhoods,Sub-contractor Services,15-Sep,398.75
3250881,DENNIS EAGLE LTD,Transport,Director of Place,Debits Goods Received,15-Sep,"2,348.85"
3250881,ECON ENGINEERING LTD,Transport,Director of Place,Debits Goods Received,15-Sep,"11,425.44"
3250881,G B OILS TA CARLTON FUELS,Transport,Director of Place,Diesel Fuel,15-Sep,"12,843.90"
3250881,HI-WAY COMPONENTS,Transport,Director of Place,Debits Goods Received,15-Sep,"1,128.50"
3250881,INNOVATIVE SAFETY SYSTEMS LIMITED,Operations and Neighbourhoods,Operations and Neighbourhoods,General Materials,15-Sep,"1,670.00"
3250881,INNOVATIVE SAFETY SYSTEMS LIMITED,Transport,Director of Place,Debits Goods Received,15-Sep,"1,065.60"
3250881,JDS TRUCKS LIMITED,Operations and Neighbourhoods,Operations and Neighbourhoods,General Materials,15-Sep,670.87
3250881,LPW EUROPE LTD,Operations and Neighbourhoods,Operations and Neighbourhoods,General Equipment Repair & Maintenance,15-Sep,"1,260.00"
3250881,MOTUS COMMERCIALS OLDHAM,Operations and Neighbourhoods,Operations and Neighbourhoods,General Materials,15-Sep,"2,302.22"
3250881,MOTUS COMMERCIALS OLDHAM,Transport,Director of Place,Debits Goods Received,15-Sep,381.47
3250881,T & C MOTOR PANELS LIMITED,Operations and Neighbourhoods,Operations and Neighbourhoods,Sub-contractor Services,15-Sep,750
3250881,TOLLAND PRECISION ENGINEERING LTD,Operations and Neighbourhoods,Operations and Neighbourhoods,General Materials,15-Sep,515
3250881,TRUCTYRE ATS,Operations and Neighbourhoods,Operations and Neighbourhoods,Tyre Costs,15-Sep,"1,894.00"
3250881,Vehicle Weighing Solutions Ltd,Operations and Neighbourhoods,Operations and Neighbourhoods,Sub-contractor Services,15-Sep,"1,286.62"
3250881,WASTE PARTS UK LTD,Operations and Neighbourhoods,Operations and Neighbourhoods,General Materials,15-Sep,675
3250882,DAWNSONGROUP ENVIROMENTAL MUNICIPAL CIVIL LIMITED T/A DAWSONGROUP EMC,Operations and Neighbourhoods,Operations and Neighbourhoods,Replacement Hire,22-Sep,"1,851.43"
3250882,DAWNSONGROUP ENVIROMENTAL MUNICIPAL CIVIL LIMITED T/A DAWSONGROUP EMC,Operations and Neighbourhoods,Operations and Neighbourhoods,Workshop Recharges including Misuse & Damage Costs,22-Sep,75
3250882,DENNIS EAGLE LTD,Operations and Neighbourhoods,Operations and Neighbourhoods,General Materials,22-Sep,593.01
3250882,G B OILS TA CARLTON FUELS,Transport,Director of Place,Diesel Fuel,22-Sep,"29,864.10"
3250882,TAMESIDE TRANSMISSIONS,Operations and Neighbourhoods,Operations and Neighbourhoods,Sub-contractor Services,22-Sep,850
3250882,TRUCTYRE ATS,Operations and Neighbourhoods,Operations and Neighbourhoods,Tyre Costs,22-Sep,"3,822.01"
3250883,A & J MOTORSPARES,Operations and Neighbourhoods,Operations and Neighbourhoods,General Materials,29-Sep,"1,482.74"
3250883,AUTOSMART INTERNATIONAL,Operations and Neighbourhoods,Operations and Neighbourhoods,Consumable Materials,29-Sep,119
3250883,AUTOSMART INTERNATIONAL,Operations and Neighbourhoods,Operations and Neighbourhoods,General Equipment Repair & Maintenance,29-Sep,529.34
3250883,DENNIS EAGLE LTD,Operations and Neighbourhoods,Operations and Neighbourhoods,General Materials,29-Sep,415.98
3250883,DENNIS EAGLE LTD,Operations and Neighbourhoods,Operations and Neighbourhoods,Sub-contractor Services,29-Sep,"11,521.66"
3250883,DENNIS EAGLE LTD,Transport,Director of Place,Debits Goods Received,29-Sep,69.81
3250883,ECON ENGINEERING LTD,Transport,Director of Place,Debits Goods Received,29-Sep,767.22
3250883,FUCHS LUBRICANTS UK PLC,Transport,Director of Place,Debits Goods Received,29-Sep,"1,571.64"
3250883,G B OILS TA CARLTON FUELS,Transport,Director of Place,Petrol Fuel,29-Sep,"3,045.50"
3250883,JDS TRUCKS LIMITED,Operations and Neighbourhoods,Operations and Neighbourhoods,General Materials,29-Sep,713.33
3250883,NCRQ LTD,Operations and Neighbourhoods,Operations and Neighbourhoods,Training Course Costs,29-Sep,"1,345.00"
3250883,PEAK PARTS,Operations and Neighbourhoods,Operations and Neighbourhoods,Consumable Materials,29-Sep,495.6
3250883,PEAK PARTS,Operations and Neighbourhoods,Operations and Neighbourhoods,General Materials,29-Sep,30.45
3250883,TRUCTYRE ATS,Operations and Neighbourhoods,Operations and Neighbourhoods,Tyre Costs,29-Sep,"1,491.62"
5424016,Redacted Supplier,Operations and Neighbourhoods,Operations and Neighbourhoods,Legal Fees,04-Aug,600
5424885,Redacted Supplier,Childrens Services,Children's Services,Professional Services,12-Aug,"1,170.00"
5442641,Rite Directions Ltd,Childrens Services,Children's Services,Living With Formal Support,09-Aug,"6,000.00"
5448739,Redacted Supplier,Childrens Services,Children's Services,Foster Carer Agency Fees,28-Sep,"2,866.64"
5451874,YMCA FAIRTHORNE GROUP,Childrens Services,Children's Services,"Activity (Materials, Trips)",18-Aug,"2,900.00"
5453088,SELECTAMARK SECURITY SYSTEMS PLC,Population Health,Population Health,Project Costs,18-Jul,686
5454291,PENNINE CARE NHS TRUST,Education,Children's Services,Professional Consultancy Services,06-Sep,"3,907.43"
5455201,Prospere Learning Trust,Education,Children's Services,Other Local Authorities Fees,24-Aug,"23,916.67"
5455202,Prospere Learning Trust,Education,Children's Services,Other Local Authorities Fees,24-Aug,"5,425.00"
5455219,Independent Together Limited,Childrens Services,Children's Services,Living With Formal Support,17-Aug,"6,285.71"
5455904,Timeout Childrens Homes Ltd,Childrens Services,Children's Services,Childrens Homes Outside Local Authority Fees,30-Aug,"9,131.36"
5456188,Jigsaw Homes Tameside,Childrens Services,Children's Services,Professional Services,12-Sep,"8,000.00"
5456303,INSPIRE COMMUNITY SERVICES LIMITED,Childrens Services,Children's Services,Living With Formal Support,30-Aug,"4,426.80"
5456305,INSPIRE COMMUNITY SERVICES LIMITED,Childrens Services,Children's Services,Living With Formal Support,30-Aug,"4,426.80"
5456305,INSPIRE COMMUNITY SERVICES LIMITED,Childrens Services,Children's Services,Semi independent - Weekly Living Allowances,30-Aug,262.26
5456369,DIRECT HEALTHCARE GROUP LTD,Housing,Director of Place,Mandatory Adaptations Grant (DFG),18-Jul,991.54
5456553,NEXUS MOVE LIMITED PREVIOUSLY RADIO CABS (ASHTON)LTD,Childrens Services,Children's Services,Transport Of Pupils,23-Sep,785
5456577,GREATER MANCHESTER COMBINED AUTHORITY,Operations and Neighbourhoods,Operations and Neighbourhoods,Passenger Transport Levy,13-Jul,"843,400.00"
5456579,GREATER MANCHESTER COMBINED AUTHORITY,Operations and Neighbourhoods,Operations and Neighbourhoods,Passenger Transport Levy,11-Aug,"843,400.00"
5456580,GREATER MANCHESTER COMBINED AUTHORITY,Operations and Neighbourhoods,Operations and Neighbourhoods,Passenger Transport Levy,13-Sep,"843,400.00"
5456639,GREATER MANCHESTER COMBINED AUTHORITY,Operations and Neighbourhoods,Operations and Neighbourhoods,Passenger Transport Levy,13-Sep,"691,300.00"
5456643,GREATER MANCHESTER COMBINED AUTHORITY,Operations and Neighbourhoods,Operations and Neighbourhoods,Passenger Transport Levy,13-Jul,"691,300.00"
5456651,GREATER MANCHESTER COMBINED AUTHORITY,Operations and Neighbourhoods,Operations and Neighbourhoods,Passenger Transport Levy,11-Aug,"691,300.00"
5456666,GREATER MANCHESTER COMBINED AUTHORITY,Operations and Neighbourhoods,Operations and Neighbourhoods,Waste Levy - Domestic Waste Disposal Costs,18-Jul,"1,271,000.00"
5456668,GREATER MANCHESTER COMBINED AUTHORITY,Operations and Neighbourhoods,Operations and Neighbourhoods,Waste Levy - Domestic Waste Disposal Costs,18-Aug,"1,271,000.00"
5456669,GREATER MANCHESTER COMBINED AUTHORITY,Operations and Neighbourhoods,Operations and Neighbourhoods,Waste Levy - Domestic Waste Disposal Costs,16-Sep,"1,271,000.00"
5456867,Redacted Supplier,Childrens Services,Children's Services,Nursery Services,28-Jul,676
5457020,DIRECT HEALTHCARE GROUP LTD,Housing,Director of Place,Mandatory Adaptations Grant (DFG),18-Jul,"6,434.94"
5457074,MASTER QUALITY HEALTHCARE SERVICES LTD,Adult Social Care,Adults,Homecare Fees,02-Aug,"1,298.70"
5457095,Bloom Procurement Services Limited,Corporate Costs,Corporate Costs,Professional Consultancy Services,13-Jul,"15,126.00"
5457339,ENVIRONMENT AGENCY,Operations and Neighbourhoods,Operations and Neighbourhoods,Land Drainage Levy,28-Sep,"30,698.78"
5458752,INSPIRE COMMUNITY SERVICES LIMITED,(blank),(blank),Living With Formal Support,30-Aug,"4,284.00"
5458752,INSPIRE COMMUNITY SERVICES LIMITED,(blank),(blank),Semi independent - Weekly Living Allowances,30-Aug,260.3
5458809,DIRECT HEALTHCARE GROUP LTD,Housing,Director of Place,Mandatory Adaptations Grant (DFG),18-Jul,"1,800.00"
5458927,SAFEHOUSES NORTH LIMITED,Childrens Services,Children's Services,Foster Carer Agency Fees,11-Jul,"3,891.47"
5459192,Restorative Social Care Services,Childrens Services,Children's Services,Living With Formal Support,04-Jul,"1,712.70"
5459193,Restorative Social Care Services,Childrens Services,Children's Services,Living With Formal Support,04-Jul,"3,171.30"
5459401,PROFILE SECURITY SERVICES LIMITED,Operations and Neighbourhoods,Operations and Neighbourhoods,Security Services,05-Jul,"3,792.24"
5459422,INSPIRE COMMUNITY SERVICES LIMITED,(blank),(blank),Living With Formal Support,30-Aug,"4,284.00"
5459422,INSPIRE COMMUNITY SERVICES LIMITED,(blank),(blank),Semi independent - Weekly Living Allowances,30-Aug,260.3
5459604,TEAM TEACH LTD,Childrens Services,Children's Services,Training Course Costs,06-Jul,"1,306.00"
5460154,DIRECT HEALTHCARE GROUP LTD,Housing,Director of Place,Mandatory Adaptations Grant (DFG),18-Jul,"1,341.23"
5460166,seca,Population Health,Population Health,Professional Services,29-Jul,976.9
5460279,TAMESIDE SPORTS TRUST,Childrens Services,Children's Services,Personal Needs Entertainments & Holidays,26-Jul,954.6
5460296,TAMESIDE SPORTS TRUST,Adult Social Care,Adults,Professional Services,08-Jul,"106,379.84"
5460298,TAMESIDE SPORTS TRUST,Childrens Services,Children's Services,Personal Needs Entertainments & Holidays,10-Aug,990.6
5460895,REED SPECIALIST RECRUITMENT LIMITED,Childrens Services,Children's Services,Homecare Fees,25-Jul,623.76
5460899,INSPIREDSPACES TAMESIDE LTD,Place,Growth,Building Repairs,04-Jul,"20,217.72"
5460911,SAFEHOUSES NORTH LIMITED,Childrens Services,Children's Services,Foster Carer Agency Fees,11-Jul,"2,982.89"
5461000,Crime Prevention Services Ltd,Adult Social Care,Adults,General Materials,18-Jul,995.47
5461004,DIRECT HEALTHCARE GROUP LTD,Housing,Director of Place,Mandatory Adaptations Grant (DFG),18-Jul,"4,720.20"
5461056,Greatwood House t/a Meridian Healthcare LTD,Contingency,Contingency,Nursing Home Long Stay Fees,25-Jul,"5,231.38"
5461057,Greatwood House t/a Meridian Healthcare LTD,Contingency,Contingency,Nursing Home Long Stay Fees,25-Jul,"13,500.35"
5461058,Greatwood House t/a Meridian Healthcare LTD,Contingency,Contingency,Nursing Home Long Stay Fees,25-Jul,"11,037.64"
5461255,THE FAMILY UNIT LTD,Adult Social Care,Adults,Residential Home Short Stay Fees,22-Jul,"5,714.28"
5461269,MANCHESTER METROPOLITAN UNIVERSITY,People and Workforce Development,Governance,Training Course Costs,03-Aug,800
5461270,MANCHESTER METROPOLITAN UNIVERSITY,People and Workforce Development,Governance,Training Course Costs,03-Aug,800
5461271,MANCHESTER METROPOLITAN UNIVERSITY,People and Workforce Development,Governance,Training Course Costs,03-Aug,800
5461285,NEW BRIDGE HORIZONS,Adult Social Care,Adults,Day Care Fees,04-Jul,"6,187.75"
5461290,Redacted Supplier,Education,Children's Services,Other Local Authorities Fees,24-Aug,"2,494.00"
5461291,Redacted Supplier,Education,Children's Services,Other Local Authorities Fees,24-Aug,"1,247.00"
5461342,Redacted Supplier,Education,Children's Services,Independent School Fees,07-Jul,"4,166.00"
5461343,Redacted Supplier,Education,Children's Services,Independent School Fees,07-Jul,"8,333.00"
5461350,Redacted Supplier,Childrens Services,Children's Services,Childrens Homes Outside Local Authority Fees,07-Jul,"3,621.30"
5461399,Redacted Supplier,Childrens Services,Children's Services,Professional Services,12-Aug,"1,302.00"
5461594,REED SPECIALIST RECRUITMENT LIMITED,Adult Social Care,Adults,Homecare Fees,26-Jul,727.72
5461736,Restorative Social Care Services,Childrens Services,Children's Services,Living With Formal Support,04-Jul,"3,277.01"
5461829,INSPIRE COMMUNITY SERVICES LIMITED,(blank),(blank),Living With Formal Support,30-Aug,"4,426.80"
5461829,INSPIRE COMMUNITY SERVICES LIMITED,(blank),(blank),Semi independent - Weekly Living Allowances,30-Aug,270.32
5461830,INSPIRE COMMUNITY SERVICES LIMITED,(blank),(blank),Living With Formal Support,30-Aug,"4,426.80"
5461830,INSPIRE COMMUNITY SERVICES LIMITED,(blank),(blank),Semi independent - Weekly Living Allowances,30-Aug,270.32
5461837,Redacted Supplier,Childrens Services,Children's Services,Foster Carer Agency Fees,01-Jul,"3,420.00"
5461838,Redacted Supplier,Childrens Services,Children's Services,Foster Carer Agency Fees,01-Jul,"3,420.00"
5461839,Redacted Supplier,Childrens Services,Children's Services,Foster Carer Agency Fees,01-Jul,"3,835.80"
5461840,Redacted Supplier,Childrens Services,Children's Services,Foster Carer Agency Fees,01-Jul,"3,385.80"
5461841,Redacted Supplier,Childrens Services,Children's Services,Foster Carer Agency Fees,01-Jul,"3,420.00"
5461842,Redacted Supplier,Childrens Services,Children's Services,Foster Carer Agency Fees,01-Jul,"6,555.09"
5461843,Redacted Supplier,Childrens Services,Children's Services,Foster Carer Agency Fees,01-Jul,"6,555.09"
5461844,Redacted Supplier,Childrens Services,Children's Services,Foster Carer Agency Fees,01-Jul,"3,548.12"
5461845,Redacted Supplier,Childrens Services,Children's Services,Foster Carer Agency Fees,01-Jul,"3,686.96"
5461846,PARALLEL PARENTS,Childrens Services,Children's Services,Foster Carer Agency Fees,01-Jul,"3,615.22"
5461847,PARALLEL PARENTS,Childrens Services,Children's Services,Foster Carer Agency Fees,01-Jul,"3,039.55"
5461848,PARALLEL PARENTS,Childrens Services,Children's Services,Foster Carer Agency Fees,01-Jul,"3,145.57"
5461849,PARALLEL PARENTS,Childrens Services,Children's Services,Foster Carer Agency Fees,01-Jul,"3,174.40"
5461850,PARALLEL PARENTS,Childrens Services,Children's Services,Foster Carer Agency Fees,01-Jul,"4,030.00"
5461851,PARALLEL PARENTS,Childrens Services,Children's Services,Foster Carer Agency Fees,01-Jul,"3,145.57"
5461853,PARALLEL PARENTS,Childrens Services,Children's Services,Foster Carer Agency Fees,01-Jul,"3,431.70"
5461860,PARALLEL PARENTS,Childrens Services,Children's Services,Foster Carer Agency Fees,01-Jul,"3,431.70"
5461861,PARALLEL PARENTS,Childrens Services,Children's Services,Foster Carer Agency Fees,01-Jul,"4,030.00"
5461862,PARALLEL PARENTS,Childrens Services,Children's Services,Foster Carer Agency Fees,01-Jul,"4,030.00"
5461863,PARALLEL PARENTS,Childrens Services,Children's Services,Foster Carer Agency Fees,01-Jul,"3,807.42"
5461864,PARALLEL PARENTS,Childrens Services,Children's Services,Foster Carer Agency Fees,01-Jul,"4,030.00"
5461865,PARALLEL PARENTS,Childrens Services,Children's Services,Foster Carer Agency Fees,01-Jul,"3,483.78"
5461866,PARALLEL PARENTS,Childrens Services,Children's Services,Foster Carer Agency Fees,01-Jul,"3,827.88"
5461867,PARALLEL PARENTS,Childrens Services,Children's Services,Foster Carer Agency Fees,01-Jul,"4,029.69"
5461868,PARALLEL PARENTS,Childrens Services,Children's Services,Foster Carer Agency Fees,01-Jul,"3,807.42"
5461900,Redacted Supplier,Childrens Services,Children's Services,Childrens Homes Outside Local Authority Fees,01-Jul,"11,713.66"
5461901,Redacted Supplier,Childrens Services,Children's Services,Childrens Homes Outside Local Authority Fees,01-Jul,"18,267.68"
5461902,Redacted Supplier,Childrens Services,Children's Services,Childrens Homes Outside Local Authority Fees,01-Jul,"12,377.99"
5461903,Redacted Supplier,Childrens Services,Children's Services,Childrens Homes Outside Local Authority Fees,01-Jul,"12,377.99"
5461904,Redacted Supplier,Childrens Services,Children's Services,Childrens Homes Outside Local Authority Fees,01-Jul,"14,503.04"
5461910,PARALLEL PARENTS,Childrens Services,Children's Services,Foster Carer Agency Fees,01-Jul,"3,615.22"
5461911,PARALLEL PARENTS,Childrens Services,Children's Services,Foster Carer Agency Fees,01-Jul,"3,908.48"
5461942,NEW BRIDGE HORIZONS,Adult Social Care,Adults,Day Care Fees,01-Jul,"1,625.00"
5461943,NEW BRIDGE HORIZONS,Adult Social Care,Adults,Day Care Fees,01-Jul,"1,800.00"
5461945,NEW BRIDGE HORIZONS,Adult Social Care,Adults,Day Care Fees,01-Jul,"2,335.00"
5461947,NEW BRIDGE HORIZONS,Adult Social Care,Adults,Day Care Fees,01-Jul,"1,868.00"
5461948,NEW BRIDGE HORIZONS,Adult Social Care,Adults,Day Care Fees,01-Jul,"1,016.00"
5461950,Care 4 Every Child Ltd,Childrens Services,Children's Services,Childrens Homes Outside Local Authority Fees,01-Jul,"25,118.86"
5461952,OCTAGON CARE LTD,Childrens Services,Children's Services,Childrens Homes Outside Local Authority Fees,05-Jul,"22,285.71"
5461964,Kids Planet Dukinfield,Childrens Services,Children's Services,Nursery Services,08-Jul,645.51
5461965,Kids Planet Dukinfield,Childrens Services,Children's Services,Nursery Services,08-Jul,686.3
5461966,CITY CARE SOLUTIONS LTD,Adult Social Care,Adults,Homecare Fees,01-Jul,"1,985.76"
5461986,PARALLEL PARENTS,Childrens Services,Children's Services,Foster Carer Agency Fees,01-Jul,"2,883.93"
5461991,BARNARDO'S,Childrens Services,Children's Services,Foster Carer Agency Fees,18-Jul,"7,528.57"
5462012,XMA LIMITED,Digital Tameside,Finance & IT,IT Equipment,01-Jul,"11,775.00"
5462018,Mazars LLP,Finance,Finance & IT,Fees,01-Jul,"20,215.00"
5462019,BY THE BRIDGE NORTH WEST LTD,Childrens Services,Children's Services,Foster Carer Agency Fees,01-Jul,"4,050.00"
5462020,BY THE BRIDGE NORTH WEST LTD,Childrens Services,Children's Services,Foster Carer Agency Fees,01-Jul,"4,611.30"
5462021,BY THE BRIDGE NORTH WEST LTD,Childrens Services,Children's Services,Foster Carer Agency Fees,08-Jul,"3,850.65"
5462022,Redacted Supplier,Childrens Services,Children's Services,Foster Carer Agency Fees,18-Aug,"3,520.55"
5462023,Redacted Supplier,Childrens Services,Children's Services,Foster Carer Agency Fees,01-Jul,"3,383.65"
5462024,BY THE BRIDGE NORTH WEST LTD,Childrens Services,Children's Services,Foster Carer Agency Fees,06-Jul,"3,827.25"
5462025,Redacted Supplier,Childrens Services,Children's Services,Foster Carer Agency Fees,01-Jul,"3,520.55"
5462026,BY THE BRIDGE NORTH WEST LTD,Childrens Services,Children's Services,Foster Carer Agency Fees,06-Jul,"3,850.65"
5462027,BY THE BRIDGE NORTH WEST LTD,Childrens Services,Children's Services,Foster Carer Agency Fees,01-Jul,"4,650.00"
5462029,BY THE BRIDGE NORTH WEST LTD,Childrens Services,Children's Services,Foster Carer Agency Fees,06-Jul,"3,167.10"
5462030,BY THE BRIDGE NORTH WEST LTD,Childrens Services,Children's Services,Foster Carer Agency Fees,01-Jul,"4,480.80"
5462031,TREASURED MEMORIES LTD,Operations and Neighbourhoods,Operations and Neighbourhoods,Plaques,01-Jul,878.65
5462032,BY THE BRIDGE NORTH WEST LTD,Childrens Services,Children's Services,Foster Carer Agency Fees,06-Jul,"4,161.00"
5462034,BY THE BRIDGE NORTH WEST LTD,Childrens Services,Children's Services,Foster Carer Agency Fees,06-Jul,"3,165.00"
5462035,PROGRESS CARE HOUSING ASSOCIATION LIMITED,Adult Social Care,Adults,Non-Authority Accommodation Rental,01-Jul,"5,893.62"
5462036,BY THE BRIDGE NORTH WEST LTD,Childrens Services,Children's Services,Foster Carer Agency Fees,06-Jul,"3,165.00"
5462038,BY THE BRIDGE NORTH WEST LTD,Childrens Services,Children's Services,Foster Carer Agency Fees,06-Jul,"4,068.36"
5462039,BY THE BRIDGE NORTH WEST LTD,Childrens Services,Children's Services,Foster Carer Agency Fees,06-Jul,"4,417.50"
5462040,BY THE BRIDGE NORTH WEST LTD,Childrens Services,Children's Services,Foster Carer Agency Fees,01-Jul,"4,161.00"
5462041,DVLA - ACCOUNTS RECEIVABLE,Hosted Services,Hosted Services,Professional Services,01-Jul,520
5462042,BY THE BRIDGE NORTH WEST LTD,Childrens Services,Children's Services,Foster Carer Agency Fees,01-Jul,"1,941.68"
5462043,Redacted Supplier,Childrens Services,Children's Services,Childrens Homes Outside Local Authority Fees,01-Jul,"13,148.42"
5462045,Redacted Supplier,Childrens Services,Children's Services,Childrens Homes Outside Local Authority Fees,01-Jul,"13,817.14"
5462046,Redacted Supplier,Childrens Services,Children's Services,Childrens Homes Outside Local Authority Fees,01-Jul,"13,817.14"
5462050,Redacted Supplier,Childrens Services,Children's Services,Childrens Homes Outside Local Authority Fees,01-Jul,"17,571.43"
5462051,Redacted Supplier,Childrens Services,Children's Services,Childrens Homes Outside Local Authority Fees,01-Jul,"17,571.43"
5462052,Redacted Supplier,Childrens Services,Children's Services,Childrens Homes Outside Local Authority Fees,01-Jul,"17,571.43"
5462054,Home Instead Senior Care,Adult Social Care,Adults,Homecare Fees,01-Jul,"1,655.55"
5462055,Constellia Public Ltd,Place,Growth,Professional Consultancy Services,01-Jul,"8,400.00"
5462056,NEWSTAY MANCHESTER TRADING LTD T/A MARRIOTT VICTORIA & ALBERT HOTEL,Hosted Services,Hosted Services,Event Related Activity,01-Aug,"4,500.00"
5462060,Futures Hfd Ltd,(blank),(blank),Living With Formal Support,01-Jul,"5,785.71"
5462060,Futures Hfd Ltd,(blank),(blank),Semi independent - Weekly Living Allowances,01-Jul,249.57
5462061,Your Chapter Limited,Childrens Services,Children's Services,Foster Carer Agency Fees,01-Jul,"4,757.10"
5462062,Your Chapter Limited,Childrens Services,Children's Services,Foster Carer Agency Fees,01-Jul,"6,942.90"
5462063,Your Chapter Limited,Childrens Services,Children's Services,Foster Carer Agency Fees,01-Jul,"3,100.50"
5462064,Your Chapter Limited,Childrens Services,Children's Services,Foster Carer Agency Fees,01-Jul,"5,292.90"
5462065,Your Chapter Limited,Childrens Services,Children's Services,Foster Carer Agency Fees,01-Jul,"3,085.80"
5462066,Your Chapter Limited,Childrens Services,Children's Services,Foster Carer Agency Fees,01-Jul,"3,217.74"
5462067,Your Chapter Limited,Childrens Services,Children's Services,Foster Carer Agency Fees,01-Jul,"3,217.74"
5462098,Redacted Supplier,Childrens Services,Children's Services,Living With Formal Support,01-Jul,"4,169.81"
5462104,Redacted Supplier,Childrens Services,Children's Services,Living With Formal Support,01-Jul,"4,139.74"
5462107,Curo Salus Limited,Childrens Services,Children's Services,Childrens Homes Outside Local Authority Fees,01-Jul,"3,277.00"
5462108,Curo Salus Limited,Childrens Services,Children's Services,Childrens Homes Outside Local Authority Fees,01-Jul,"24,852.00"
5462113,ASKEWS  AND HOLTS LIBRARY SERVICES LTD,Operations and Neighbourhoods,Operations and Neighbourhoods,Purchase Books,01-Jul,"1,669.45"
5462116,Your Chapter Limited,Childrens Services,Children's Services,Foster Carer Agency Fees,01-Jul,"3,217.74"
5462118,Your Chapter Limited,Childrens Services,Children's Services,Foster Carer Agency Fees,01-Jul,"3,339.90"
5462159,SECOND CHANCE HOUSING,Adult Social Care,Adults,Professional Bailiff Services,01-Jul,"1,222.50"
5462160,N A Brown Ltd,Operations and Neighbourhoods,Operations and Neighbourhoods,General Materials,01-Jul,"2,309.37"
5462161,Redacted Supplier,Childrens Services,Children's Services,Foster Carer Agency Fees,06-Jul,"3,609.33"
5462164,SALISBURY SUPPORT 4 AUTISM,Adult Social Care,Adults,Joint Loans Store Fee,07-Jul,"14,592.01"
5462167,Redacted Supplier,Childrens Services,Children's Services,Foster Carer Agency Fees,01-Jul,"3,737.49"
5462168,Redacted Supplier,Childrens Services,Children's Services,Childrens Homes Outside Local Authority Fees,01-Jul,"14,357.10"
5462170,Redacted Supplier,Adult Social Care,Adults,Day Care Fees,01-Jul,"2,335.23"
5462173,REED SPECIALIST RECRUITMENT LIMITED,Adult Social Care,Adults,Homecare Fees,26-Jul,545.79
5462174,Home Instead Senior Care,Adult Social Care,Adults,Homecare Fees,01-Jul,"1,656.05"
5462178,REED SPECIALIST RECRUITMENT LIMITED,Adult Social Care,Adults,Homecare Fees,26-Jul,623.76
5462180,Redacted Supplier,Childrens Services,Children's Services,Foster Carer Agency Fees,01-Jul,"3,981.33"
5462181,PETERS LIMITED (PETERS BOOKSELLING SERVICES),Operations and Neighbourhoods,Operations and Neighbourhoods,Purchase Books,01-Jul,"6,514.85"
5462183,SAFEHOUSES NORTH LIMITED,Childrens Services,Children's Services,Foster Carer Agency Fees,01-Jul,"2,510.63"
5462184,POSITIVE STEPS OLDHAM,Place,Growth,Professional Services,01-Jul,"38,219.18"
5462189,ANIMAL WARDENS LTD,Operations and Neighbourhoods,Operations and Neighbourhoods,Professional Consultancy Services,04-Jul,707
5462193,Pre Paid Financial Services,Adult Social Care,Adults,Subscriptions,01-Jul,"1,056.95"
5462194,Eve Deasy t/a Eve Jane Deasy PR,(blank),(blank),Professional Entertainment Services,01-Jul,500
5462195,BOTTOMLINE TECHNOLOGIES LIMITED,Digital Tameside,Finance & IT,Computer Software,01-Jul,"21,385.70"
5462201,EXPERIAN LTD,Hosted Services,Hosted Services,Professional Services,01-Jul,"9,000.00"
5462204,Inicio Group Ltd,Childrens Services,Children's Services,Living With Formal Support,01-Jul,"3,407.13"
5462207,Inicio Group Ltd,Childrens Services,Children's Services,Living With Formal Support,01-Jul,"4,264.29"
5462209,HELPFUL INVESTMENTS LIMITED,(blank),(blank),Living With Formal Support,01-Jul,"12,857.10"
5462209,HELPFUL INVESTMENTS LIMITED,(blank),(blank),Semi independent - Weekly Living Allowances,01-Jul,236.8
5462227,RHOMBUS CARE GROUP LIMITED,Adult Social Care,Adults,Homecare Fees,01-Jul,"34,603.50"
5462230,ASKEWS  AND HOLTS LIBRARY SERVICES LTD,Operations and Neighbourhoods,Operations and Neighbourhoods,Purchase Books,01-Jul,"1,588.54"
5462232,ADCS LTD,Childrens Services,Children's Services,Professional Services,01-Jul,875
5462232,ADCS LTD,Education,Children's Services,Professional Services,01-Jul,387
5462233,Redacted Supplier,Childrens Services,Children's Services,Foster Carer Agency Fees,06-Jul,"3,218.42"
5462234,Redacted Supplier,Childrens Services,Children's Services,Foster Carer Agency Fees,06-Jul,"3,116.74"
5462237,Redacted Supplier,Childrens Services,Children's Services,Foster Carer Agency Fees,06-Jul,"3,365.84"
5462238,Redacted Supplier,Childrens Services,Children's Services,Foster Carer Agency Fees,06-Jul,"3,319.02"
5462239,Redacted Supplier,Childrens Services,Children's Services,Foster Carer Agency Fees,06-Jul,"3,116.74"
5462240,Redacted Supplier,Childrens Services,Children's Services,Foster Carer Agency Fees,06-Jul,"3,208.50"
5462243,Silent Adventures Ltd,(blank),(blank),Professional Entertainment Services,06-Jul,500
5462246,ELECTORAL REFORM SERVICES,Governance,Governance,Printing And Stationery,06-Jul,728.97
5462249,Vernon House T/A Kedleston (WoodGrove Childcare) Limited,Childrens Services,Children's Services,Childrens Homes Outside Local Authority Fees,15-Jul,"33,857.14"
5462252,Optima Health and Social Care Ltd,Childrens Services,Children's Services,Homecare Fees,06-Jul,684
5462259,Greatwood House t/a Meridian Healthcare LTD,Contingency,Contingency,Nursing Home Long Stay Fees,25-Jul,"19,290.14"
5462260,Greatwood House t/a Meridian Healthcare LTD,Contingency,Contingency,Nursing Home Long Stay Fees,25-Jul,"3,679.21"
5462261,Next Stage 4 Life Limited,Childrens Services,Children's Services,Childrens Homes Outside Local Authority Fees,06-Jul,"10,928.55"
5462262,Next Stage 4 Life Limited,Childrens Services,Children's Services,Childrens Homes Outside Local Authority Fees,06-Jul,"18,285.76"
5462270,Pell Frischmann Consultants Ltd,Engineers Client,Director of Place,External  Consultants,06-Jul,"2,224.77"
5462271,Pell Frischmann Consultants Ltd,(blank),(blank),External  Consultants,06-Jul,"3,262.95"
5462272,Community Integrated Care,Adult Social Care,Adults,Homecare Fees,06-Jul,"20,550.95"
5462273,Redacted Supplier,Digital Tameside,Finance & IT,Computer Software,06-Jul,"14,333.91"
5462274,Community Integrated Care,Adult Social Care,Adults,Homecare Fees,06-Jul,"20,550.95"
5462277,BY THE BRIDGE NORTH WEST LTD,Childrens Services,Children's Services,Foster Carer Agency Fees,06-Jul,746.8
5462288,YOUNG PEOPLE FIRST LIMITED,Childrens Services,Children's Services,Living With Formal Support,06-Jul,"1,225.00"
5462290,YOUNG PEOPLE FIRST LIMITED,(blank),(blank),Living With Formal Support,06-Jul,"2,100.00"
5462291,YOUNG PEOPLE FIRST LIMITED,(blank),(blank),Living With Formal Support,06-Jul,"2,100.00"
5462294,Redacted Supplier,Digital Tameside,Finance & IT,Computer Software,06-Jul,"2,518.10"
5462303,SafeNet Domestic Abuse Services Ltd,Childrens Services,Children's Services,Living With Formal Support,06-Jul,"1,936.39"
5462305,DAISY CORPORATE SERVICES TRADING LIMITED,Digital Tameside,Finance & IT,Telephone Landline Costs,06-Jul,"1,033.06"
5462312,Stute Theatre CIC,Operations and Neighbourhoods,Operations and Neighbourhoods,Professional Entertainment Services,06-Jul,600
5462314,BTTLR LIMITED T/A Connecting Hands Healthcare Services,Childrens Services,Children's Services,Childrens Homes Outside Local Authority Fees,06-Jul,"11,300.00"
5462315,CW Advisory Services LLP,Place,Growth,Professional Services,06-Jul,"2,029.17"
5462316,Zeno Ltd,Adult Social Care,Adults,Homecare Fees,06-Jul,"10,800.26"
5462318,APS Group,Operations and Neighbourhoods,Operations and Neighbourhoods,Professional Medical Services,06-Jul,"1,270.29"
5462319,Proludic LTD,Operations and Neighbourhoods,Operations and Neighbourhoods,General Materials,06-Jul,777.83
5462320,ABLE CARE AND SUPPORT SERVICES LTD,Adult Social Care,Adults,Homecare Fees,01-Jul,"21,579.25"
5462322,Beacon Counselling,People and Workforce Development,Governance,Professional Medical Services,06-Jul,"3,520.00"
5462324,Point North Brand Co Ltd t/a Michelle Lyons,(blank),(blank),Artwork,06-Jul,"1,050.00"
5462326,Supporting Futures LTD,Childrens Services,Children's Services,Childrens Homes Outside Local Authority Fees,08-Jul,"25,239.01"
5462327,TUDOR (UK) LTD T/A TUDOR ENVIRONMENTAL,Operations and Neighbourhoods,Operations and Neighbourhoods,General Materials,06-Jul,"1,587.85"
5462329,iCare Solutions,Adult Social Care,Adults,Homecare Fees,06-Jul,"16,604.15"
5462353,Bright Opportunities,Adult Social Care,Adults,Day Care Fees,07-Jul,"1,545.00"
5462355,Bright Opportunities,Adult Social Care,Adults,Day Care Fees,07-Jul,"1,845.00"
5462405,SAFEHOUSES NORTH LIMITED,Childrens Services,Children's Services,Foster Carer Agency Fees,07-Jul,"3,765.94"
5462407,SAFEHOUSES NORTH LIMITED,Childrens Services,Children's Services,Foster Carer Agency Fees,11-Jul,"3,765.94"
5462410,Redacted Supplier,Housing,Director of Place,Mandatory Adaptations Grant (DFG),21-Jul,"7,215.71"
5462414,MOSSCARE HOUSING LTD,Adult Social Care,Adults,Non-Authority Accommodation Rental,07-Jul,"30,900.52"
5462415,CAPITA BUSINESS SERVICES LIMITED,Exchequer,Governance,Computer Software Maintenance Costs,07-Jul,"5,000.00"
5462416,iCare Solutions,Adult Social Care,Adults,Homecare Fees,07-Jul,"15,744.24"
5462417,iCare Solutions,Adult Social Care,Adults,Homecare Fees,07-Jul,"15,983.60"
5462418,iCare Solutions,Adult Social Care,Adults,Homecare Fees,07-Jul,"15,964.39"
5462419,THE ADOLESCENT & CHILDRENS TRUST,Childrens Services,Children's Services,Foster Carer Agency Fees,07-Jul,"3,029.94"
5462420,THE ADOLESCENT & CHILDRENS TRUST,Childrens Services,Children's Services,Foster Carer Agency Fees,07-Jul,"3,170.22"
5462421,THE ADOLESCENT & CHILDRENS TRUST,Childrens Services,Children's Services,Foster Carer Agency Fees,07-Jul,"3,170.22"
5462423,SURECARE TAMESIDE & OLDHAM,Adult Social Care,Adults,Homecare Fees,07-Jul,"4,277.36"
5462424,Next Stage 4 Life Limited,Childrens Services,Children's Services,Childrens Homes Outside Local Authority Fees,07-Jul,"34,285.80"
5462428,Redacted Supplier,Education,Children's Services,Independent School Fees,07-Jul,"3,545.46"
5462429,Redacted Supplier,Education,Children's Services,Independent School Fees,07-Jul,"3,545.46"
5462430,Redacted Supplier,Corporate Costs,Corporate Costs,Professional Services,07-Jul,"2,734.00"
5462434,EQUIFAX LTD,Hosted Services,Hosted Services,Professional Services,07-Jul,"1,267.86"
5462435,Engage Support LTD,Adult Social Care,Adults,Homecare Fees,08-Jul,"9,180.00"
5462436,Redacted Supplier,Childrens Services,Children's Services,Foster Carer Agency Fees,07-Jul,"3,919.02"
5462437,Pavement Testing Services LTD,Engineers Client,Director of Place,Survey/Surveyors Fees,07-Jul,"2,831.25"
5462438,CREATIVE SUPPORT LTD,Adult Social Care,Adults,Homecare Fees,07-Jul,"14,442.29"
5462439,CREATIVE SUPPORT LTD,Adult Social Care,Adults,Homecare Fees,07-Jul,"13,303.51"
5462440,CREATIVE SUPPORT LTD,Adult Social Care,Adults,Homecare Fees,07-Jul,"14,347.73"
5462448,Transunion Internal UK Limited,Hosted Services,Hosted Services,Professional Services,07-Jul,"16,800.00"
5462449,Transunion Internal UK Limited,Hosted Services,Hosted Services,Professional Services,07-Jul,"1,517.60"
5462472,Redacted Supplier,Childrens Services,Children's Services,Childrens Homes Outside Local Authority Fees,07-Jul,"3,728.70"
5462473,AMARA CARE LTD,Adult Social Care,Adults,Homecare Fees,01-Jul,"11,141.40"
5462474,Redacted Supplier,Childrens Services,Children's Services,Childrens Homes Outside Local Authority Fees,07-Jul,"30,428.70"
5462475,Redacted Supplier,Childrens Services,Children's Services,Foster Carer Agency Fees,01-Jul,"3,311.06"
5462476,Redacted Supplier,Childrens Services,Children's Services,Childrens Homes Outside Local Authority Fees,07-Jul,"31,442.99"
5462478,Redacted Supplier,Childrens Services,Children's Services,Childrens Homes Outside Local Authority Fees,07-Jul,"30,428.70"
5462479,Redacted Supplier,Childrens Services,Children's Services,Childrens Homes Outside Local Authority Fees,07-Jul,"3,728.70"
5462481,Redacted Supplier,Childrens Services,Children's Services,Childrens Homes Outside Local Authority Fees,07-Jul,"3,852.99"
5462488,Redacted Supplier,Childrens Services,Children's Services,Foster Carer Agency Fees,08-Jul,"4,185.00"
5462489,Redacted Supplier,Childrens Services,Children's Services,Foster Carer Agency Fees,08-Jul,"4,185.00"
5462490,Redacted Supplier,Childrens Services,Children's Services,Foster Carer Agency Fees,08-Jul,"4,101.30"
5462491,Redacted Supplier,Childrens Services,Children's Services,Foster Carer Agency Fees,08-Jul,"3,993.69"
5462492,Redacted Supplier,Childrens Services,Children's Services,Foster Carer Agency Fees,08-Jul,"3,844.03"
5462493,Redacted Supplier,Childrens Services,Children's Services,Foster Carer Agency Fees,08-Jul,"3,922.86"
5462495,Redacted Supplier,Childrens Services,Children's Services,Foster Carer Agency Fees,08-Jul,"3,794.00"
5462496,CITY LIFT SERVICES (NW) LTD,Adult Social Care,Adults,General Equipment Repair & Maintenance,06-Jul,"1,335.00"
5462497,Redacted Supplier,Childrens Services,Children's Services,Foster Carer Agency Fees,08-Jul,"3,792.97"
5462500,Redacted Supplier,Childrens Services,Children's Services,Foster Carer Agency Fees,08-Jul,"3,604.06"
5462502,Redacted Supplier,Childrens Services,Children's Services,Foster Carer Agency Fees,08-Jul,"3,405.17"
5462504,Redacted Supplier,Childrens Services,Children's Services,Foster Carer Agency Fees,08-Jul,"3,534.00"
5462505,Redacted Supplier,Childrens Services,Children's Services,Foster Carer Agency Fees,08-Jul,"3,463.32"
5462506,Redacted Supplier,Childrens Services,Children's Services,Foster Carer Agency Fees,08-Jul,"3,534.00"
5462507,Redacted Supplier,Childrens Services,Children's Services,Foster Carer Agency Fees,08-Jul,"5,301.00"
5462508,Redacted Supplier,Childrens Services,Children's Services,Foster Carer Agency Fees,08-Jul,"3,557.10"
5462509,Redacted Supplier,Childrens Services,Children's Services,Foster Carer Agency Fees,08-Jul,"1,979.57"
5462510,Redacted Supplier,Childrens Services,Children's Services,Foster Carer Agency Fees,08-Jul,"5,546.79"
5462511,Redacted Supplier,Childrens Services,Children's Services,Foster Carer Agency Fees,08-Jul,"3,195.99"
5462512,Redacted Supplier,Childrens Services,Children's Services,Foster Carer Agency Fees,08-Jul,"2,890.76"
5462515,Redacted Supplier,Childrens Services,Children's Services,Foster Carer Agency Fees,08-Jul,760.48
5462520,HC Assessment Ltd,Adult Social Care,Adults,Professional Services,08-Jul,"1,790.95"
5462521,Great Minds Together Ltd,Childrens Services,Children's Services,Childrens Homes Outside Local Authority Fees,20-Jul,"110,167.50"
5462522,Great Minds Together Ltd,Childrens Services,Children's Services,Childrens Homes Outside Local Authority Fees,20-Jul,"123,245.00"
5462527,Redacted Supplier,Childrens Services,Children's Services,Foster Carer Agency Fees,08-Jul,"1,694.98"
5462528,Redacted Supplier,Childrens Services,Children's Services,Foster Carer Agency Fees,08-Jul,863.03
5462536,G2V Recruitment Group Limited t/a Vivid Resourcing,Place,Growth,Recruitment Campaign,08-Jul,"5,200.00"
5462538,CIVICA UK LIMITED,Governance,Governance,IT Equipment,20-Jul,"29,000.00"
5462540,BOOTS UK LTD,Population Health,Population Health,Local Enhanced Services,08-Jul,"1,026.65"
5462545,MANCHESTER METROPOLITAN UNIVERSITY,People and Workforce Development,Governance,Training Course Costs,03-Aug,800
5462546,Redacted Supplier,Childrens Services,Children's Services,Foster Carer Agency Fees,08-Jul,"3,290.32"
5462547,Redacted Supplier,Childrens Services,Children's Services,Foster Carer Agency Fees,08-Jul,"2,829.77"
5462548,Redacted Supplier,Childrens Services,Children's Services,Foster Carer Agency Fees,08-Jul,"2,829.77"
5462549,Redacted Supplier,Childrens Services,Children's Services,Foster Carer Agency Fees,08-Jul,"3,236.75"
5462550,Redacted Supplier,Childrens Services,Children's Services,Foster Carer Agency Fees,08-Jul,"3,244.16"
5462551,Redacted Supplier,Childrens Services,Children's Services,Foster Carer Agency Fees,08-Jul,"3,244.16"
5462552,Redacted Supplier,Childrens Services,Children's Services,Foster Carer Agency Fees,08-Jul,"2,890.76"
5462557,HC Assessment Ltd,Adult Social Care,Adults,Professional Services,08-Jul,"3,354.45"
5462560,YORKSHIRE PURCHASING ORGANISATION,Childrens Services,Children's Services,Educational Equipment,08-Jul,524.3
5462565,Redacted Supplier,Adult Social Care,Adults,Homecare Fees,08-Jul,"4,095.72"
5462569,Furniture Resource Centre Ltd,Operations and Neighbourhoods,Operations and Neighbourhoods,"Fixtures, Fittings & Furniture Purchase",08-Jul,596.86
5462586,PRIME ACTIVE COMMUNITIES CIC,Operations and Neighbourhoods,Operations and Neighbourhoods,Grants to Organisations,08-Jul,"28,000.00"
5462588,QA LIMITED,Hosted Services,Hosted Services,Training Course Costs,08-Jul,685.7
5462589,ORACLE CARE LTD,Childrens Services,Children's Services,Childrens Homes Outside Local Authority Fees,08-Jul,"19,500.00"
5462594,HSL Compliance Ltd,Operations and Neighbourhoods,Operations and Neighbourhoods,Professional Services,08-Jul,800
5462595,PROFILE SECURITY SERVICES LIMITED,Operations and Neighbourhoods,Operations and Neighbourhoods,Security Services,08-Jul,"3,950.25"
5462608,PNL Tools Ltd t/a Armstrong,Digital Tameside,Finance & IT,Computer Software,08-Jul,"1,290.10"
5462612,PENNINE CARE IN PATIENT SERVS PRIORY,Education,Children's Services,Independent School Fees,15-Jul,"1,125.00"
5462613,PENNINE CARE IN PATIENT SERVS PRIORY,Education,Children's Services,Independent School Fees,15-Aug,"2,812.50"
5462614,PENNINE CARE IN PATIENT SERVS PRIORY,Education,Children's Services,Independent School Fees,15-Aug,"1,593.75"
5462615,Redacted Supplier,Education,Children's Services,Independent School Fees,15-Aug,843.75
5462621,CACI LTD,Policy and Communications,Governance,Computer Software,08-Jul,"8,415.00"
5462632,Redacted Supplier,Childrens Services,Children's Services,Foster Carer Agency Fees,08-Jul,"3,819.84"
5462633,Global Grooves,(blank),(blank),Professional Entertainment Services,08-Jul,"3,000.00"
5462665,iCare Solutions,Adult Social Care,Adults,Homecare Fees,08-Jul,"17,136.05"
5462666,iCare Solutions,Adult Social Care,Adults,Homecare Fees,08-Jul,"16,975.00"
5462667,CHILD ACTION NORTHWEST,Adult Social Care,Adults,Professional Services,08-Jul,849.67
5462668,CHILD ACTION NORTHWEST,Childrens Services,Children's Services,Professional Services,08-Jul,885.04
5462669,Brooks and Brooks Recruitment Ltd,Childrens Services,Children's Services,Childrens Homes Outside Local Authority Fees,06-Jul,"12,600.00"
5462670,iCare Solutions,Adult Social Care,Adults,Homecare Fees,08-Jul,"16,661.77"
5462671,iCare Solutions,Adult Social Care,Adults,Homecare Fees,08-Jul,"16,289.44"
5462672,Brooks and Brooks Recruitment Ltd,Childrens Services,Children's Services,Childrens Homes Outside Local Authority Fees,06-Jul,"16,800.00"
5462673,Brooks and Brooks Recruitment Ltd,Childrens Services,Children's Services,Childrens Homes Outside Local Authority Fees,06-Jul,"12,600.00"
5462674,CARE NEEDS LTD,Adult Social Care,Adults,Homecare Fees,08-Jul,"4,537.50"
5462675,CARE NEEDS LTD,Adult Social Care,Adults,Homecare Fees,08-Jul,"4,350.00"
5462676,YOUNG PEOPLE FIRST LIMITED,(blank),(blank),Living With Formal Support,08-Jul,"1,800.00"
5462677,YOUNG PEOPLE FIRST LIMITED,(blank),(blank),Living With Formal Support,08-Jul,"2,100.00"
5462678,CARE NEEDS LTD,Adult Social Care,Adults,Homecare Fees,08-Jul,"4,312.50"
5462679,CARE NEEDS LTD,Adult Social Care,Adults,Homecare Fees,08-Jul,"4,650.00"
5462680,YOUNG PEOPLE FIRST LIMITED,Childrens Services,Children's Services,Living With Formal Support,08-Jul,"1,225.00"
5462681,I Care GB Ltd,Adult Social Care,Adults,Homecare Fees,08-Jul,"20,039.21"
5462691,CLEAPSS,Education,Children's Services,Subscriptions,25-Jul,"2,536.42"
5462692,ROUTES HEALTHCARE (NORTH) LIMITED,Adult Social Care,Adults,Homecare Fees,08-Jul,"5,956.09"
5462693,CLOVERLEAF ADVOCACY 2000 LTD,Adult Social Care,Adults,Professional Services,08-Jul,"13,350.82"
5462695,ULVERSCROFT LARGE PRINT  BOOKS LTD,Operations and Neighbourhoods,Operations and Neighbourhoods,Purchase Books,08-Jul,"1,242.57"
5462697,Next Stage 'A Way Forward' Youth Development LTD,(blank),(blank),Living With Formal Support,08-Jul,"4,805.00"
5462717,SAPPHIRE PARTNERSHIP,Adult Social Care,Adults,Day Care Fees,01-Jul,650
5462729,Redacted Supplier,Operations and Neighbourhoods,Operations and Neighbourhoods,General Materials,08-Jul,"5,785.48"
5462734,TURNING POINT SERVICES LIMITED,Adult Social Care,Adults,Homecare Fees,08-Jul,"189,967.80"
5462747,REED SPECIALIST RECRUITMENT LIMITED,Adult Social Care,Adults,Homecare Fees,26-Jul,526.2
5462751,REED SPECIALIST RECRUITMENT LIMITED,Adult Social Care,Adults,Homecare Fees,26-Jul,631.44
5462759,ACORN CARE & EDUCATION LTD (SALES),Adult Social Care,Adults,Residential Home Short Stay Fees,08-Jul,"18,535.71"
5462775,CREATIVE SUPPORT LTD,Adult Social Care,Adults,Independent Sector Care Fees,01-Jul,"89,008.07"
5462777,CREATIVE SUPPORT LTD,Adult Social Care,Adults,Independent Sector Care Fees,01-Jul,"89,008.07"
5462782,Redacted Supplier,Operations and Neighbourhoods,Operations and Neighbourhoods,Other Accommodation Related Costs,08-Jul,"5,250.00"
5462795,KAYAN SOCIAL CARE LIMITED,Adult Social Care,Adults,Professional Services,08-Jul,"1,438.00"
5462797,KAYAN SOCIAL CARE LIMITED,Adult Social Care,Adults,Professional Services,08-Jul,"1,432.60"
5462799,Access UK Ltd,Adult Social Care,Adults,Computer Software Maintenance Costs,01-Jul,"2,529.36"
5462801,PAYPARTNERS LTD (MONTHLY),Adult Social Care,Adults,Sub-contractor Services,08-Jul,"6,416.67"
5462802,POSTURITE (UK) LIMITED,Adult Social Care,Adults,Professional Services,08-Jul,"1,749.84"
5462803,Innovative Arts Centre CIC,(blank),(blank),Community Based Activities,08-Jul,"1,660.00"
5462804,XMA LIMITED,Digital Tameside,Finance & IT,IT Equipment,08-Jul,981.38
5462806,XMA LIMITED,Digital Tameside,Finance & IT,IT Equipment,08-Jul,"3,925.52"
5462813,Amore Social Care Ltd,Childrens Services,Children's Services,Childrens Homes Outside Local Authority Fees,11-Jul,"9,498.04"
5462817,Paramount Children's Services,Childrens Services,Children's Services,Childrens Homes Outside Local Authority Fees,13-Jul,"19,980.00"
5462819,Paramount Children's Services,Childrens Services,Children's Services,Childrens Homes Outside Local Authority Fees,13-Jul,"37,475.00"
5462842,ASKEWS  AND HOLTS LIBRARY SERVICES LTD,Operations and Neighbourhoods,Operations and Neighbourhoods,Purchase Books,13-Jul,"3,379.22"
5462849,Redacted Supplier,Childrens Services,Children's Services,Foster Carer Agency Fees,13-Jul,"3,642.90"
5462850,Redacted Supplier,Childrens Services,Children's Services,Foster Carer Agency Fees,13-Jul,"3,229.80"
5462851,Redacted Supplier,Childrens Services,Children's Services,Foster Carer Agency Fees,13-Jul,"3,071.40"
5462852,Redacted Supplier,Childrens Services,Children's Services,Foster Carer Agency Fees,13-Jul,"3,094.20"
5462853,Redacted Supplier,Childrens Services,Children's Services,Foster Carer Agency Fees,13-Jul,"3,112.80"
5462854,Redacted Supplier,Childrens Services,Children's Services,Foster Carer Agency Fees,13-Jul,"3,171.30"
5462855,Redacted Supplier,Childrens Services,Children's Services,Foster Carer Agency Fees,13-Jul,"3,156.00"
5462858,Redacted Supplier,Childrens Services,Children's Services,Foster Carer Agency Fees,13-Jul,"3,156.00"
5462859,Redacted Supplier,Childrens Services,Children's Services,Foster Carer Agency Fees,13-Jul,"3,322.20"
5462860,Redacted Supplier,Childrens Services,Children's Services,Foster Carer Agency Fees,13-Jul,"3,322.20"
5462861,Redacted Supplier,Childrens Services,Children's Services,Foster Carer Agency Fees,13-Jul,"3,246.90"
5462864,Future Focused Care,Childrens Services,Children's Services,Childrens Homes Outside Local Authority Fees,13-Jul,"19,264.20"
5462874,CHESHIRE HOMECARE T/A SURECARE CENTRAL CHESHIRE,Adult Social Care,Adults,Homecare Fees,13-Jul,"1,260.00"
5462887,TRINITY COLLEGE LONDON,Education,Children's Services,Examination Fees,13-Jul,540
5462890,Environmental Engineering Partnership Ltd T/A E3P,(blank),(blank),Fees,13-Jul,"3,050.00"
5462893,Environmental Engineering Partnership Ltd T/A E3P,(blank),(blank),Fees,13-Jul,"1,100.00"
5462896,ALPHA BIOLABS,Childrens Services,Children's Services,Professional Medical Services,13-Jul,"1,735.00"
5462900,Tynetec a group brand of Legrand Electric Ltd,Adult Social Care,Adults,IT Equipment,13-Jul,"3,943.80"
5462902,HILL DICKINSON LLP,Place,Growth,Legal Fees,13-Jul,"1,215.00"
5462903,Randstad Solutions Ltd,Education,Children's Services,Agency Staff,13-Jul,543.92
5462904,Sandcastle Care LTD,Childrens Services,Children's Services,Childrens Homes Outside Local Authority Fees,13-Jul,"25,692.86"
5462905,Sandcastle Care LTD,Childrens Services,Children's Services,Childrens Homes Outside Local Authority Fees,13-Jul,"25,692.86"
5462907,Sandcastle Care LTD,Childrens Services,Children's Services,Childrens Homes Outside Local Authority Fees,13-Jul,"18,214.29"
5462908,Sandcastle Care LTD,Childrens Services,Children's Services,Childrens Homes Outside Local Authority Fees,13-Jul,"25,692.86"
5462910,LOCAL CARE FORCE,Adult Social Care,Adults,Residential Home Long Stay Fees,13-Jul,"2,586.72"
5462911,Pennine Learning Associates,Education,Children's Services,Professional Services,13-Jul,"2,500.00"
5462917,INSPIREDSPACES TAMESIDE (PROJECTCO2) LTD,Asset & Investment Partnership Management,Growth,Food & Refreshments,04-Jul,"1,358.00"
5462917,INSPIREDSPACES TAMESIDE (PROJECTCO2) LTD,Asset & Investment Partnership Management,Growth,Free School Meal Costs,04-Jul,"34,209.50"
5462918,INSPIREDSPACES TAMESIDE (PROJECTCO2) LTD,Asset & Investment Partnership Management,Growth,PFI FM Fees and Insurance Costs,04-Jul,"9,425.00"
5462920,INSPIREDSPACES TAMESIDE (PROJECTCO2) LTD,Asset & Investment Partnership Management,Growth,PFI FM Fees and Insurance Costs,04-Jul,"1,868.32"
5462925,INSPIREDSPACES TAMESIDE (PROJECTCO2) LTD,Asset & Investment Partnership Management,Growth,PFI FM Fees and Insurance Costs,04-Jul,"12,523.10"
5462926,INSPIREDSPACES TAMESIDE (PROJECTCO2) LTD,Asset & Investment Partnership Management,Growth,PFI FM Fees and Insurance Costs,04-Jul,"2,855.00"
5462927,Inspired Spaces (ProjectCo1) LTD,Asset & Investment Partnership Management,Growth,Free School Meal Costs,04-Jul,"9,628.80"
5462930,Inspired Spaces (ProjectCo1) LTD,Asset & Investment Partnership Management,Growth,PFI FM Fees and Insurance Costs,04-Jul,900.53
5462931,INSPIREDSPACES TAMESIDE (PROJECTCO2) LTD,Asset & Investment Partnership Management,Growth,PFI FM Fees and Insurance Costs,04-Jul,"1,363.00"
5462937,BTTLR LIMITED T/A Connecting Hands Healthcare Services,Childrens Services,Children's Services,Childrens Homes Outside Local Authority Fees,13-Jul,"11,300.00"
5462940,Brook,Population Health,Population Health,Contributions,13-Jul,"1,338.60"
5462941,Idox Software Ltd,Operations and Neighbourhoods,Operations and Neighbourhoods,Computer Software,13-Jul,"2,634.00"
5462943,LOCAL CARE FORCE,Adult Social Care,Adults,Residential Home Long Stay Fees,13-Jul,"3,321.12"
5462946,Saddleworth Cookery School,Education,Children's Services,Independent School Fees,13-Jul,"1,080.00"
5462947,SURECARE TAMESIDE & OLDHAM,Adult Social Care,Adults,Homecare Fees,13-Jul,"3,249.02"
5462949,Redacted Supplier,Education,Children's Services,Independent School Fees,13-Jul,"3,605.00"
5462950,DOMAIN CARE NORTH WEST LTD,Adult Social Care,Adults,Day Care Fees,13-Jul,"1,335.32"
5462987,Furniture Resource Centre Ltd,Operations and Neighbourhoods,Operations and Neighbourhoods,"Fixtures, Fittings & Furniture Purchase",14-Jul,670.15
5462988,Furniture Resource Centre Ltd,Operations and Neighbourhoods,Operations and Neighbourhoods,"Fixtures, Fittings & Furniture Purchase",14-Jul,998.77
5462993,Furniture Resource Centre Ltd,Operations and Neighbourhoods,Operations and Neighbourhoods,"Fixtures, Fittings & Furniture Purchase",14-Jul,985.41
5462995,Furniture Resource Centre Ltd,Operations and Neighbourhoods,Operations and Neighbourhoods,"Fixtures, Fittings & Furniture Purchase",14-Jul,833.2
5462996,Furniture Resource Centre Ltd,Operations and Neighbourhoods,Operations and Neighbourhoods,"Fixtures, Fittings & Furniture Purchase",14-Jul,652.71
5462997,Furniture Resource Centre Ltd,Operations and Neighbourhoods,Operations and Neighbourhoods,"Fixtures, Fittings & Furniture Purchase",14-Jul,757.33
5462998,Furniture Resource Centre Ltd,Operations and Neighbourhoods,Operations and Neighbourhoods,"Fixtures, Fittings & Furniture Purchase",14-Jul,776.69
5463003,Furniture Resource Centre Ltd,Operations and Neighbourhoods,Operations and Neighbourhoods,"Fixtures, Fittings & Furniture Purchase",14-Jul,861.86
5463004,Furniture Resource Centre Ltd,Operations and Neighbourhoods,Operations and Neighbourhoods,"Fixtures, Fittings & Furniture Purchase",14-Jul,707.31
5463006,Furniture Resource Centre Ltd,Operations and Neighbourhoods,Operations and Neighbourhoods,"Fixtures, Fittings & Furniture Purchase",14-Jul,824.3
5463017,Furniture Resource Centre Ltd,Operations and Neighbourhoods,Operations and Neighbourhoods,"Fixtures, Fittings & Furniture Purchase",14-Jul,509
5463020,CITY CARE SOLUTIONS LTD,Adult Social Care,Adults,Homecare Fees,14-Jul,"1,985.76"
5463034,Mark Hancock Limited,Education,Children's Services,Professional Services,14-Jul,"3,300.00"
5463036,Furniture Resource Centre Ltd,Operations and Neighbourhoods,Operations and Neighbourhoods,"Fixtures, Fittings & Furniture Purchase",14-Jul,610.87
5463037,Furniture Resource Centre Ltd,Operations and Neighbourhoods,Operations and Neighbourhoods,"Fixtures, Fittings & Furniture Purchase",14-Jul,716.59
5463042,Furniture Resource Centre Ltd,Operations and Neighbourhoods,Operations and Neighbourhoods,"Fixtures, Fittings & Furniture Purchase",14-Jul,978.67
5463044,Furniture Resource Centre Ltd,Operations and Neighbourhoods,Operations and Neighbourhoods,"Fixtures, Fittings & Furniture Purchase",14-Jul,813.68
5463053,Furniture Resource Centre Ltd,Operations and Neighbourhoods,Operations and Neighbourhoods,"Fixtures, Fittings & Furniture Purchase",14-Jul,824.3
5463056,Furniture Resource Centre Ltd,Operations and Neighbourhoods,Operations and Neighbourhoods,"Fixtures, Fittings & Furniture Purchase",14-Jul,752.66
5463058,Furniture Resource Centre Ltd,Operations and Neighbourhoods,Operations and Neighbourhoods,"Fixtures, Fittings & Furniture Purchase",14-Jul,"1,357.89"
5463063,Furniture Resource Centre Ltd,Operations and Neighbourhoods,Operations and Neighbourhoods,"Fixtures, Fittings & Furniture Purchase",14-Jul,"2,425.25"
5463088,POSITIVE STEPS OLDHAM,Place,Growth,Professional Services,14-Jul,"36,986.30"
5463096,MOSSCARE HOUSING LTD,Childrens Services,Children's Services,Living With Formal Support,14-Jul,"1,428.48"
5463098,MOSSCARE HOUSING LTD,Childrens Services,Children's Services,Living With Formal Support,14-Jul,"1,523.84"
5463099,APOLLO HOME HEALTHCARE LTD,Childrens Services,Children's Services,Homecare Fees,11-Aug,602.1
5463100,PRO VENTURE CONSULTING,Operations and Neighbourhoods,Operations and Neighbourhoods,"Marketing, Publicity and Recruitment",14-Jul,"4,000.00"
5463101,APOLLO HOME HEALTHCARE LTD,Childrens Services,Children's Services,Homecare Fees,27-Jul,602.1
5463102,PRO VENTURE CONSULTING,Operations and Neighbourhoods,Operations and Neighbourhoods,Professional Services,14-Jul,"3,121.40"
5463105,Environmental Engineering Partnership Ltd T/A E3P,(blank),(blank),Fees,14-Jul,"3,450.00"
5463108,Environmental Engineering Partnership Ltd T/A E3P,(blank),(blank),Fees,14-Jul,650
5463114,ROUTES HEALTHCARE (NORTH) LIMITED,Adult Social Care,Adults,Homecare Fees,14-Jul,"5,990.72"
5463115,ROUTES HEALTHCARE (NORTH) LIMITED,Adult Social Care,Adults,Homecare Fees,14-Jul,"5,983.02"
5463117,M.C. & M.A. STEWART HAULAGE LTD,Operations and Neighbourhoods,Operations and Neighbourhoods,General Materials,14-Jul,503.38
5463118,M.C. & M.A. STEWART HAULAGE LTD,Operations and Neighbourhoods,Operations and Neighbourhoods,General Materials,14-Jul,540
5463120,CITY LIFT SERVICES (NW) LTD,Adult Social Care,Adults,General Equipment Repair & Maintenance,14-Jul,"1,825.00"
5463126,WEST END KIDS CLUB,Childrens Services,Children's Services,"Activity (Materials, Trips)",14-Jul,805
5463127,CROMWELL POLYTHENE LTD.,Operations and Neighbourhoods,Operations and Neighbourhoods,Purchase Plastic Sacks,26-Jul,"5,550.00"
5463129,COMFORT CALL LIMITED,Adult Social Care,Adults,Homecare Fees,05-Jul,"33,160.84"
5463130,ORACLE CORPORATION UKLTD,Digital Tameside,Finance & IT,Computer Software,14-Jul,"3,263.28"
5463131,CARELINE HOMECARE LTD,Adult Social Care,Adults,Homecare Fees,06-Jul,"29,970.66"
5463133,Trinity College,Operations and Neighbourhoods,Operations and Neighbourhoods,Professional Entertainment Services,14-Jul,804.65
5463134,CARELINE HOMECARE LTD,Adult Social Care,Adults,Homecare Fees,06-Jul,"1,735.00"
5463135,Northern Trains Limited,(blank),(blank),Engineers -External,14-Jul,"132,000.00"
5463141,K P DODD CONSTRUCTION LTD,Housing,Director of Place,Minor Works - Building,14-Jul,700
5463144,MHR International UK Limited,People and Workforce Development,Governance,Computer Software,14-Jul,"2,808.00"
5463152,Redacted Supplier,Education,Children's Services,Independent School Fees,14-Jul,"2,196.00"
5463153,Redacted Supplier,Childrens Services,Children's Services,Foster Carer Agency Fees,14-Jul,"3,737.49"
5463154,Curo Salus Limited,Childrens Services,Children's Services,Childrens Homes Outside Local Authority Fees,15-Jul,"24,852.00"
5463160,Redacted Supplier,Childrens Services,Children's Services,Foster Carer Agency Fees,15-Jul,"3,224.34"
5463162,Synectics Security Limited,Operations and Neighbourhoods,Operations and Neighbourhoods,Security Equipment,15-Jul,"10,624.36"
5463165,ACORN CARE & EDUCATION LTD (SALES),Education,Children's Services,Independent School Fees,15-Jul,"17,100.00"
5463167,ACORN CARE & EDUCATION LTD (SALES),Education,Children's Services,Independent School Fees,15-Jul,"17,100.00"
5463168,ACORN CARE & EDUCATION LTD (SALES),Education,Children's Services,Independent School Fees,15-Jul,"17,100.00"
5463170,ARCO LIMITED,Operations and Neighbourhoods,Operations and Neighbourhoods,Protective Clothing,15-Jul,843.9
5463171,Redacted Supplier,Childrens Services,Children's Services,Foster Carer Agency Fees,15-Jul,"3,318.24"
5463173,Redacted Supplier,Childrens Services,Children's Services,Foster Carer Agency Fees,15-Jul,"3,215.63"
5463176,KB Extruders Ltd,Operations and Neighbourhoods,Operations and Neighbourhoods,Purchase Wheeled Bins,15-Jul,"1,872.00"
5463185,Redacted Supplier,Childrens Services,Children's Services,Foster Carer Agency Fees,15-Jul,"3,571.50"
5463192,Redacted Supplier,Childrens Services,Children's Services,Foster Carer Agency Fees,15-Jul,"3,788.70"
5463194,Redacted Supplier,Childrens Services,Children's Services,Foster Carer Agency Fees,15-Jul,"3,788.70"
5463195,Redacted Supplier,Childrens Services,Children's Services,Foster Carer Agency Fees,15-Jul,"3,618.93"
5463196,XMA LIMITED,Digital Tameside,Finance & IT,IT Equipment,15-Jul,522.36
5463197,Redacted Supplier,Childrens Services,Children's Services,Foster Carer Agency Fees,15-Jul,"3,788.70"
5463198,NORTHWEST RADIO COMMUNICATIONS LTD,Place,Growth,Security Services,15-Jul,"1,500.00"
5463199,Redacted Supplier,Childrens Services,Children's Services,Foster Carer Agency Fees,15-Jul,"3,139.27"
5463201,Redacted Supplier,Education,Children's Services,Other Local Authorities Fees,15-Jul,"2,196.00"
5463202,Redacted Supplier,Childrens Services,Children's Services,Foster Carer Agency Fees,15-Jul,"5,659.20"
5463203,CREATIVE SUPPORT LTD,Adult Social Care,Adults,Homecare Fees,06-Jul,"159,940.84"
5463204,Redacted Supplier,Childrens Services,Children's Services,Foster Carer Agency Fees,15-Jul,"3,788.70"
5463210,PERSON CENTRED CARE SERVICES LIMITED,Adult Social Care,Adults,Homecare Fees,04-Jul,"1,418.40"
5463212,PERSON CENTRED CARE SERVICES LIMITED,Adult Social Care,Adults,Homecare Fees,04-Jul,"1,422.83"
5463214,Oxford Innovation LTD - ASHTON OLD BATHS,Place,Growth,Professional Services,15-Jul,"29,269.09"
5463215,Oxford Innovation LTD - ASHTON OLD BATHS,Place,Growth,Professional Services,15-Jul,"33,601.00"
5463216,Oxford Innovation LTD - ASHTON OLD BATHS,Place,Growth,Professional Services,15-Jul,"31,187.80"
5463218,Redacted Supplier,Childrens Services,Children's Services,Foster Carer Agency Fees,15-Jul,"1,694.98"
5463220,Redacted Supplier,Childrens Services,Children's Services,Foster Carer Agency Fees,15-Jul,863.03
5463221,Redacted Supplier,Childrens Services,Children's Services,Foster Carer Agency Fees,15-Jul,760.48
5463224,VISION FOR EDUCATION LIMITED,Education,Children's Services,Professional Services,15-Jul,937.8
5463229,MEDACS HEALTHCARE,Adult Social Care,Adults,Homecare Fees,06-Jul,"15,811.72"
5463233,HSL Compliance Ltd,Operations and Neighbourhoods,Operations and Neighbourhoods,Professional Services,15-Jul,"1,200.00"
5463234,Foundations Plus,Adult Social Care,Adults,Residential Home Long Stay Fees,15-Jul,"4,985.00"
5463235,SEASHELL TRUST,Childrens Services,Children's Services,Residential Home Short Stay Fees,15-Jul,"1,980.00"
5463236,Foundations Plus,Adult Social Care,Adults,Residential Home Long Stay Fees,15-Jul,"3,480.00"
5463241,CLOSOMAT LTD,Housing,Director of Place,Minor Works - Building,15-Jul,552
5463243,Claris International Inc.,Individual Schools Budget,Children's Services,Licences,15-Jul,"1,700.00"
5463248,Redacted Supplier,Adult Social Care,Adults,Professional Services,15-Jul,"1,867.50"
5463252,CROMWELL POLYTHENE LTD.,Operations and Neighbourhoods,Operations and Neighbourhoods,Purchase Plastic Sacks,26-Jul,"8,787.50"
5463257,WHALE TANKERS LTD,Transport,Director of Place,Vehicles,22-Jul,"161,609.00"
5463288,EAST CHESHIRE HOUSING CONSORTIUM TAS THE COURTYARD,Adult Social Care,Adults,Residential Home Long Stay Fees,15-Jul,"5,188.28"
5463292,Exclusec Security Solutions Ltd,Operations and Neighbourhoods,Operations and Neighbourhoods,Security Services,15-Jul,955.5
5463293,Exclusec Security Solutions Ltd,Operations and Neighbourhoods,Operations and Neighbourhoods,Security Services,15-Jul,"21,851.55"
5463305,VISION FOR EDUCATION LIMITED,Education,Children's Services,Professional Services,15-Jul,"1,958.96"
5463308,Commercial Gov Ltd,Adult Social Care,Adults,Professional Services,15-Jul,"11,250.00"
5463311,METRIC GROUP LTD,Operations and Neighbourhoods,Operations and Neighbourhoods,Repairs & Maintenance Of Car Park Equipment,15-Jul,"2,152.67"
5463313,JENOPTIK UK LIMITED,Operations and Neighbourhoods,Operations and Neighbourhoods,Fees,15-Jul,"3,276.00"
5463343,STOCKPORT CP  SOCIETY,Adult Social Care,Adults,Day Care Fees,15-Jul,"1,278.40"
5463344,STOCKPORT CP  SOCIETY,Adult Social Care,Adults,Day Care Fees,15-Jul,"1,974.84"
5463345,STOCKPORT CP  SOCIETY,Adult Social Care,Adults,Day Care Fees,05-Aug,"1,278.40"
5463348,TREASURED MEMORIES LTD,Operations and Neighbourhoods,Operations and Neighbourhoods,Plaques,15-Jul,564.6
5463350,INSPIREDSPACES TAMESIDE LTD,(blank),(blank),Fees,06-Jul,708.67
5463350,INSPIREDSPACES TAMESIDE LTD,(blank),(blank),Minor Works - Building,06-Jul,"35,433.31"
5463353,LONICERA RESOURCES LTD,Adult Social Care,Adults,Professional Services,15-Jul,"5,028.75"
5463354,LONICERA RESOURCES LTD,Adult Social Care,Adults,Professional Services,15-Jul,"4,978.75"
5463355,T21 NETWORK,Childrens Services,Children's Services,Community Based Activities,15-Jul,"1,170.00"
5463361,INSPIREDSPACES TAMESIDE LTD,(blank),(blank),Fees,30-Aug,91.06
5463361,INSPIREDSPACES TAMESIDE LTD,(blank),(blank),Minor Works - Building,30-Aug,"4,552.82"
5463375,QA LIMITED,Digital Tameside,Finance & IT,Training Course Costs,15-Jul,"11,163.00"
5463376,Redacted Supplier,Childrens Services,Children's Services,Foster Carer Agency Fees,15-Jul,"4,679.64"
5463377,ACORN CARE & EDUCATION LTD (SALES),Education,Children's Services,Independent School Fees,15-Jul,"11,626.61"
5463378,INSIGHT DIRECT (UK) LIMITED,GMPF (FX),GMPF (FX),IT Equipment,15-Jul,"4,650.97"
5463379,AECOM LTD,(blank),(blank),External  Consultants,15-Jul,"6,821.70"
5463381,LOCAL CARE FORCE,Adult Social Care,Adults,Residential Home Long Stay Fees,15-Jul,"2,594.88"
5463383,Pennine Medical Supplies Ltd T/A Pennine Workwear,Operations and Neighbourhoods,Operations and Neighbourhoods,Protective Clothing,15-Jul,550
5463385,Holden Knight Healthcare Temp Ltd,Childrens Services,Children's Services,Agency Staff,15-Jul,"9,144.00"
5463413,Constellia Public Ltd,Place,Growth,Professional Consultancy Services,15-Jul,"2,880.00"
5463414,INSPIREDSPACES TAMESIDE LTD,(blank),(blank),Fees,01-Jul,95.29
5463414,INSPIREDSPACES TAMESIDE LTD,(blank),(blank),Minor Works - Building,01-Jul,"4,764.49"
5463419,RNIB Enterprises,Adult Social Care,Adults,IT Equipment,15-Jul,"3,342.75"
5463421,INSPIREDSPACES TAMESIDE LTD,(blank),(blank),Asbestos Removal,04-Jul,"3,152.47"
5463426,INSPIREDSPACES TAMESIDE LTD,(blank),(blank),Asbestos Removal,18-Aug,"2,553.88"
5463430,INSPIREDSPACES TAMESIDE LTD,Adult Social Care,Adults,Building Repairs,01-Jul,"1,364.25"
5463431,INSPIREDSPACES TAMESIDE LTD,(blank),(blank),New Accommodation Works,01-Jul,"9,822.60"
5463432,CREATIVE SUPPORT LTD,Adult Social Care,Adults,Residential Home Long Stay Fees,08-Jul,"1,817.20"
5463433,EUROPEAN ELECTRONIQUELTD,Digital Tameside,Finance & IT,Network Equipment/Setup,15-Jul,"12,087.10"
5463435,INSPIREDSPACES TAMESIDE LTD,Place,Growth,Asbestos Removal,01-Jul,"1,300.05"
5463435,INSPIREDSPACES TAMESIDE LTD,Tameside Investment Partnership,Director of Place,Fees,01-Jul,26
5463438,BANNER GROUP LIMITED,Operations and Neighbourhoods,Operations and Neighbourhoods,General Equipment Repair & Maintenance,18-Jul,726.1
5463439,INSPIREDSPACES TAMESIDE LTD,(blank),(blank),Asbestos Removal,01-Jul,"2,545.14"
5463441,INSPIREDSPACES TAMESIDE LTD,(blank),(blank),Mechanical & Electrical Works,01-Jul,"5,129.58"
5463444,Her Majesty's Prison and Probation Service (National Offenders Management Service),Childrens Services,Children's Services,Other Accommodation Related Costs,15-Jul,"9,210.00"
5463450,WALKING TOGETHER,Childrens Services,Children's Services,Therapy Costs,15-Jul,"1,000.00"
5463451,WALKING TOGETHER,Childrens Services,Children's Services,Therapy Costs,15-Jul,"1,000.00"
5463453,SENDCode CIC,(blank),(blank),Contributions,15-Jul,"4,980.00"
5463460,REED SPECIALIST RECRUITMENT LIMITED,Adult Social Care,Adults,Homecare Fees,29-Jul,631.44
5463462,PHS GROUP PLC,Operations and Neighbourhoods,Operations and Neighbourhoods,Professional Services,26-Jul,993.22
5463467,Furniture Resource Centre Ltd,Operations and Neighbourhoods,Operations and Neighbourhoods,"Fixtures, Fittings & Furniture Purchase",15-Jul,548.39
5463468,Furniture Resource Centre Ltd,Operations and Neighbourhoods,Operations and Neighbourhoods,"Fixtures, Fittings & Furniture Purchase",15-Jul,902.59
5463474,Furniture Resource Centre Ltd,Operations and Neighbourhoods,Operations and Neighbourhoods,"Fixtures, Fittings & Furniture Purchase",15-Jul,902.59
5463475,Furniture Resource Centre Ltd,Operations and Neighbourhoods,Operations and Neighbourhoods,"Fixtures, Fittings & Furniture Purchase",15-Jul,510.54
5463477,Furniture Resource Centre Ltd,Operations and Neighbourhoods,Operations and Neighbourhoods,"Fixtures, Fittings & Furniture Purchase",15-Jul,834.03
5463482,Furniture Resource Centre Ltd,Operations and Neighbourhoods,Operations and Neighbourhoods,"Fixtures, Fittings & Furniture Purchase",15-Jul,711.62
5463484,CIVICA UK LIMITED,Governance,Governance,Computer Software,20-Jul,"12,008.53"
5463486,SOFTCAT LIMITED,Digital Tameside,Finance & IT,IT Equipment,15-Jul,856
5463487,Furniture Resource Centre Ltd,Operations and Neighbourhoods,Operations and Neighbourhoods,"Fixtures, Fittings & Furniture Purchase",15-Jul,647.3
5463496,CITY CARE SOLUTIONS LTD,Adult Social Care,Adults,Homecare Fees,15-Jul,"1,897.11"
5463500,YOUNG PEOPLE FIRST LIMITED,Childrens Services,Children's Services,Living With Formal Support,15-Jul,"1,225.00"
5463501,YOUNG PEOPLE FIRST LIMITED,(blank),(blank),Living With Formal Support,15-Jul,"2,100.00"
5463505,GATEWAY QUALIFICATIONS,Place,Growth,Examination Fees,15-Jul,557
5463507,Stepping Stone Projects,Childrens Services,Children's Services,Living With Formal Support,15-Jul,"1,306.07"
5463508,Stepping Stone Projects,Childrens Services,Children's Services,Living With Formal Support,15-Jul,"1,104.93"
5463509,APOLLO HOME HEALTHCARE LTD,Childrens Services,Children's Services,Homecare Fees,15-Jul,602.1
5463510,Amore Social Care Ltd,Childrens Services,Children's Services,Childrens Homes Outside Local Authority Fees,18-Jul,"9,498.04"
5463511,Avoira Ltd,Digital Tameside,Finance & IT,Telephone Landline Costs,15-Jul,"5,383.92"
5463512,SMI Group,Operations and Neighbourhoods,Operations and Neighbourhoods,Protective Clothing,18-Jul,"1,495.31"
5463513,Anglian Water Business (National) t/a Wave Utilities,Place,Growth,Water (Metered and Rates),18-Jul,"13,699.71"
5463517,TELEFONICA O2 (UK) LTD,Digital Tameside,Finance & IT,Mobile Telephones,18-Jul,"7,839.62"
5463523,BEXAN LIMITED,Adult Social Care,Adults,Firefighting Equipment,18-Jul,"1,621.00"
5463524,CASTLE CARE HOMES LTD,Childrens Services,Children's Services,Childrens Homes Outside Local Authority Fees,19-Jul,"19,285.80"
5463537,AGE UK TAMESIDE,Adult Social Care,Adults,Professional Services,08-Jul,"44,065.75"
5463576,YORKSHIRE PURCHASING ORGANISATION,Education,Children's Services,Educational Equipment,20-Jul,601.75
5463577,SAS DANIELS LLP,Place,Growth,Professional Services,07-Jul,"2,506.00"
5463578,AR ENTERTAINMENTS,Operations and Neighbourhoods,Operations and Neighbourhoods,Professional Entertainment Services,12-Aug,"1,460.00"
5463581,HEMMING GROUP LTD,Adult Social Care,Adults,Hospitality,20-Jul,"2,795.00"
5463587,BT GLOBAL SERVICES,Digital Tameside,Finance & IT,Telephone Landline Costs,15-Jul,"5,205.92"
5463591,FURNITURE HIRE UK,Governance,Governance,"Fixtures, Fittings & Furniture Purchase",11-Aug,655
5463593,MEDACS HEALTHCARE,Adult Social Care,Adults,Homecare Fees,11-Jul,"28,631.78"
5463603,BREAKEY & NUTTALL,(blank),(blank),Fees,20-Jul,"3,120.00"
5463610,ACORN CARE & EDUCATION LTD (SALES),Adult Social Care,Adults,Homecare Fees,20-Jul,"20,681.43"
5463611,ACORN CARE & EDUCATION LTD (SALES),Adult Social Care,Adults,Homecare Fees,20-Jul,"20,014.29"
5463612,Zeno Ltd,Adult Social Care,Adults,Homecare Fees,20-Jul,"10,800.26"
5463613,ACORN CARE & EDUCATION LTD (SALES),Adult Social Care,Adults,Residential Home Short Stay Fees,20-Jul,"18,535.71"
5463614,ACORN CARE & EDUCATION LTD (SALES),Adult Social Care,Adults,Homecare Fees,20-Jul,"20,014.29"
5463615,Safe Hands Care & Support Services,Childrens Services,Children's Services,Living With Formal Support,21-Jul,"6,552.87"
5463616,Safe Hands Care & Support Services,Childrens Services,Children's Services,Living With Formal Support,21-Jul,"6,158.46"
5463617,Safe Hands Care & Support Services,Childrens Services,Children's Services,Living With Formal Support,21-Jul,"15,042.44"
5463618,TTS GROUP LTD,Childrens Services,Children's Services,Educational Equipment,20-Jul,758.72
5463620,iCare Solutions,Adult Social Care,Adults,Homecare Fees,20-Jul,"16,138.73"
5463621,Redacted Supplier,Childrens Services,Children's Services,Professional Consultancy Services,20-Jul,"1,685.90"
5463622,iCare Solutions,Adult Social Care,Adults,Homecare Fees,20-Jul,"16,129.87"
5463624,DAC BEACHCROFT LLP,Tameside Investment Partnership,Director of Place,Consultancies,18-Jul,"21,080.83"
5463627,ROUTES HEALTHCARE (NORTH) LIMITED,Adult Social Care,Adults,Homecare Fees,20-Jul,"5,694.40"
5463630,Housing Reviews Limited,(blank),(blank),Training Course Costs,20-Jul,"4,800.00"
5463631,QA LIMITED,GMPF (FX),GMPF (FX),Training Course Costs,20-Jul,"3,905.40"
5463632,Redacted Supplier,Adult Social Care,Adults,Day Care Fees,21-Jul,"1,008.00"
5463635,Redacted Supplier,Adult Social Care,Adults,Professional Medical Services,20-Jul,"5,664.20"
5463636,SURECARE TAMESIDE & OLDHAM,Adult Social Care,Adults,Homecare Fees,20-Jul,"3,390.86"
5463637,COMFORT CALL LIMITED,Adult Social Care,Adults,Homecare Fees,11-Jul,"33,585.41"
5463638,CARELINE HOMECARE LTD,Adult Social Care,Adults,Homecare Fees,11-Jul,"1,583.11"
5463639,CARELINE HOMECARE LTD,Adult Social Care,Adults,Homecare Fees,11-Jul,"29,748.09"
5463643,Redacted Supplier,Adult Social Care,Adults,Professional Medical Services,20-Jul,"8,250.20"
5463665,CITY LIFT SERVICES (NW) LTD,Adult Social Care,Adults,General Equipment Repair & Maintenance,21-Jul,"1,805.00"
5463668,Engage Support LTD,Adult Social Care,Adults,Homecare Fees,21-Jul,"9,180.00"
5463674,E PETCH PRINTERS LTD,(blank),(blank),Printing And Stationery,18-Jul,"1,425.00"
5463681,ABLE CARE AND SUPPORT SERVICES LTD,Adult Social Care,Adults,Homecare Fees,01-Jul,"23,003.48"
5463683,ABLE CARE AND SUPPORT SERVICES LTD,Adult Social Care,Adults,Homecare Fees,01-Jul,"10,747.25"
5463684,ABLE CARE AND SUPPORT SERVICES LTD,Adult Social Care,Adults,Homecare Fees,01-Jul,"9,734.93"
5463696,WESSEX LIFT CO. LIMITED,Housing,Director of Place,Mandatory Adaptations Grant (DFG),21-Jul,"10,217.00"
5463698,KIDS,Education,Children's Services,Independent School Fees,21-Jul,"1,600.00"
5463700,Footsteps A Path To Change 08 Ltd,Childrens Services,Children's Services,Childrens Homes Outside Local Authority Fees,21-Jul,"18,644.95"
5463705,Synectics Security Limited,Operations and Neighbourhoods,Operations and Neighbourhoods,Security Equipment,21-Jul,"10,624.36"
5463708,OLDHAM COLLEGE,Education,Children's Services,Post 16 FE College Fees,21-Jul,"44,707.67"
5463710,REGENDA LIMITED,Adult Social Care,Adults,Non-Authority Accommodation Rental,21-Jul,"16,751.24"
5463711,REGENDA LIMITED,Adult Social Care,Adults,Non-Authority Accommodation Rental,21-Jul,"2,152.54"
5463712,SEDGEMOOR DISTRICT COUNCIL,Hosted Services,Hosted Services,Professional Consultancy Services,05-Jul,"2,639.93"
5463713,PERSON CENTRED CARE SERVICES LIMITED,Adult Social Care,Adults,Homecare Fees,01-Jul,"7,473.34"
5463714,AUTISM INITIATIVES (UK),Adult Social Care,Adults,Homecare Fees,22-Jul,"1,076.80"
5463715,AUTISM INITIATIVES (UK),Adult Social Care,Adults,Homecare Fees,21-Jul,"3,074.56"
5463717,AUTISM INITIATIVES (UK),Adult Social Care,Adults,Homecare Fees,21-Jul,"3,074.56"
5463718,Smartway Health and Social Care Limited,Adult Social Care,Adults,Homecare Fees,01-Jul,"4,203.43"
5463719,ALPHA BIOLABS,Childrens Services,Children's Services,Professional Medical Services,21-Jul,597.3
5463724,JACKSON & TAYLOR LTD,Housing,Director of Place,Mandatory Adaptations Grant (DFG),01-Jul,"4,427.68"
5463726,JACKSON & TAYLOR LTD,Housing,Director of Place,Mandatory Adaptations Grant (DFG),01-Jul,"5,681.44"
5463727,Fairfield Care Services,Adult Social Care,Adults,Day Care Fees,21-Jul,"2,412.80"
5463730,INSIGHT DIRECT (UK) LIMITED,GMPF (FX),GMPF (FX),IT Equipment,21-Jul,756.04
5463734,ABLE CARE AND SUPPORT SERVICES LTD,Adult Social Care,Adults,Homecare Fees,01-Jul,692.12
5463736,ABLE CARE AND SUPPORT SERVICES LTD,Adult Social Care,Adults,Homecare Fees,01-Jul,579.38
5463740,K P DODD CONSTRUCTION LTD,Housing,Director of Place,Mandatory Adaptations Grant (DFG),21-Jul,"6,155.08"
5463752,JACKSON & TAYLOR LTD,Housing,Director of Place,Mandatory Adaptations Grant (DFG),01-Jul,"4,590.43"
5463753,Jigsaw Homes Tameside,Operations and Neighbourhoods,Operations and Neighbourhoods,Other Accommodation Related Costs,01-Jul,"25,000.00"
5463757,Jigsaw Homes Tameside,Operations and Neighbourhoods,Operations and Neighbourhoods,Other Accommodation Related Costs,01-Jul,"71,715.83"
5463759,Meltwater UK LTD,Policy and Communications,Governance,"Marketing, Publicity and Recruitment",21-Jul,"8,400.00"
5463765,INSPIREDSPACES TAMESIDE LTD,(blank),(blank),Fees,06-Jul,261.12
5463765,INSPIREDSPACES TAMESIDE LTD,(blank),(blank),Minor Works - Building,06-Jul,"13,055.87"
5463766,VisionAid Technologies,Adult Social Care,Adults,Training Course Costs,21-Jul,"1,500.00"
5463767,INSPIREDSPACES TAMESIDE LTD,(blank),(blank),Fees,06-Jul,217.28
5463767,INSPIREDSPACES TAMESIDE LTD,(blank),(blank),Minor Works - Building,06-Jul,"10,863.78"
5463769,STRUCTEC (NW) LTD,Housing,Director of Place,Mandatory Adaptations Grant (DFG),21-Jul,"4,039.20"
5463772,MEDACS HEALTHCARE,Adult Social Care,Adults,Homecare Fees,12-Jul,"28,631.78"
5463810,Redacted Supplier,Education,Children's Services,Professional Services,22-Jul,"1,100.00"
5463813,YOUNG PEOPLE FIRST LIMITED,(blank),(blank),Living With Formal Support,22-Jul,"2,100.00"
5463823,Headsets4Business Limited,Digital Tameside,Finance & IT,IT Equipment,01-Jul,"1,140.00"
5463827,YOUNG PEOPLE FIRST LIMITED,Childrens Services,Children's Services,Living With Formal Support,22-Jul,"1,225.00"
5463828,Randstad Solutions Ltd,Education,Children's Services,Agency Staff,22-Jul,543.92
5463830,Northern Community Pathways Limited,(blank),(blank),Living With Formal Support,22-Jul,"3,824.00"
5463830,Northern Community Pathways Limited,(blank),(blank),Semi independent - Weekly Living Allowances,22-Jul,244.2
5463835,MANCHESTER CITY COUNCIL,Childrens Services,Children's Services,Foster Carer Agency Fees,06-Jul,"4,174.14"
5463843,NEXUS MOVE LIMITED PREVIOUSLY RADIO CABS (ASHTON)LTD,Childrens Services,Children's Services,Provision for Transport,01-Jul,650.8
5463847,Randstad Solutions Ltd,Education,Children's Services,Agency Staff,22-Jul,604.35
5463848,STAFF CARE SERVICES,Adult Social Care,Adults,Professional Consultancy Services,22-Jul,675
5463849,ACORN CARE & EDUCATION LTD (SALES),Education,Children's Services,Independent School Fees,22-Jul,"11,626.61"
5463850,CARELINE HOMECARE LTD,Adult Social Care,Adults,Homecare Fees,13-Jul,"25,312.09"
5463852,Edge Analytics LTD,Education,Children's Services,Professional Consultancy Services,22-Jul,"8,500.00"
5463853,Edge Analytics LTD,Education,Children's Services,Professional Consultancy Services,22-Jul,"11,750.00"
5463855,CARELINE HOMECARE LTD,Adult Social Care,Adults,Homecare Fees,13-Jul,"25,312.09"
5463864,INSPIREDSPACES TAMESIDE LTD,(blank),(blank),New Accommodation Works,06-Jul,"136,478.05"
5463865,B.E.M Property Management t/a HALA GUEST HOUSE,(blank),(blank),Chief/Ground Rent,09-Aug,"10,635.00"
5463866,B.E.M Property Management t/a HALA GUEST HOUSE,(blank),(blank),Chief/Ground Rent,09-Aug,"9,605.00"
5463867,INSPIREDSPACES TAMESIDE LTD,Tameside Investment Partnership,Director of Place,Asbestos Removal,06-Jul,"1,738.75"
5463867,INSPIREDSPACES TAMESIDE LTD,Tameside Investment Partnership,Director of Place,Fees,06-Jul,34.78
5463868,B.E.M Property Management t/a HALA GUEST HOUSE,(blank),(blank),Chief/Ground Rent,09-Aug,"9,320.00"
5463869,INSPIREDSPACES TAMESIDE LTD,(blank),(blank),Asbestos Removal,06-Jul,658.05
5463869,INSPIREDSPACES TAMESIDE LTD,(blank),(blank),Fees,06-Jul,13.16
5463870,The Mount Guest House Limited,(blank),(blank),Chief/Ground Rent,22-Jul,"23,825.00"
5463871,INSPIREDSPACES TAMESIDE LTD,Asset & Investment Partnership Management,Growth,PFI FM Fees and Insurance Costs,01-Jul,600.39
5463872,INSPIREDSPACES TAMESIDE LTD,Asset & Investment Partnership Management,Growth,PFI FM Fees and Insurance Costs,06-Jul,"2,551.50"
5463873,The Mount Guest House Limited,(blank),(blank),Chief/Ground Rent,22-Jul,"11,710.00"
5463876,TRAVELERS INSURANCE COMPANY LTD,Multiple Heads of Service,Multiple Strategic Directorates,Public Liability Insurance Claims,22-Jul,"3,036.00"
5463877,VISION FOR EDUCATION LIMITED,Education,Children's Services,Professional Services,22-Jul,"1,167.04"
5463878,TRAVELERS INSURANCE COMPANY LTD,Multiple Heads of Service,Multiple Strategic Directorates,Public Liability Insurance Claims,22-Jul,"84,760.00"
5463880,VISION FOR EDUCATION LIMITED,Education,Children's Services,Professional Services,22-Jul,937.8
5463882,Constellia Public Ltd,Place,Growth,Professional Services,22-Jul,"16,548.43"
5463888,ABLE CARE AND SUPPORT SERVICES LTD,Adult Social Care,Adults,Homecare Fees,01-Jul,"23,003.48"
5463890,ABLE CARE AND SUPPORT SERVICES LTD,Adult Social Care,Adults,Homecare Fees,01-Jul,"23,003.48"
5463893,Milestone Living Limited,Childrens Services,Children's Services,"Childrens Allowances (Weekly,Xmas,Festive,Clothing)",08-Jul,"2,847.00"
5463898,Independent Together Limited,Childrens Services,Children's Services,Living With Formal Support,22-Jul,"3,677.15"
5463899,Independent Together Limited,Childrens Services,Children's Services,Living With Formal Support,22-Jul,"1,714.29"
5463900,Independent Together Limited,Childrens Services,Children's Services,Living With Formal Support,22-Jul,"4,399.29"
5463903,Jigsaw Homes Tameside,Childrens Services,Children's Services,Living With Formal Support,01-Jul,"1,036.80"
5463904,Jigsaw Homes Tameside,Childrens Services,Children's Services,Living With Formal Support,01-Jul,"1,307.32"
5463905,Jigsaw Homes Tameside,Childrens Services,Children's Services,Living With Formal Support,01-Jul,"1,036.80"
5463906,Jigsaw Homes Tameside,Childrens Services,Children's Services,Living With Formal Support,01-Jul,"1,307.32"
5463909,Jigsaw Homes Tameside,Childrens Services,Children's Services,Living With Formal Support,01-Jul,"1,307.32"
5463910,Jigsaw Homes Tameside,Childrens Services,Children's Services,Living With Formal Support,01-Jul,"1,036.80"
5463911,DIRECT CARE (TAMESIDE) LTD,Adult Social Care,Adults,Homecare Fees,01-Jul,"44,211.14"
5463912,DIRECT CARE (TAMESIDE) LTD,Adult Social Care,Adults,Homecare Fees,01-Jul,"41,430.59"
5463915,GREENSCAPE,Adult Social Care,Adults,Professional Services,01-Jul,943.04
5463916,GREENSCAPE,Adult Social Care,Adults,Professional Services,01-Jul,"2,967.00"
5463925,Jigsaw Homes Tameside,Population Health,Population Health,Professional Services,01-Jul,"99,570.00"
5463927,Jigsaw Homes Tameside,Population Health,Population Health,Contributions,01-Jul,"13,000.00"
5463931,CADUK,Operations and Neighbourhoods,Operations and Neighbourhoods,Training Course Costs,22-Jul,"1,850.00"
5463932,Greater Manchester Poverty Action,Policy and Communications,Governance,Professional Services,22-Jul,"16,000.00"
5463934,UNITED FLAGS LTD,(blank),(blank),Event Related Activity,25-Jul,"3,760.02"
5463935,SMS Coaching LTD,Education,Children's Services,Independent School Fees,22-Jul,"10,115.00"
5463936,ARCON HOUSING ASSOCIATION,Childrens Services,Children's Services,Living With Formal Support,07-Jul,"2,793.18"
5463937,Jigsaw Homes Tameside,Population Health,Population Health,Professional Services,01-Jul,"158,115.00"
5463938,MEDACS HEALTHCARE,Adult Social Care,Adults,Homecare Fees,14-Jul,"15,922.17"
5463939,EAST CHESHIRE HOUSING CONSORTIUM TAS THE COURTYARD,Adult Social Care,Adults,Residential Home Long Stay Fees,22-Jul,"2,561.76"
5463940,EAST CHESHIRE HOUSING CONSORTIUM TAS THE COURTYARD,Adult Social Care,Adults,Residential Home Long Stay Fees,22-Jul,"10,704.50"
5463941,MHR International UK Limited,People and Workforce Development,Governance,Computer Software,22-Jul,"22,978.20"
5463942,LOCAL CARE FORCE,Adult Social Care,Adults,Residential Home Long Stay Fees,22-Jul,"2,635.68"
5463943,HEXAGON CARE SERVICES LTD,Childrens Services,Children's Services,Childrens Homes Outside Local Authority Fees,22-Jul,"23,550.00"
5463945,HEXAGON CARE SERVICES LTD,Childrens Services,Children's Services,Childrens Homes Outside Local Authority Fees,22-Jul,"10,960.20"
5463950,HEXAGON CARE SERVICES LTD,Childrens Services,Children's Services,Childrens Homes Outside Local Authority Fees,22-Jul,"19,221.43"
5463952,INSPIREDSPACES TAMESIDE LTD,(blank),(blank),Survey/Surveyors Fees,07-Jul,"8,146.17"
5463953,CIPFA BUSINESS LIMITED,Finance,Finance & IT,Text Books Periodicals and Newspapers,22-Jul,"2,905.00"
5463957,Randstad Solutions Ltd,Education,Children's Services,Professional Services,22-Jul,509.2
5463967,Carrington West Ltd,Place,Growth,Agency Staff,22-Jul,912.12
5463968,Carrington West Ltd,Place,Growth,Agency Staff,22-Jul,912.12
5463980,Redacted Supplier,Childrens Services,Children's Services,Childrens Homes Outside Local Authority Fees,22-Jul,"7,392.90"
5463982,Redacted Supplier,Childrens Services,Children's Services,Childrens Homes Outside Local Authority Fees,22-Jul,"1,689.94"
5463999,INSPIREDSPACES TAMESIDE LTD,Asset & Investment Partnership Management,Growth,PFI FM Fees and Insurance Costs,07-Jul,"7,962.00"
5464004,PETERS LIMITED (PETERS BOOKSELLING SERVICES),Education,Children's Services,Purchase Books,22-Jul,808.51
5464005,UNITED FLAGS LTD,(blank),(blank),Event Related Activity,10-Aug,"2,240.00"
5464006,Cyber Spider Ltd,Adult Social Care,Adults,Professional Services,08-Jul,984.04
5464010,NPOWER LIMITED,Operations and Neighbourhoods,Operations and Neighbourhoods,Electricity,15-Jul,"101,903.43"
5464053,ISW CSC Limited,Childrens Services,Children's Services,Living With Formal Support,07-Jul,"3,055.71"
5464091,Hyde Accessible Transport Limited,Education,Children's Services,Transport Of Post 16 Pupils,05-Jul,"1,425.00"
5464096,Hyde Accessible Transport Limited,Operations and Neighbourhoods,Operations and Neighbourhoods,Hired Transport,01-Jul,"5,675.00"
5464100,Hyde Accessible Transport Limited,Operations and Neighbourhoods,Operations and Neighbourhoods,Hired Transport,01-Jul,"2,750.00"
5464115,HAMILTON PROPERTIES,Adult Social Care,Adults,Non-Authority Accommodation Rental,04-Jul,"1,641.13"
5464116,CROFT INVESTMENTS LTD,Adult Social Care,Adults,Non-Authority Accommodation Rental,05-Jul,"2,108.22"
5464118,STAMFORD PROPERTIES,Adult Social Care,Adults,Non-Authority Accommodation Rental,05-Jul,"1,060.40"
5464121,WESLEY PROPERTIES (NORTHERN) LTD,Adult Social Care,Adults,Non-Authority Accommodation Rental,25-Jul,"1,426.52"
5464124,HUGH MASON PROPERTIES LIMITED,Adult Social Care,Adults,Non-Authority Accommodation Rental,05-Jul,"2,778.49"
5464125,Hyde Accessible Transport Limited,Education,Children's Services,Transport Of Pupils,05-Jul,"1,750.00"
5464127,HUGH MASON PROPERTIES LIMITED,Adult Social Care,Adults,Non-Authority Accommodation Rental,07-Jul,"2,616.32"
5464130,HUGH MASON PROPERTIES LIMITED,Adult Social Care,Adults,Non-Authority Accommodation Rental,05-Jul,"2,624.44"
5464132,NORTHERN PROPERTIES LTD,Adult Social Care,Adults,Non-Authority Accommodation Rental,05-Jul,"2,077.54"
5464134,HOMES FOR LIFE LTD,Adult Social Care,Adults,Non-Authority Accommodation Rental,05-Jul,856.68
5464136,HOMES FOR LIFE LTD,Adult Social Care,Adults,Non-Authority Accommodation Rental,05-Jul,943.95
5464138,HOMES FOR LIFE LTD,Adult Social Care,Adults,Non-Authority Accommodation Rental,05-Jul,977.44
5464145,HOMES FOR LIFE LTD,Adult Social Care,Adults,Non-Authority Accommodation Rental,05-Jul,848.95
5464147,HOMES FOR LIFE LTD,Adult Social Care,Adults,Non-Authority Accommodation Rental,05-Jul,943.95
5464150,INSPIREDSPACES TAMESIDE LTD,Place,Growth,Fees,08-Jul,189.14
5464150,INSPIREDSPACES TAMESIDE LTD,Place,Growth,Personal Hygiene Costs,08-Jul,"7,599.85"
5464157,Hyde Accessible Transport Limited,Operations and Neighbourhoods,Operations and Neighbourhoods,Hired Transport,01-Jul,"3,230.00"
5464165,Conservation Contracts North West Limited,Hosted Services,Hosted Services,Sub-contractor Services,15-Jul,"1,042.00"
5464186,INSPIREDSPACES TAMESIDE LTD,(blank),(blank),Asbestos Removal,07-Jul,"10,554.16"
5464186,INSPIREDSPACES TAMESIDE LTD,(blank),(blank),Fees,07-Jul,211.08
5464187,Constellia Public Ltd,Place,Growth,Professional Consultancy Services,22-Jul,"20,833.33"
5464190,S & S MARQUEES,Operations and Neighbourhoods,Operations and Neighbourhoods,Event Related Activity,25-Jul,736.5
5464193,GRANART LIMITED,Operations and Neighbourhoods,Operations and Neighbourhoods,Plaques,22-Jul,"2,561.00"
5464194,Redacted Supplier,Childrens Services,Children's Services,Childrens Homes Outside Local Authority Fees,22-Jul,"31,442.99"
5464196,BEDSPACE RESOURCE LTD,Adult Social Care,Adults,Residential Home Long Stay Fees,22-Jul,"2,800.00"
5464197,Redacted Supplier,Childrens Services,Children's Services,Childrens Homes Outside Local Authority Fees,22-Jul,"3,852.99"
5464198,INSPIREDSPACES TAMESIDE LTD,(blank),(blank),Fees,08-Jul,217.28
5464198,INSPIREDSPACES TAMESIDE LTD,(blank),(blank),Minor Works - Building,08-Jul,"10,863.78"
5464200,Amore Social Care Ltd,Childrens Services,Children's Services,Childrens Homes Outside Local Authority Fees,22-Jul,"9,498.04"
5464204,THE UNIVERSITY OF MANCHESTER,People and Workforce Development,Governance,Training Course Costs,22-Jul,950
5464206,Redacted Supplier,Childrens Services,Children's Services,Childrens Homes Outside Local Authority Fees,22-Jul,"17,692.01"
5464209,Redacted Supplier,Childrens Services,Children's Services,Childrens Homes Outside Local Authority Fees,22-Jul,"17,692.01"
5464211,Redacted Supplier,Childrens Services,Children's Services,Childrens Homes Outside Local Authority Fees,22-Jul,"33,480.00"
5464212,STAMFORD CARS UK LTD,Operations and Neighbourhoods,Operations and Neighbourhoods,Hired Transport,25-Jul,"7,161.00"
5464213,Complete Care & Enablement Services LTD,Adult Social Care,Adults,Residential Home Long Stay Fees,22-Jul,"5,916.35"
5464216,Complete Care & Enablement Services LTD,Adult Social Care,Adults,Residential Home Long Stay Fees,22-Jul,"5,916.35"
5464217,CARETECH COMMUNITY SERVICES LIMITED,Adult Social Care,Adults,Residential Home Long Stay Fees,22-Jul,"5,423.45"
5464218,CARETECH COMMUNITY SERVICES LIMITED,Adult Social Care,Adults,Residential Home Long Stay Fees,22-Jul,"5,647.27"
5464219,CARETECH COMMUNITY SERVICES LIMITED,Adult Social Care,Adults,Residential Home Long Stay Fees,22-Jul,"4,610.01"
5464220,CARETECH COMMUNITY SERVICES LIMITED,Adult Social Care,Adults,Residential Home Long Stay Fees,22-Jul,"5,147.86"
5464221,CARETECH COMMUNITY SERVICES LIMITED,Adult Social Care,Adults,Residential Home Long Stay Fees,22-Jul,"4,302.80"
5464222,CARETECH COMMUNITY SERVICES LIMITED,Adult Social Care,Adults,Residential Home Long Stay Fees,22-Jul,"7,529.90"
5464224,TAMESIDE AND GLOSSOP INTEGRATED CARE NHS FOUNDATION TRUST,Hosted Services,Hosted Services,Professional Services,04-Jul,"4,513,842.00"
5464225,CARETECH COMMUNITY SERVICES LIMITED,Adult Social Care,Adults,Residential Home Long Stay Fees,22-Jul,"7,529.90"
5464227,TAMESIDE AND GLOSSOP INTEGRATED CARE NHS FOUNDATION TRUST,Population Health,Population Health,Nursing Home Long Stay Fees,04-Jul,"919,668.00"
5464228,CARETECH COMMUNITY SERVICES LIMITED,Adult Social Care,Adults,Residential Home Long Stay Fees,22-Jul,"6,992.05"
5464229,CARETECH COMMUNITY SERVICES LIMITED,Adult Social Care,Adults,Residential Home Long Stay Fees,22-Jul,"6,992.05"
5464230,TAMESIDE AND GLOSSOP INTEGRATED CARE NHS FOUNDATION TRUST,Hosted Services,Hosted Services,Professional Services,04-Jul,"2,256,921.00"
5464232,CARETECH COMMUNITY SERVICES LIMITED,Adult Social Care,Adults,Residential Home Long Stay Fees,22-Jul,"6,268.51"
5464233,TAMESIDE AND GLOSSOP INTEGRATED CARE NHS FOUNDATION TRUST,Population Health,Population Health,Nursing Home Long Stay Fees,06-Jul,"459,834.00"
5464235,We Support LTD,Adult Social Care,Adults,Homecare Fees,22-Jul,"5,497.80"
5464236,CARETECH COMMUNITY SERVICES LIMITED,Adult Social Care,Adults,Residential Home Long Stay Fees,22-Jul,"4,787.02"
5464237,KB Extruders Ltd,Operations and Neighbourhoods,Operations and Neighbourhoods,General Materials,22-Jul,"1,976.20"
5464238,CARETECH COMMUNITY SERVICES LIMITED,Adult Social Care,Adults,Residential Home Long Stay Fees,22-Jul,"4,065.34"
5464242,CARETECH COMMUNITY SERVICES LIMITED,Adult Social Care,Adults,Residential Home Long Stay Fees,22-Jul,"14,668.58"
5464243,CARETECH COMMUNITY SERVICES LIMITED,Adult Social Care,Adults,Residential Home Long Stay Fees,22-Jul,"5,916.35"
5464244,CARETECH COMMUNITY SERVICES LIMITED,Adult Social Care,Adults,Residential Home Long Stay Fees,22-Jul,"2,393.51"
5464247,CARETECH COMMUNITY SERVICES LIMITED,Adult Social Care,Adults,Residential Home Long Stay Fees,22-Jul,"4,787.02"
5464249,CARETECH COMMUNITY SERVICES LIMITED,Adult Social Care,Adults,Residential Home Long Stay Fees,22-Jul,"5,862.72"
5464250,CARETECH COMMUNITY SERVICES LIMITED,Adult Social Care,Adults,Residential Home Long Stay Fees,22-Jul,"10,165.52"
5464253,CARETECH COMMUNITY SERVICES LIMITED,Adult Social Care,Adults,Residential Home Long Stay Fees,22-Jul,"3,227.10"
5464256,CARETECH COMMUNITY SERVICES LIMITED,Adult Social Care,Adults,Residential Home Long Stay Fees,22-Jul,"3,227.10"
5464257,"TAMESIDE, OLDHAM AND GLOSSOP MIND",Adult Social Care,Adults,Professional Services,05-Jul,"12,500.00"
5464259,HOMESHINE CLEANERS LTD,Adult Social Care,Adults,Homecare Fees,14-Jul,860
5464264,Randstad HR Solution Ltd T/A Student Worker Support,Education,Children's Services,Independent School Fees,22-Jul,"1,458.00"
5464267,MANLEC ELECTRICAL(MANCHESTER) LTD,Housing,Director of Place,Minor Works - Building,04-Jul,517
5464270,INSPIREDSPACES TAMESIDE LTD,Tameside Investment Partnership,Director of Place,Asbestos Removal,08-Jul,"7,414.97"
5464270,INSPIREDSPACES TAMESIDE LTD,Tameside Investment Partnership,Director of Place,Fees,08-Jul,148.3
5464272,MANLEC ELECTRICAL(MANCHESTER) LTD,Housing,Director of Place,Minor Works - Building,04-Jul,"1,060.40"
5464273,MANLEC ELECTRICAL(MANCHESTER) LTD,Housing,Director of Place,Minor Works - Building,04-Jul,880
5464275,Redacted Supplier,Childrens Services,Children's Services,Foster Carer Agency Fees,22-Jul,"1,694.98"
5464276,Redacted Supplier,Childrens Services,Children's Services,Foster Carer Agency Fees,22-Jul,863.03
5464277,Redacted Supplier,Childrens Services,Children's Services,Foster Carer Agency Fees,22-Jul,760.48
5464282,REED SPECIALIST RECRUITMENT LIMITED,Childrens Services,Children's Services,Homecare Fees,27-Jul,818.69
5464289,Fanco Limited t/a 365 Medicare,Adult Social Care,Adults,Homecare Fees,04-Jul,579.32
5464302,Fanco Limited t/a 365 Medicare,Adult Social Care,Adults,Homecare Fees,05-Jul,786.16
5464308,Fanco Limited t/a 365 Medicare,Adult Social Care,Adults,Homecare Fees,05-Jul,682.92
5464313,HIGHLAND ORNATE LTD T/A ORNATE HEALTHCARE,Adult Social Care,Adults,Homecare Fees,01-Jul,"46,266.08"
5464321,P MCGUINNESS & CO LTD,Place,Growth,Engineers Works,22-Jul,"4,573.30"
5464322,GRANART LIMITED,Operations and Neighbourhoods,Operations and Neighbourhoods,Plaques,22-Jul,"1,685.00"
5464324,Origin Amenity Solutions Ltd,Operations and Neighbourhoods,Operations and Neighbourhoods,Professional Weedspraying Services,22-Jul,"4,200.00"
5464325,Origin Amenity Solutions Ltd,Operations and Neighbourhoods,Operations and Neighbourhoods,General Materials,22-Jul,"2,842.50"
5464327,TAMESIDE AND GLOSSOP INTEGRATED CARE NHS FOUNDATION TRUST,Childrens Services,Children's Services,Homecare Fees,06-Jul,"1,383.38"
5464328,FIRST AID FOR ALL LTD,Education,Children's Services,Training Course Costs,04-Jul,755
5464334,Diversity Matters North West,(blank),(blank),Contributions,07-Jul,"2,539.00"
5464336,Diversity Matters North West,(blank),(blank),Contributions,07-Jul,"4,624.00"
5464339,Trinity College,Operations and Neighbourhoods,Operations and Neighbourhoods,Professional Entertainment Services,27-Jul,576.45
5464345,STEP AHEAD RESOURCE SERVICES,Childrens Services,Children's Services,Living With Formal Support,07-Jul,"1,200.00"
5464347,STEP AHEAD RESOURCE SERVICES,Adult Social Care,Adults,Homecare Fees,07-Jul,"1,553.14"
5464349,STEP AHEAD RESOURCE SERVICES,Adult Social Care,Adults,Homecare Fees,07-Jul,"1,553.14"
5464354,STEP AHEAD RESOURCE SERVICES,Adult Social Care,Adults,Homecare Fees,07-Jul,"1,553.14"
5464355,STEP AHEAD RESOURCE SERVICES,Adult Social Care,Adults,Homecare Fees,07-Jul,"1,553.14"
5464359,STEP AHEAD RESOURCE SERVICES,(blank),(blank),Living With Formal Support,07-Jul,"1,250.00"
5464361,STEP AHEAD RESOURCE SERVICES,(blank),(blank),Living With Formal Support,07-Jul,"1,250.00"
5464368,GRIP STEEL  REINFORCEMENTS LTD,Operations and Neighbourhoods,Operations and Neighbourhoods,General Equipment Purchase,08-Jul,"1,690.00"
5464382,Redacted Supplier,Operations and Neighbourhoods,Operations and Neighbourhoods,Professional Entertainment Services,27-Jul,"1,303.17"
5464384,ASKEWS  AND HOLTS LIBRARY SERVICES LTD,Operations and Neighbourhoods,Operations and Neighbourhoods,Purchase Books,27-Jul,"1,040.03"
5464386,Brooks and Brooks Recruitment Ltd,Childrens Services,Children's Services,Childrens Homes Outside Local Authority Fees,27-Jul,"12,600.00"
5464388,Brooks and Brooks Recruitment Ltd,Childrens Services,Children's Services,Childrens Homes Outside Local Authority Fees,27-Jul,"12,600.00"
5464390,PAYPARTNERS LTD (MONTHLY),Childrens Services,Children's Services,Direct Payments,27-Jul,537.71
5464392,PAYPARTNERS LTD (MONTHLY),Childrens Services,Children's Services,Direct Payments,27-Jul,539.29
5464398,Andrea Stanley Social care Training,Quality and Safeguarding,Quality and Safeguarding,Training Course Costs,27-Jul,600
5464401,DOMAIN CARE NORTH WEST LTD,Adult Social Care,Adults,Day Care Fees,28-Jul,"1,335.32"
5464416,CREATIVE SUPPORT LTD,Adult Social Care,Adults,Homecare Fees,18-Jul,593.6
5464418,MEW CARE LTD,Adult Social Care,Adults,Professional Services,27-Jul,525
5464431,PRO VENTURE CONSULTING,Childrens Services,Children's Services,Professional Services,27-Jul,"18,375.00"
5464436,MEDACS HEALTHCARE,Adult Social Care,Adults,Homecare Fees,18-Jul,"15,335.96"
5464437,INSPIREDSPACES TAMESIDE LTD,Asset & Investment Partnership Management,Growth,PFI FM Fees and Insurance Costs,11-Jul,"1,350.00"
5464438,INSPIREDSPACES TAMESIDE LTD,Asset & Investment Partnership Management,Growth,PFI FM Fees and Insurance Costs,11-Jul,"1,350.00"
5464441,STAMFORD CARS UK LTD,Operations and Neighbourhoods,Operations and Neighbourhoods,Hired Transport,07-Jul,"1,617.00"
5464442,KEYS PCE LTD,Childrens Services,Children's Services,Childrens Homes Outside Local Authority Fees,27-Jul,"17,492.86"
5464445,STUART CARPETS (DENTON) LIMITED,Childrens Services,Children's Services,"Fixtures,Fittings & Furniture Purchase (Service Users)",07-Jul,775
5464448,INSPIREDSPACES TAMESIDE LTD,Place,Growth,Fees,11-Jul,122.9
5464448,INSPIREDSPACES TAMESIDE LTD,Place,Growth,Personal Hygiene Costs,11-Jul,"6,144.98"
5464455,Smartway Health and Social Care Limited,Adult Social Care,Adults,Homecare Fees,08-Jul,"4,531.43"
5464456,Northern Community Pathways Limited,Childrens Services,Children's Services,Living With Formal Support,29-Jul,"2,467.84"
5464457,Northern Community Pathways Limited,Childrens Services,Children's Services,Living With Formal Support,29-Jul,"2,493.94"
5464458,Northern Community Pathways Limited,Childrens Services,Children's Services,Living With Formal Support,29-Jul,"2,132.23"
5464459,Northern Community Pathways Limited,Adult Social Care,Adults,Homecare Fees,29-Jul,"2,680.00"
5464463,QUEST MEDIA NETWORK LTD,Place,Growth,Statutory Advertising,08-Jul,600
5464465,Northern Community Pathways Limited,Childrens Services,Children's Services,Living With Formal Support,29-Jul,"2,578.23"
5464466,Northern Community Pathways Limited,Childrens Services,Children's Services,Living With Formal Support,29-Jul,"2,008.79"
5464467,Northern Community Pathways Limited,Childrens Services,Children's Services,Living With Formal Support,29-Jul,"2,474.85"
5464469,Northern Community Pathways Limited,Adult Social Care,Adults,Homecare Fees,29-Jul,"2,196.00"
5464471,Dane Borrell Designs,Policy and Communications,Governance,Printing And Stationery,28-Jul,750
5464472,Redacted Supplier,Childrens Services,Children's Services,Foster Carer Agency Fees,28-Jul,"3,436.88"
5464474,Redacted Supplier,Childrens Services,Children's Services,Foster Carer Agency Fees,28-Jul,"3,384.52"
5464475,Redacted Supplier,Childrens Services,Children's Services,Foster Carer Agency Fees,28-Jul,"3,436.88"
5464479,Redacted Supplier,Childrens Services,Children's Services,Foster Carer Agency Fees,01-Sep,540
5464480,FORBES SOLICITORS,Multiple Heads of Service,Multiple Strategic Directorates,Public Liability Insurance Claims,28-Jul,"1,237.50"
5464481,ABLE CARE AND SUPPORT SERVICES LTD,Adult Social Care,Adults,Homecare Fees,01-Jul,"9,417.80"
5464483,ECLIPSE GEOSPATIAL LTD,Hosted Services,Hosted Services,Professional Consultancy Services,28-Jul,"1,458.25"
5464485,TAMESIDE LINK,Adult Social Care,Adults,Homecare Fees,22-Jul,"3,926.72"
5464486,Optima Health,People and Workforce Development,Governance,Professional Medical Services,28-Jul,"3,369.19"
5464490,Safe Hands Care & Support Services,(blank),(blank),Living With Formal Support,28-Jul,"2,371.43"
5464492,Redacted Supplier,Governance,Governance,Professional Consultancy Services,28-Jul,"1,110.00"
5464493,ABLE CARE AND SUPPORT SERVICES LTD,Adult Social Care,Adults,Homecare Fees,01-Jul,587.35
5464494,Redacted Supplier,Childrens Services,Children's Services,Childrens Homes Outside Local Authority Fees,29-Jul,"13,928.70"
5464495,Redacted Supplier,Childrens Services,Children's Services,Childrens Homes Outside Local Authority Fees,29-Jul,"13,928.70"
5464496,Redacted Supplier,(blank),(blank),Professional Entertainment Services,28-Jul,"4,000.00"
5464497,Redacted Supplier,Childrens Services,Children's Services,Childrens Homes Outside Local Authority Fees,29-Jul,"12,814.20"
5464500,Redacted Supplier,Childrens Services,Children's Services,Childrens Homes Outside Local Authority Fees,29-Jul,"13,928.70"
5464506,Redacted Supplier,Childrens Services,Children's Services,Childrens Homes Outside Local Authority Fees,29-Jul,"18,000.00"
5464507,Imail Comms Limited,Exchequer,Governance,Printing And Stationery,18-Aug,"2,587.60"
5464509,Redacted Supplier,Childrens Services,Children's Services,Childrens Homes Outside Local Authority Fees,29-Jul,"18,000.00"
5464514,IDOX SOFTWARE LIMITED,Operations and Neighbourhoods,Operations and Neighbourhoods,Computer Software Maintenance Costs,28-Jul,"1,187.50"
5464514,IDOX SOFTWARE LIMITED,Place,Growth,Computer Software Maintenance Costs,28-Jul,"1,187.50"
5464515,IDOX SOFTWARE LIMITED,Operations and Neighbourhoods,Operations and Neighbourhoods,Computer Software Maintenance Costs,28-Jul,"3,800.00"
5464515,IDOX SOFTWARE LIMITED,Place,Growth,Computer Software Maintenance Costs,28-Jul,"3,800.00"
5464516,IDOX SOFTWARE LIMITED,Operations and Neighbourhoods,Operations and Neighbourhoods,Computer Software Maintenance Costs,28-Jul,475
5464516,IDOX SOFTWARE LIMITED,Place,Growth,Computer Software Maintenance Costs,28-Jul,475
5464518,IDOX SOFTWARE LIMITED,Operations and Neighbourhoods,Operations and Neighbourhoods,Computer Software Maintenance Costs,28-Jul,475
5464518,IDOX SOFTWARE LIMITED,Place,Growth,Computer Software Maintenance Costs,28-Jul,475
5464519,IDOX SOFTWARE LIMITED,Place,Growth,Computer Software Maintenance Costs,28-Jul,"1,500.00"
5464520,IDOX SOFTWARE LIMITED,Operations and Neighbourhoods,Operations and Neighbourhoods,Computer Software Maintenance Costs,28-Jul,"3,325.00"
5464520,IDOX SOFTWARE LIMITED,Place,Growth,Computer Software Maintenance Costs,28-Jul,"3,325.00"
5464521,STOCKPORT CP  SOCIETY,Adult Social Care,Adults,Day Care Fees,28-Jul,"1,278.40"
5464522,STOCKPORT CP  SOCIETY,Adult Social Care,Adults,Day Care Fees,28-Jul,"1,278.40"
5464523,STOCKPORT CP  SOCIETY,Adult Social Care,Adults,Day Care Fees,28-Jul,"1,810.27"
5464524,Redacted Supplier,Childrens Services,Children's Services,Foster Carer Agency Fees,28-Jul,"3,455.65"
5464525,Redacted Supplier,Childrens Services,Children's Services,Foster Carer Agency Fees,28-Jul,"5,298.31"
5464526,Redacted Supplier,Childrens Services,Children's Services,Foster Carer Agency Fees,28-Jul,"3,754.59"
5464528,PHOENIX SOFTWARE LTD,Digital Tameside,Finance & IT,Professional Services,28-Jul,"1,050.00"
5464530,Randstad Solutions Ltd,Education,Children's Services,Agency Staff,28-Jul,543.92
5464531,INSPIREDSPACES TAMESIDE LTD,Place,Growth,Fees,12-Jul,238.52
5464531,INSPIREDSPACES TAMESIDE LTD,Place,Growth,Repairs & Maintenance Heavy Catering Equipment,12-Jul,"11,926.07"
5464532,Safe Hands Care & Support Services,(blank),(blank),Living With Formal Support,28-Jul,"1,606.71"
5464536,Redacted Supplier,Childrens Services,Children's Services,Professional Consultancy Services,28-Jul,771.4
5464540,SURECARE TAMESIDE & OLDHAM,Adult Social Care,Adults,Homecare Fees,28-Jul,"3,678.98"
5464543,RSK RAW LTD,Operations and Neighbourhoods,Operations and Neighbourhoods,General Materials,11-Aug,"6,139.33"
5464546,iCare Solutions,Adult Social Care,Adults,Homecare Fees,28-Jul,"17,113.88"
5464547,Redacted Supplier,Education,Children's Services,Professional Services,28-Jul,"1,100.00"
5464549,P MCGUINNESS & CO LTD,Place,Growth,Engineers Works,28-Jul,"1,550.00"
5464550,Water Plus,Operations and Neighbourhoods,Operations and Neighbourhoods,Water (Metered and Rates),28-Jul,"1,378.33"
5464550,Water Plus,Place,Growth,Water (Metered and Rates),28-Jul,"1,282.05"
5464552,Pennine Medical Supplies Ltd T/A Pennine Workwear,Operations and Neighbourhoods,Operations and Neighbourhoods,Protective Clothing,28-Jul,"2,833.05"
5464554,FORBES SOLICITORS,Multiple Heads of Service,Multiple Strategic Directorates,Highways Insurance Claims,28-Jul,678.5
5464556,FORBES SOLICITORS,Multiple Heads of Service,Multiple Strategic Directorates,Highways Insurance Claims,28-Jul,597.54
5464584,ANIMAL WARDENS LTD,Operations and Neighbourhoods,Operations and Neighbourhoods,Professional Consultancy Services,04-Jul,750
5464585,B.E.M Property Management t/a HALA GUEST HOUSE,(blank),(blank),Other Accommodation Related Costs,09-Aug,"9,745.00"
5464586,Hyde Accessible Transport Limited,Education,Children's Services,Transport Of Pupils,04-Jul,735
5464587,Hyde Accessible Transport Limited,Education,Children's Services,Transport Of Pupils,04-Jul,"1,750.00"
5464588,Hyde Accessible Transport Limited,Education,Children's Services,Transport Of Pupils,04-Jul,"1,575.00"
5464589,Hyde Accessible Transport Limited,Education,Children's Services,Transport Of Post 16 Pupils,04-Jul,"2,375.00"
5464591,CREATIVE SUPPORT LTD,Adult Social Care,Adults,Homecare Fees,20-Jul,"15,128.71"
5464592,CREATIVE SUPPORT LTD,Adult Social Care,Adults,Homecare Fees,20-Jul,"168,417.70"
5464593,CREATIVE SUPPORT LTD,Adult Social Care,Adults,Homecare Fees,20-Jul,"190,515.43"
5464594,CREATIVE SUPPORT LTD,Adult Social Care,Adults,Age Concern Fees,20-Jul,"36,618.17"
5464595,CREATIVE SUPPORT LTD,Adult Social Care,Adults,Independent Sector Care Fees,20-Jul,"47,877.80"
5464596,CREATIVE SUPPORT LTD,Adult Social Care,Adults,Homecare Fees,29-Jul,"20,268.57"
5464597,Three Angels Healthcare,Adult Social Care,Adults,Homecare Fees,29-Jul,"8,807.50"
5464599,KEYFAX MANCHESTER LTD,Housing,Director of Place,Minor Works - Building,08-Jul,823.13
5464600,APS Group,Operations and Neighbourhoods,Operations and Neighbourhoods,Professional Medical Services,29-Jul,954.69
5464602,Great Minds Together Ltd,Childrens Services,Children's Services,Childrens Homes Outside Local Authority Fees,29-Jul,"120,080.00"
5464603,Redacted Supplier,Education,Children's Services,Professional Services,29-Jul,"1,100.00"
5464605,CITY LIFT SERVICES (NW) LTD,Adult Social Care,Adults,General Equipment Repair & Maintenance,29-Jul,935
5464622,AFFINITY WORKFORCE SOLUTIONS LIMITED T/A Monarch Education,Education,Children's Services,Independent School Fees,29-Jul,659.2
5464623,MATTHEWS ENVIRONMENTAL SOLUTIONS LTD,Operations and Neighbourhoods,Operations and Neighbourhoods,Building Works,01-Jul,"1,029.00"
5464636,K P DODD CONSTRUCTION LTD,Housing,Director of Place,Minor Works - Building,29-Jul,700
5464638,K P DODD CONSTRUCTION LTD,Housing,Director of Place,Minor Works - Building,29-Jul,"1,320.00"
5464639,BARNARDO'S,Childrens Services,Children's Services,Foster Carer Agency Fees,29-Jul,"7,285.71"
5464640,YOUNG PEOPLE FIRST LIMITED,Childrens Services,Children's Services,Living With Formal Support,29-Jul,"1,225.00"
5464642,YOUNG PEOPLE FIRST LIMITED,(blank),(blank),Living With Formal Support,29-Jul,"2,100.00"
5464643,Redacted Supplier,Childrens Services,Children's Services,Foster Carer Agency Fees,29-Jul,"1,694.98"
5464644,Redacted Supplier,Childrens Services,Children's Services,Foster Carer Agency Fees,29-Jul,863.03
5464645,Jungle Junction Denton,Childrens Services,Children's Services,Nursery Services,08-Jul,953.3
5464647,Redacted Supplier,Childrens Services,Children's Services,Childrens Homes Outside Local Authority Fees,12-Aug,"19,285.80"
5464648,Redacted Supplier,Childrens Services,Children's Services,Childrens Homes Outside Local Authority Fees,10-Aug,"19,285.80"
5464659,TAMESIDE LINK,Adult Social Care,Adults,Homecare Fees,08-Jul,"23,442.72"
5464662,SOLON SECURITY LTD,Operations and Neighbourhoods,Operations and Neighbourhoods,General Materials,29-Jul,"3,920.00"
5464664,GREENSCAPE,Adult Social Care,Adults,Professional Services,08-Jul,"2,967.00"
5464665,Oticon Ltd,Education,Children's Services,Educational Equipment,29-Jul,"2,590.00"
5464667,Shabach Health Care Ltd,Adult Social Care,Adults,Homecare Fees,08-Jul,"5,193.47"
5464668,Shabach Health Care Ltd,Adult Social Care,Adults,Homecare Fees,08-Jul,"5,867.21"
5464674,Brooks and Brooks Recruitment Ltd,Childrens Services,Children's Services,Childrens Homes Outside Local Authority Fees,29-Jul,"12,600.00"
5464675,Inspired Spaces (ProjectCo1) LTD,Asset & Investment Partnership Management,Growth,Free School Meal Costs,25-Jul,"8,253.60"
5464677,INSPIREDSPACES TAMESIDE (PROJECTCO2) LTD,Asset & Investment Partnership Management,Growth,Food & Refreshments,20-Jul,"1,337.00"
5464677,INSPIREDSPACES TAMESIDE (PROJECTCO2) LTD,Asset & Investment Partnership Management,Growth,Free School Meal Costs,20-Jul,"27,204.00"
5464679,CLARENDON MEDICAL PRACTICE,Population Health,Population Health,Local Enhanced Services,15-Jul,519
5464688,Redacted Supplier,Childrens Services,Children's Services,Foster Carer Agency Fees,05-Aug,760.48
5464690,G2V Recruitment Group Limited t/a Vivid Resourcing,Place,Growth,Recruitment Campaign,29-Jul,"9,750.00"
5464691,Yorkshire care equipment,Housing,Director of Place,Minor Works - Building,29-Jul,"1,540.00"
5464701,Accenture UK Ltd,People and Workforce Development,Governance,Computer Software,14-Jul,"29,094.00"
5464702,Amore Social Care Ltd,Childrens Services,Children's Services,Childrens Homes Outside Local Authority Fees,01-Jul,"12,793.36"
5464716,STAMFORD CARS UK LTD,Education,Children's Services,Transport Of Post 16 Pupils,08-Jul,"1,425.00"
5464717,STAMFORD CARS UK LTD,Education,Children's Services,Transport Of Ola Pupils,08-Jul,"2,375.00"
5464719,STAMFORD CARS UK LTD,Education,Children's Services,Transport Of Pupils,08-Jul,"1,155.00"
5464721,STAMFORD CARS UK LTD,Education,Children's Services,Transport Of Pupils,08-Jul,"1,330.00"
5464722,STAMFORD CARS UK LTD,Education,Children's Services,Transport Of Pupils,08-Jul,"1,330.00"
5464724,STAMFORD CARS UK LTD,Education,Children's Services,Transport Of Ola Pupils,08-Jul,"2,517.50"
5464725,STAMFORD CARS UK LTD,Education,Children's Services,Transport Of Ola Pupils,08-Jul,"1,472.50"
5464726,STAMFORD CARS UK LTD,Operations and Neighbourhoods,Operations and Neighbourhoods,Hired Transport,08-Jul,924
5464727,STAMFORD CARS UK LTD,Operations and Neighbourhoods,Operations and Neighbourhoods,Hired Transport,08-Jul,780
5464728,STAMFORD CARS UK LTD,Education,Children's Services,Transport Of Ola Pupils,08-Jul,"1,680.00"
5464729,STAMFORD CARS UK LTD,Education,Children's Services,Transport Of Ola Pupils,08-Jul,"1,947.50"
5464731,STAMFORD CARS UK LTD,Education,Children's Services,Transport Of Ola Pupils,08-Jul,"1,472.50"
5464735,STAMFORD CARS UK LTD,Operations and Neighbourhoods,Operations and Neighbourhoods,Hired Transport,08-Jul,900
5464736,STAMFORD CARS UK LTD,Education,Children's Services,Transport Of Ola Pupils,08-Jul,"2,070.00"
5464737,STAMFORD CARS UK LTD,Education,Children's Services,Transport Of Pupils,08-Jul,902.5
5464740,STAMFORD CARS UK LTD,Education,Children's Services,Transport Of Pupils,08-Jul,"1,805.00"
5464741,STAMFORD CARS UK LTD,Education,Children's Services,Transport Of Post 16 Pupils,08-Jul,902.5
5464743,STAMFORD CARS UK LTD,Operations and Neighbourhoods,Operations and Neighbourhoods,Hired Transport,08-Jul,780
5464745,STAMFORD CARS UK LTD,Education,Children's Services,Transport Of Post 16 Pupils,08-Jul,"2,090.00"
5464746,STAMFORD CARS UK LTD,Education,Children's Services,Transport Of Post 16 Pupils,08-Jul,"2,090.00"
5464747,STAMFORD CARS UK LTD,Education,Children's Services,Transport Of Pupils,08-Jul,"1,805.00"
5464749,STAMFORD CARS UK LTD,Education,Children's Services,Transport Of Pupils,08-Jul,"1,330.00"
5464750,SAFEHOUSES NORTH LIMITED,Childrens Services,Children's Services,Foster Carer Agency Fees,29-Jul,"3,477.17"
5464751,STAMFORD CARS UK LTD,Operations and Neighbourhoods,Operations and Neighbourhoods,Hired Transport,08-Jul,630
5464752,STAMFORD CARS UK LTD,Education,Children's Services,Transport Of Pupils,08-Jul,"1,805.00"
5464753,SAFEHOUSES NORTH LIMITED,Childrens Services,Children's Services,Foster Carer Agency Fees,29-Jul,"3,456.64"
5464754,STAMFORD CARS UK LTD,Education,Children's Services,Transport Of Post 16 Pupils,08-Jul,"1,472.50"
5464755,STAMFORD CARS UK LTD,Operations and Neighbourhoods,Operations and Neighbourhoods,Hired Transport,08-Jul,513.75
5464756,STAMFORD CARS UK LTD,Education,Children's Services,Transport Of Pupils,08-Jul,840
5464758,STAMFORD CARS UK LTD,Operations and Neighbourhoods,Operations and Neighbourhoods,Hired Transport,08-Jul,"1,015.00"
5464759,STAMFORD CARS UK LTD,Education,Children's Services,Transport Of Pupils,08-Jul,"1,330.00"
5464762,STAMFORD CARS UK LTD,Education,Children's Services,Transport Of Post 16 Pupils,08-Jul,"1,235.00"
5464764,STAMFORD CARS UK LTD,Education,Children's Services,Transport Of Pupils,08-Jul,"1,120.00"
5464765,STAMFORD CARS UK LTD,Operations and Neighbourhoods,Operations and Neighbourhoods,Hired Transport,08-Jul,500
5464766,STAMFORD CARS UK LTD,Education,Children's Services,Transport Of Post 16 Pupils,08-Jul,780
5464768,STAMFORD CARS UK LTD,Education,Children's Services,Transport Of Ola Pupils,08-Jul,"2,340.00"
5464770,STAMFORD CARS UK LTD,Education,Children's Services,Transport Of Ola Pupils,08-Jul,"2,970.00"
5464772,STAMFORD CARS UK LTD,Education,Children's Services,Transport Of Pupils,08-Jul,"1,190.00"
5464774,STAMFORD CARS UK LTD,Operations and Neighbourhoods,Operations and Neighbourhoods,Hired Transport,08-Jul,920
5464775,STAMFORD CARS UK LTD,Education,Children's Services,Transport Of Pupils,08-Jul,"1,330.00"
5464776,STAMFORD CARS UK LTD,Operations and Neighbourhoods,Operations and Neighbourhoods,Hired Transport,08-Jul,"1,520.00"
5464777,STAMFORD CARS UK LTD,Operations and Neighbourhoods,Operations and Neighbourhoods,Hired Transport,08-Jul,560
5464778,STAMFORD CARS UK LTD,Education,Children's Services,Transport Of Pupils,08-Jul,840
5464779,Bloom Procurement Services Limited,Tameside Investment Partnership,Director of Place,Consultancies,14-Jul,"11,052.63"
5464781,STAMFORD CARS UK LTD,Operations and Neighbourhoods,Operations and Neighbourhoods,Hired Transport,08-Jul,900
5464782,STAMFORD CARS UK LTD,Education,Children's Services,Transport Of Ola Pupils,08-Jul,"1,710.00"
5464783,STAMFORD CARS UK LTD,Education,Children's Services,Transport Of Ola Pupils,08-Jul,"2,655.00"
5464785,STAMFORD CARS UK LTD,Education,Children's Services,Transport Of Ola Pupils,08-Jul,"1,900.00"
5464786,STAMFORD CARS UK LTD,Education,Children's Services,Transport Of Ola Pupils,08-Jul,"2,090.00"
5464787,STAMFORD CARS UK LTD,Operations and Neighbourhoods,Operations and Neighbourhoods,Hired Transport,08-Jul,725
5464788,STAMFORD CARS UK LTD,Operations and Neighbourhoods,Operations and Neighbourhoods,Hired Transport,08-Jul,855
5464790,STAMFORD CARS UK LTD,Education,Children's Services,Transport Of Pupils,08-Jul,"1,120.00"
5464791,STAMFORD CARS UK LTD,Education,Children's Services,Transport Of Ola Pupils,08-Jul,"1,620.00"
5464795,STAMFORD CARS UK LTD,Operations and Neighbourhoods,Operations and Neighbourhoods,Hired Transport,08-Jul,"1,235.00"
5464796,STAMFORD CARS UK LTD,Education,Children's Services,Transport Of Pupils,04-Jul,"1,330.00"
5464797,STAMFORD CARS UK LTD,Education,Children's Services,Transport Of Ola Pupils,08-Jul,"1,900.00"
5464798,STAMFORD CARS UK LTD,Operations and Neighbourhoods,Operations and Neighbourhoods,Hired Transport,08-Jul,"1,090.00"
5464799,STAMFORD CARS UK LTD,Education,Children's Services,Transport Of Ola Pupils,08-Jul,"1,235.00"
5464801,STAMFORD CARS UK LTD,Education,Children's Services,Transport Of Pupils,08-Jul,665
5464803,STAMFORD CARS UK LTD,Education,Children's Services,Transport Of Pupils,08-Jul,"1,540.00"
5464809,CLOVERLEAF ADVOCACY 2000 LTD,Adult Social Care,Adults,Professional Services,29-Jul,"13,350.82"
5464819,THE FAMILY UNIT LTD,Childrens Services,Children's Services,Living With Formal Support,11-Jul,"4,000.00"
5464820,THE FAMILY UNIT LTD,Childrens Services,Children's Services,Living With Formal Support,11-Jul,"3,600.00"
5464821,THE FAMILY UNIT LTD,Childrens Services,Children's Services,Living With Formal Support,11-Jul,"4,000.00"
5464827,Redacted Supplier,Childrens Services,Children's Services,Foster Carer Agency Fees,29-Jul,943.32
5464828,Redacted Supplier,Childrens Services,Children's Services,Foster Carer Agency Fees,29-Jul,"4,177.56"
5464829,Redacted Supplier,Education,Children's Services,Non-Maintained School Fees,29-Jul,"21,642.36"
5464831,Redacted Supplier,Education,Children's Services,Independent School Fees,08-Jul,"5,333.33"
5464833,Redacted Supplier,Education,Children's Services,Independent School Fees,08-Jul,"6,000.00"
5464834,Redacted Supplier,Education,Children's Services,Independent School Fees,08-Jul,"6,333.00"
5464835,Redacted Supplier,Education,Children's Services,Independent School Fees,08-Jul,"7,000.00"
5464837,Redacted Supplier,Education,Children's Services,Independent School Fees,08-Jul,"8,000.00"
5464844,DHL Parcel UK Ltd (UK Mail),Operations and Neighbourhoods,Operations and Neighbourhoods,Postages,29-Jul,955.23
5464845,Redacted Supplier,Education,Children's Services,Independent School Fees,04-Jul,"7,000.00"
5464846,Redacted Supplier,Education,Children's Services,Independent School Fees,08-Jul,"6,333.00"
5464851,DHL Parcel UK Ltd (UK Mail),Education,Children's Services,Postages,16-Sep,700.27
5464858,DHL Parcel UK Ltd (UK Mail),Governance,Governance,Printing And Stationery,08-Aug,944.23
5464860,DHL Parcel UK Ltd (UK Mail),Operations and Neighbourhoods,Operations and Neighbourhoods,Postages,29-Jul,"2,981.23"
5464861,DHL Parcel UK Ltd (UK Mail),Exchequer,Governance,Professional Services,29-Jul,"6,808.02"
5464863,DHL Parcel UK Ltd (UK Mail),Place,Growth,Postages,04-Aug,"5,427.92"
5464873,DHL Parcel UK Ltd (UK Mail),Governance,Governance,Printing And Stationery,29-Jul,787.32
5464876,Timeout Childrens Homes Ltd,Childrens Services,Children's Services,Childrens Homes Outside Local Authority Fees,29-Jul,"17,121.30"
5464877,Timeout Childrens Homes Ltd,Childrens Services,Children's Services,Childrens Homes Outside Local Authority Fees,29-Jul,"21,000.00"
5464878,Park Lane Minibuses LTD,Education,Children's Services,Transport Of Pupils,08-Jul,"2,748.92"
5464880,Park Lane Minibuses LTD,Education,Children's Services,Transport Of Post 16 Pupils,08-Jul,"2,641.00"
5464881,Park Lane Minibuses LTD,Education,Children's Services,Transport Of Pupils,08-Jul,"2,437.32"
5464882,Park Lane Minibuses LTD,Education,Children's Services,Transport Of Pupils,08-Jul,"2,025.52"
5464884,Park Lane Minibuses LTD,Education,Children's Services,Transport Of Pupils,08-Jul,"1,777.44"
